{"text_format":"1","workbook":"xlsx","n_sheets":16,"sheets":["PHA Info","Data Collection Form","Data Validation","Project BS","Project IS","Program BS","Program IS","COCC BS","COCC IS","Elimination BS","Elimination IS","Other Proj BS","Other Proj IS","HCV BS","HCV IS","Sheet3"],"not_rendered":{"charts":0,"images":9,"macros":1,"external_links":0,"defined_names":4,"comments":0,"pivot_tables":0},"unopened":[],"bounds":{"document_bytes":16777216,"sheet_cells":100000,"rows_first":2000,"rows_last":500,"rows_between":2000,"halvings":0,"cell_chars":16384,"cell_head_chars":4096},"cells_cut":0,"cells_raw":0,"read":"whole","date_system":"1900"}

{"sheet":"PHA Info","index":0,"n_rows":24,"n_cols":3,"rows_kept":24,"cut":false,"hidden":false,"merged":[[2,1,2,3],[3,1,3,3]]}
[]
[]
[null,"Welcome to the FDS Submission Upload Tool"]
[null,"Note: Use of this tool applies to Unaudited submissions only"]
[]
[]
[]
[null,"*Select PHA Code","0"]
[null,"*Select # of Projects"]
[null,"*Select # of Programs","0"]
[]
[null,"PHA Code:  ","Select PHA Code"]
[null,"PHA Name:  ",{"$f":"IFERROR(VLOOKUP(C12,Sheet3!$A$3:$B$4271,2,FALSE),\"\")","v":""}]
[]
[null,"*Asset Management Type:  ","Select Asset Management Type"]
[null,"*Accounting Method","Select Accounting Method"]
[null,"*Submission Type:  ","Select Submission Type"]
[{"$f":"IFERROR(C18/1,1)","v":"1900-01-01"},"*Fiscal Year End:  ","Select Fiscal Year End"]
[]
[null,null,"*Denotes required information"]
[]
[null,"Original FASS-PH System Release: July 2013 (FASS-PH 9.2.8.0)"]
[null,"Last Updated: March 2022"]
[null,"Version 3"]

{"sheet":"Data Collection Form","index":1,"n_rows":62,"n_cols":3,"rows_kept":62,"cut":false,"hidden":false,"merged":[]}
["PHA",{"$f":"'PHA Info'!C12&\" \"&'PHA Info'!C13","v":"Select PHA Code "}]
["FDS Submission",{"$f":"TEXT('PHA Info'!C18,\"mm\")&\"/\"&TEXT('PHA Info'!C18,\"dd\")&\"/\"&TEXT('PHA Info'!C18,\"yyyy\")&\"  \"&'PHA Info'!C17","v":"Select Fiscal Year End/Select Fiscal Year End/Select Fiscal Year End  Select Submission Type"}]
["Financial Statement","Data Collection Form"]
["DCF Line Item","Description","Input"]
["G9000-010","Fiscal Year Ending Date",{"$f":"'PHA Info'!C18","v":"Select Fiscal Year End"}]
["G2000-021","Reporting Period Covered"]
["G2000-031","Reporting Period Covered - Months"]
["G9000-020","Employer Identification Number"]
["G2000-040","Multiple EIN Indicator"]
["G9000-030","Data Universal Numbering System (DUNS) Number"]
["G2000-050","Multiple DUNS Indicator"]
["G9100-011","Entity Name"]
["G9100-021","Entity Street Address Line 1"]
["G9100-031","Entity Street Address Line 2"]
["G9100-041","Entity City"]
["G9100-051","Entity State"]
["G9100-061","Entity Zip Code"]
["G9100-066","Entity Zip Code Extension"]
["G2100-011","Entity Contact First Name"]
["G2100-021","Entity Contact Middle Initial"]
["G2100-031","Entity Contact Last Name"]
["G2100-041","Entity Contact Title"]
["G2100-051","Entity Contact Telephone"]
["G2100-061","Entity Contact Extension"]
["G2100-071","Entity Contact Fax"]
["G2100-081","Entity Contact Email"]
["G2100-090","Date Approved by Certifying Official"]
["G2100-100","Certifying Official First Name"]
["G2100-110","Certifying Official Middle Initial"]
["G2100-120","Certifying Official Last Name"]
["G2100-130","Certifying Official Title"]
["G2200-010","Auditor Name"]
["G2200-020","Auditor Street Address Line 1"]
["G2200-030","Auditor Street Address Line 2"]
["G2200-040","Auditor City"]
["G2200-050","Auditor State"]
["G2200-060","Auditor Zip Code"]
["G2200-065","Auditor Zip Code Extension"]
["G2200-070","Auditor Contact First Name"]
["G2200-080","Auditor Contact Middle Initial"]
["G2200-090","Auditor Contact Last Name"]
["G2200-100","Auditor Contact Title"]
["G2200-110","Auditor Contact Telephone"]
["G2200-120","Auditor Contact Extension"]
["G2200-130","Auditor Contact Fax"]
["G2200-140","Auditor Contact Email"]
["G2200-150","Fee Accountant Name"]
["G2200-160","Fee Accountant Street Address Line 1"]
["G2200-170","Fee Accountant Street Address Line 2"]
["G2200-180","Fee Accountant City"]
["G2200-190","Fee Accountant State"]
["G2200-200","Fee Accountant Zip Code"]
["G2200-210","Fee Accountant Zip Code Extension"]
["G2200-220","Fee Accountant Contact First Name"]
["G2200-230","Fee Accountant Contact Middle Initial"]
["G2200-240","Fee Accountant Contact Last Name"]
["G2200-250","Fee Accountant Contact Title"]
["G2200-260","Fee Accountant Contact Telephone"]
["G2200-270","Fee Accountant Contact Extension"]
["G2200-280","Fee Accountant Contact Fax"]
["G2200-290","Fee Accountant Contact Email"]
["G4100-040","Total Federal Awards Expended"]

{"sheet":"Data Validation","index":2,"n_rows":3,"n_cols":1,"rows_kept":3,"cut":false,"hidden":false,"merged":[]}
["Data Validaiton Sheet"]
[]
["To Be Developed"]

{"sheet":"Project BS","index":3,"n_rows":174,"n_cols":4,"rows_kept":174,"cut":false,"hidden":false,"merged":[]}
["PHA",{"$f":"'PHA Info'!C12&\" \"&'PHA Info'!C13","v":"Select PHA Code "}]
["FDS Submission",{"$f":"TEXT('PHA Info'!C18,\"mm\")&\"/\"&TEXT('PHA Info'!C18,\"dd\")&\"/\"&TEXT('PHA Info'!C18,\"yyyy\")&\"  \"&'PHA Info'!C17","v":"Select Fiscal Year End/Select Fiscal Year End/Select Fiscal Year End  Select Submission Type"}]
["Financial Statement","Project Balance Sheet"]
["FDS Line Item","Description","Total"]
[111,"Cash - Unrestricted",{"$f":"SUM($D5:$DY5)","v":0}]
[112,"Cash - Restricted - Modernization and Development",0]
[113,"Cash - Other Restricted",0]
[114,"Cash - Tenant Security Deposits",0]
[115,"Cash - Restricted for Payment of Current Liabilities",0]
[100,"Total Cash",0,{"$f":"SUM(D5:D9)","v":0}]
[" "," "]
[121,"Accounts Receivable - PHA Projects",{"$f":"SUM($D12:$DY12)","v":0}]
["122-010","Operating Subsidy",0]
["122-020","Capital Fund",0]
["122-030","Other",0]
[122," Accounts Receivable - HUD Other Projects",0,{"$f":"D15+D14+D13","v":0}]
[124,"Accounts Receivable - Other Government",0]
["125-010","Not For Profit",0]
["125-020","Partnership",0]
["125-030","Joint Venture",0]
["125-040","Tax Credit",0]
["125-050","Other",0]
["125-060","Other Comments"]
[125,"Accounts Receivable - Miscellaneous",{"$f":"SUM($D24:$DY24)","v":0},{"$f":"SUM(D18:D22)","v":0}]
[126,"Accounts Receivable - Tenants",0]
[126.1,"Allowance for Doubtful Accounts -Tenants",0]
[126.2,"Allowance for Doubtful Accounts - Other",0]
[127,"Notes, Loans, & Mortgages Receivable - Current",0]
[128,"Fraud Recovery",0]
[128.1,"Allowance for Doubtful Accounts - Fraud",0]
[129,"Accrued Interest Receivable",0]
[120,"Total Receivables, Net of Allowances for Doubtful Accounts",0,{"$f":"SUM(D24:D31,D17,D16,D12)","v":0}]
[" "," "]
[131,"Investments - Unrestricted",{"$f":"SUM($D34:$DY34)","v":0}]
[132,"Investments - Restricted",0]
[135,"Investments - Restricted for Payment of Current Liability",0]
[142,"Prepaid Expenses and Other Assets",0]
[143,"Inventories",0]
[143.1,"Allowance for Obsolete Inventories",0]
[144,"Inter Program Due From",0]
[145,"Assets Held for Sale",0]
[150,"Total Current Assets",0,{"$f":"SUM(D34:D41,D32,D10)","v":0}]
[" "," "]
[161,"Land",{"$f":"SUM($D44:$DY44)","v":0}]
[162,"Buildings",0]
[163,"Furniture, Equipment & Machinery - Dwellings",0]
[164,"Furniture, Equipment & Machinery - Administration",0]
[165,"Leasehold Improvements",0]
[166,"Accumulated Depreciation",0]
[167,"Construction in Progress",0]
[168,"Infrastructure",0]
[160,"Total Capital Assets, Net of Accumulated Depreciation",0,{"$f":"SUM(D44:D51)","v":0}]
[" "," "]
["171-010","Not For Profit",{"$f":"SUM($D54:$DY54)","v":0}]
["171-020","Partnership",{"$f":"SUM($D55:$DY55)","v":0}]
["171-030","Joint Venture",{"$f":"SUM($D56:$DY56)","v":0}]
["171-040","Tax Credit",{"$f":"SUM($D57:$DY57)","v":0}]
["171-050","Other",{"$f":"SUM($D58:$DY58)","v":0}]
["171-060","Other Comments"]
[171,"Notes, Loans and Mortgages Receivable - Non-Current",{"$f":"SUM($D60:$DY60)","v":0},{"$f":"SUM(D54:D58)","v":0}]
["172-010","Not For Profit",0]
["172-020","Partnership",0]
["172-030","Joint Venture",0]
["172-040","Tax Credit",0]
["172-050","Other",0]
["172-060","Other Comments"]
[172,"Notes, Loans, & Mortgages Receivable - Non Current - Past Due",{"$f":"SUM($D67:$DY67)","v":0},{"$f":"SUM(D61:D65)","v":0}]
[173,"Grants Receivable - Non Current",0]
["174-010","Not For Profit",0]
["174-020","Partnership",0]
["174-030","Joint Venture",0]
["174-040","Tax Credit",0]
["174-050","Other",0]
["174-060","Other Comments"]
[174,"Other Assets",{"$f":"SUM($D75:$DY75)","v":0},{"$f":"SUM(D69:D73)","v":0}]
["176-010","Not For Profit",0]
["176-020","Partnership",0]
["176-030","Joint Venture",0]
["176-040","Tax Credit",0]
["176-050","Other",0]
["176-060","Other Comments"]
[176,"Investments in Joint Ventures",{"$f":"SUM($D82:$DY82)","v":0},{"$f":"SUM(D76:D80)","v":0}]
[180," Total Non-Current Assets",{"$f":"SUM($D83:$DY83)","v":0},{"$f":"+D82+D75+D68+D67+D60+D52","v":0}]
[" "," "]
[190,"Total Assets",{"$f":"SUM($D85:$DY85)","v":0},{"$f":"+D83+D42","v":0}]
[]
[200,"Deferred Outflow of Resources",{"$f":"SUM($D87:$DY87)","v":0}]
[]
[290,"Total Assests and Deferred Outflow of Resources",{"$f":"SUM($D89:$DY89)","v":0},{"$f":"D87+D85","v":0}]
[" "," "]
[311,"Bank Overdraft",{"$f":"SUM($D91:$DY91)","v":0}]
[312,"Accounts Payable <= 90 Days",0]
[313,"Accounts Payable >90 Days Past Due",0]
[321,"Accrued Wage/Payroll Taxes Payable",0]
[322,"Accrued Compensated Absences - Current Portion",0]
[324,"Accrued Contingency Liability",0]
[325,"Accrued Interest Payable",0]
["331-010","Operating Subsidy",0]
["331-020","Capital Fund",0]
["331-030","Other",0]
[331,"Accounts Payable - HUD PHA Programs",0,{"$f":"SUM(D98:D100)","v":0}]
[332,"Account Payable - PHA Projects",0]
[333,"Accounts Payable - Other Government",0]
[341,"Tenant Security Deposits",0]
["342-010","Operating Subsidy",0]
["342-020","Capital Fund",0]
["342-030","Other",0]
[342,"Deferred Revenues",0,{"$f":"SUM(D105:D107)","v":0}]
["343-010","CFFP",0]
["343-020","Capital Projects/Mortgage Revenue",0]
["343-030","EPC Related Debt",0]
[343,"Current Portion of Long-term Debt - Capital Projects/Mortgage ",0,{"$f":"+D109+D110+D111","v":0}]
[344,"Current Portion of Long-term Debt - Operating Borrowings",0]
[345,"Other Current Liabilities",0]
[346," Accrued Liabilities - Other",0]
[347,"Inter Program - Due To",0]
["348-010","Not For Profit",0]
["348-020","Partnership",0]
["348-030","Joint Venture",0]
["348-040","Tax Credit",0]
["348-050","Other",0]
["348-060","Other Comments"]
[348,"Loan Liability - Current",{"$f":"SUM($D123:$DY123)","v":0},{"$f":"SUM(D117:D121)","v":0}]
[310,"Total Current Liabilities",{"$f":"SUM($D124:$DY124)","v":0},{"$f":"SUM(D123,D112:D116,D108,D101:D104,D91:D97)","v":0}]
[" "," "]
["351-010","CFFP",{"$f":"SUM($D126:$DY126)","v":0}]
["351-020","Capital Projects/Mortgage Revenue",0]
[351,"Long-term Debt, Net of Current - Capital Projects/Mortgage Revenue",0,{"$f":"+D126+D127","v":0}]
[352,"Long-term Debt, Net of Current - Operating Borrowings",0]
[353,"Non-current Liabilities - Other",0]
[354,"Accrued Compensated Absences - Non Current",0]
["355-010","Not For Profit",0]
["355-020","Partnership",0]
["355-030","Joint Venture",0]
["355-040","Tax Credit",0]
["355-050","Other",0]
["355-060","Other Comments"]
[355,"Loan Liability - Non Current",{"$f":"SUM($D138:$DY138)","v":0},{"$f":"SUM(D132:D136)","v":0}]
[356,"FASB 5 Liabilities",0]
["357-010","Pension Liability",0]
["357-020","OPEB Liability",0]
[357,"Accrued Pension and OPEB Liabilities",0,{"$f":"+D140+D141","v":0}]
[357,"Accrued Pension and OPEB Liabilities",0]
[350,"Total Non-Current Liabilities",0,{"$f":"SUM(D138:D141,D128:D131)+D143","v":0}]
[" "," "]
[300,"Total Liabilities",{"$f":"SUM($D146:$DY146)","v":0},{"$f":"+D144+D124","v":0}]
[]
[400,"Deferred Inflow of Resources",{"$f":"SUM($D148:$DY148)","v":0}]
[" "," "]
[508.1,"Invested In Capital Assets, Net of Related Debt",{"$f":"SUM($D150:$DY150)","v":0}]
[511.1,"Restricted Net Assets",{"$f":"SUM($D151:$DY151)","v":0}]
[512.1,"Unrestricted Net Assets",{"$f":"SUM($D152:$DY152)","v":0}]
[513,"Total Equity/Net Assets",{"$f":"SUM($D153:$DY153)","v":0},{"$f":"SUM(D150:D152)","v":0}]
[]
[509.2,"Fund Balance Reserved",{"$f":"SUM($D155:$DY155)","v":0}]
[511.2,"Unreserved, Designated Fund Balance",{"$f":"SUM($D156:$DY156)","v":0}]
[512.20000000000005,"Unreserved, Undesignated Fund Balance",{"$f":"SUM($D157:$DY157)","v":0}]
[513,"Total Equity/Net Assets",{"$f":"SUM($D158:$DY158)","v":0},{"$f":"SUM(D155:D157)","v":0}]
[]
[508.3,"Nonspendable Fund Balance",{"$f":"SUM($D160:$DY160)","v":0}]
[509.3,"Restricted Fund Balance",0]
[510.3,"Committed Fund Balance",0]
[511.3,"Assigned Fund Balance",0]
[512.29999999999995,"Unassigned Fund Balance",0]
[513,"Total Equity/Net Assets",0,{"$f":"SUM(D160:D164)","v":0}]
[]
[508.4,"Net Investment in Capital Assets",{"$f":"SUM($D167:$DY167)","v":0}]
[511.4,"Restricted Net Position",{"$f":"SUM($D168:$DY168)","v":0}]
[512.4,"Unrestricted Net Position",{"$f":"SUM($D169:$DY169)","v":0}]
[513,"Total Equity - Net Assets / Position",{"$f":"SUM($D170:$DY170)","v":0},{"$f":"SUM(D167:D169)","v":0}]
[]
[600,"Total Liab., Def. Inflow of Res., and Equity - Net Assets / Position",{"$f":"SUM($D172:$DY172)","v":0},{"$f":"+D170+D165+D148+D146","v":0}]
[" "," "]
[600,"Total Liabilities and Equity/Net Assets",{"$f":"SUM($D174:$DY174)","v":0},{"$f":"+D158+D153+D146","v":0}]

{"sheet":"Project IS","index":4,"n_rows":180,"n_cols":5,"rows_kept":180,"cut":false,"hidden":false,"merged":[]}
["PHA",{"$f":"'PHA Info'!C12&\" \"&'PHA Info'!C13","v":"Select PHA Code "},null,1,1]
["FDS Submission",{"$f":"TEXT('PHA Info'!C18,\"mm\")&\"/\"&TEXT('PHA Info'!C18,\"dd\")&\"/\"&TEXT('PHA Info'!C18,\"yyyy\")&\"  \"&'PHA Info'!C17","v":"Select Fiscal Year End/Select Fiscal Year End/Select Fiscal Year End  Select Submission Type"}]
["Financial Statement","Project Income Statement"]
["FDS Line Item","Description","Total",{"$f":"INDIRECT(\"'Project BS'!\"&VLOOKUP(D1,Sheet3!$K$3:$M$202,3,0)&\"4\")","v":0},{"$f":"INDIRECT(\"'Project BS'!\"&VLOOKUP(E1,Sheet3!$K$3:$M$202,3,0)&\"4\")","v":0}]
[null,null,null,"14.850",14.872]
[70300,"Net Tenant Rental Revenue",{"$f":"SUM($D6:$EH6)","v":0}]
[70400,"Tenant Revenue - Other",{"$f":"SUM($D7:$EH7)","v":0}]
[70500,"Total Tenant Revenue",{"$f":"SUM($D8:$EH8)","v":0},{"$f":"D7+D6","v":0},{"$f":"E7+E6","v":0}]
[" "," "]
[70600,"HUD PHA Operating Grants",{"$f":"SUM($D10:$EH10)","v":0}]
[70610,"Capital Grants",0]
[70710,"Management Fee",0]
[70720,"Asset Management Fee",0]
[70730," Book Keeping Fee",0]
[70740,"Front Line Service Fee",0]
[70750,"Other Fees",0]
[70700,"Total Fee Revenue",0,{"$f":"SUM(D12:D16)","v":0},{"$f":"SUM(E12:E16)","v":0}]
[" "," "]
[70800,"Other Government Grants",{"$f":"SUM($D19:$EH19)","v":0}]
[71100,"Investment Income - Unrestricted",0]
[71200,"Mortgage Interest Income",0]
[71300,"Proceeds from Disposition of Assets Held for Sale",0]
[71310,"Cost of Sale of Assets",0]
[71400,"Fraud Recovery",0]
[71500,"Other Revenue",0]
[71600,"Gain or Loss on Sale of Capital Assets",0]
[72000,"Investment Income - Restricted",0]
[70000,"Total Revenue",0,{"$f":"SUM(D19:D27,D17,D8,D10,D11)","v":0},{"$f":"SUM(E19:E27,E17,E8,E10,E11)","v":0}]
[" "," "]
[91100,"Administrative Salaries",{"$f":"SUM($D30:$EH30)","v":0}]
[91200,"Auditing Fees",{"$f":"SUM($D31:$EH31)","v":0}]
["91300-010","To PHA Administered Program (i.e., COCC)",{"$f":"SUM($D32:$EH32)","v":0}]
["91300-020","To a Third Party/Outside Entity",{"$f":"SUM($D33:$EH33)","v":0}]
[91300,"Management Fee",{"$f":"SUM($D34:$EH34)","v":0},{"$f":"SUM(D32:D33)","v":0},{"$f":"SUM(E32:E33)","v":0}]
[91300,"Management Fee",0]
[91310,"Book-keeping Fee",{"$f":"SUM($D36:$EH36)","v":0}]
[91400,"Advertising and Marketing",0]
[91500,"Employee Benefit contributions - Administrative",0]
[91600,"Office Expenses",0]
[91700,"Legal Expense",0]
[91800," Travel",0]
[91810,"Allocated Overhead",0]
[91900,"Other",0]
[91000,"Total Operating - Administrative",0,{"$f":"SUM(D30:D31,D34:D43)","v":0},{"$f":"SUM(E30:E31,E34:E43)","v":0}]
[" "," "]
[92000,"Asset Management Fee",{"$f":"SUM($D46:$EH46)","v":0}]
[92100,"Tenant Services - Salaries",0]
[92200,"Relocation Costs",0]
[92300,"Employee Benefit Contributions - Tenant Services",0]
[92400,"Tenant Services - Other",0]
[92500,"Total Tenant Services",0,{"$f":"SUM(D47:D50)","v":0},{"$f":"SUM(E47:E50)","v":0}]
[" "," "]
[93100," Water",{"$f":"SUM($D53:$EH53)","v":0}]
[93200,"Electricity",0]
[93300,"Gas",0]
[93400,"Fuel",0]
[93500," Labor",0]
[93600,"Sewer",0]
[93700," Employee Benefit Contributions - Utilities",0]
[93800," Other Utilities Expense",0]
[93000,"Total Utilities",0,{"$f":"SUM(D53:D60)","v":0},{"$f":"SUM(E53:E60)","v":0}]
[" "," "]
[94100,"Ordinary Maintenance and Operations - Labor",{"$f":"SUM($D63:$EH63)","v":0}]
[94200," Ordinary Maintenance and Operations - Materials and Other",0]
["94300-010","Garbage and Trash Removal Contracts  ",0]
["94300-020","Heating & Cooling Contracts  ",0]
["94300-030","Snow Removal Contracts  ",0]
["94300-040","Elevator Maintenance Contracts  ",0]
["94300-050","Landscape & Grounds Contracts  ",0]
["94300-060","Unit Turnaround Contracts  ",0]
["94300-070","Electrical Contracts  ",0]
["94300-080","Plumbing Contracts  ",0]
["94300-090","Extermination Contracts  ",0]
["94300-100","Janitorial Contracts  ",0]
["94300-110","Routine Maintenance Contracts  ",0]
["94300-120","Miscellaneous Contracts",0]
[94300,"Ordinary Maintenance and Operations Contracts",0,{"$f":"SUM(D65:D76)","v":0},{"$f":"SUM(E65:E76)","v":0}]
[94500,"Employee Benefit Contributions - Ordinary Maintenance",0]
[94000," Total Maintenance",0,{"$f":"D78+D77+D64+D63","v":0},{"$f":"E78+E77+E64+E63","v":0}]
[" "," "]
[95100,"Protective Services - Labor",{"$f":"SUM($D81:$EH81)","v":0}]
[95200,"Protective Services - Other Contract Costs",{"$f":"SUM($D82:$EH82)","v":0}]
[95300,"Protective Services - Other",{"$f":"SUM($D83:$EH83)","v":0}]
[95500,"Employee Benefit Contributions - Protective Services",{"$f":"SUM($D84:$EH84)","v":0}]
[95000,"Total Protective Services",{"$f":"SUM($D85:$EH85)","v":0},{"$f":"SUM(D81:D84)","v":0},{"$f":"SUM(E81:E84)","v":0}]
[" "," "]
[96110,"Property Insurance",{"$f":"SUM($D87:$EH87)","v":0}]
[96120,"Liability Insurance",{"$f":"SUM($D88:$EH88)","v":0}]
[96130,"Workmen's Compensation",{"$f":"SUM($D89:$EH89)","v":0}]
[96140,"All Other Insurance",{"$f":"SUM($D90:$EH90)","v":0}]
[96100,"Total insurance Premiums",{"$f":"SUM($D91:$EH91)","v":0},{"$f":"SUM(D87:D90)","v":0},{"$f":"SUM(E87:E90)","v":0}]
[" "," "]
[96200,"Other General Expenses",{"$f":"SUM($D93:$EH93)","v":0}]
[96210,"Compensated Absences",0]
[96300,"Payments in Lieu of Taxes",0]
[96400,"Bad debt - Tenant Rents",0]
[96500,"Bad debt - Mortgages",0]
[96600,"Bad debt - Other",0]
[96800,"Severance Expense",0]
[96000,"Total Other General Expenses",0,{"$f":"SUM(D93:D99)","v":0},{"$f":"SUM(E93:E99)","v":0}]
[" "," "]
[96710,"Interest of Mortgage (or Bonds) Payable",{"$f":"SUM($D102:$EH102)","v":0}]
["96720-010","Interest on EPC Related Debt",{"$f":"SUM(D103:E103)","v":0}]
["96720-020","Interest on All Other Debt",{"$f":"SUM(D104:E104)","v":0}]
[96720,"Interest on Notes Payable (Short and Long Term)",{"$f":"SUM($D105:$EH105)","v":0},{"$f":"SUM(D103:D104)","v":0},{"$f":"SUM(E103:E104)","v":0}]
[96730,"Amortization of Bond Issue Costs",{"$f":"SUM($D106:$EH106)","v":0}]
[96700,"Total Interest Expense and Amortization Cost",{"$f":"SUM($D107:$EH107)","v":0},{"$f":"D106+D105+D102","v":0},{"$f":"E106+E105+E102","v":0}]
[" "," "]
[96900,"Total Operating Expenses",{"$f":"SUM($D109:$EH109)","v":0},{"$f":"+D107+D100+D91+D85+D79+D61+D51+D44+D46","v":0},{"$f":"+E107+E100+E91+E85+E79+E61+E51+E44+E46","v":0}]
[" "," "]
[97000,"Excess of Operating Revenue over Operating Expenses",{"$f":"SUM($D111:$EH111)","v":0},{"$f":"D28-D109","v":0},{"$f":"E28-E109","v":0}]
[" "," "]
[97100,"Extraordinary Maintenance",{"$f":"SUM($D113:$EH113)","v":0}]
[97200,"Casualty Losses - Non-capitalized",0]
[97300,"Housing Assistance Payments",0]
[97350,"HAP Portability-In",0]
[97400,"Depreciation Expense",0]
[97500,"Fraud Losses",0]
[97600,"Capital Outlays  - Governmental Funds",0]
[97700,"Debt Principal Payment - Governmental Funds",0]
[97800,"Dwelling Units Rent Expense",0]
[90000," Total Expenses",0,{"$f":"SUM(D113:D121,D109)","v":0},{"$f":"SUM(E113:E121,E109)","v":0}]
[" "," "]
[10010,"Operating Transfer In",{"$f":"SUM($D124:$EH124)","v":0}]
[10020,"Operating transfer Out",0]
["10030-010","Not For Profit  ",0]
["10030-020","Partnership  ",0]
["10030-030","Joint Venture  ",0]
["10030-040","Tax Credit  ",0]
["10030-050","Other",0]
["10030-060","Other Comments"]
[10030,"Operating Transfers from/to Primary Government",{"$f":"SUM($D132:$EH132)","v":0},{"$f":"SUM(D126:D130)","v":0},{"$f":"SUM(E126:E130)","v":0}]
[10040,"Operating Transfers from/to Component Unit",0]
[10050,"Proceeds from Notes, Loans and Bonds",0]
[10060,"Proceeds from Property Sales",0]
[10070,"Extraordinary Items, Net Gain/Loss",0]
[10080,"Special Items (Net Gain/Loss)",0]
[10091,"Inter Project Excess Cash Transfer In",0]
[10092,"Inter Project Excess Cash Transfer Out",0]
[10093,"Transfers between Program and Project - In",0]
[10094,"Transfers between Project and Program - Out",0]
[10100,"Total Other financing Sources (Uses)",0,{"$f":"SUM(D132:D141,D125,D124)","v":0},{"$f":"SUM(E132:E141,E125,E124)","v":0}]
[" "," "]
[10000,"Excess (Deficiency) of Total Revenue Over (Under) Total ",{"$f":"SUM($D144:$EH144)","v":0},{"$f":"+D28-D122+D142","v":0},{"$f":"+E28-E122+E142","v":0}]
[" "," "]
["11020-010","Principal on EPC Related Debt",{"$f":"SUM($D146:$EH146)","v":0}]
["11020-020","Principal on All Other Debt",0]
[11020,"Required Annual Debt Principal Payments",0,{"$f":"SUM(D146:D147)","v":0},{"$f":"SUM(E146:E147)","v":0}]
[11030,"Beginning Equity",0]
["11040-010","Prior Period Adjustments and Correction of Errors",0]
["11040-020","Prior Period Adjustments and Correction of Errors",0]
["11040-030","Prior Period Adjustments and Correction of Errors",0]
["11040-040","Prior Period Adjustments and Correction of Errors",0]
["11040-050","Prior Period Adjustments and Correction of Errors",0]
["11040-060","Prior Period Adjustments and Correction of Errors",0]
["11040-070","Equity Transfers",0]
["11040-080","Equity Transfers",0]
["11040-090","Equity Transfers",0]
["11040-100","Equity Transfers",0]
["11040-110","Equity Transfers",0]
[11040,"Prior Period Adjustments, Equity Transfers and Correction of ",0,{"$f":"SUM(D150:D160)","v":0},{"$f":"SUM(E150:E160)","v":0}]
[11050,"Changes in Compensated Absence Balance",0]
[11060,"Changes in Contingent Liability Balance",0]
[11070,"Changes in Unrecognized Pension Transition Liability",0]
[11080,"Changes in Special Term/Severance Benefits Liability",0]
[11090,"Changes in Allowance for Doubtful Accounts - Dwelling Rents",0]
[11100,"Changes in Allowance for Doubtful Accounts - Other",0]
[11170,"Administrative Fee Equity",0]
[11180,"Housing Assistance Payments Equity",0]
[11190,"Unit Months Available",0]
[11210,"Number of Unit Months Leased",0]
[11270,"Excess Cash",0]
[11610,"Land Purchases",0]
[11620,"Building Purchases",0]
[11630,"Furniture & Equipment - Dwelling Purchases",0]
[11640,"Furniture & Equipment - Administrative Purchases",0]
[11650,"Leasehold Improvements Purchases",0]
[11660,"Infrastructure Purchases",0]
[13510,"CFFP Debt Service Payments",0]
[13901,"Replacement Housing Factor Funds",0]

{"sheet":"Program BS","index":5,"n_rows":118,"n_cols":4,"rows_kept":118,"cut":false,"hidden":false,"merged":[]}
["PHA",{"$f":"'PHA Info'!C12&\" \"&'PHA Info'!C13","v":"Select PHA Code "}]
["FDS Submission",{"$f":"TEXT('PHA Info'!C18,\"mm\")&\"/\"&TEXT('PHA Info'!C18,\"dd\")&\"/\"&TEXT('PHA Info'!C18,\"yyyy\")&\"  \"&'PHA Info'!C17","v":"Select Fiscal Year End/Select Fiscal Year End/Select Fiscal Year End  Select Submission Type"}]
["Financial Statement","Program Balance Sheet"]
["FDS Line Item","Description","Total"]
[111,"Cash - Unrestricted",{"$f":"SUM($D5:$IV5)","v":0}]
[112,"Cash - Restricted - Modernization and Development",0]
[113,"Cash - Other Restricted",0]
[114,"Cash - Tenant Security Deposits",0]
[115,"Cash - Restricted for Payment of Current Liabilities",0]
[100,"Total Cash",0,{"$f":"SUM(D5:D9)","v":0}]
[" "," "]
[121,"Accounts Receivable - PHA Projects",{"$f":"SUM($D12:$IV12)","v":0}]
[122," Accounts Receivable - HUD Other Projects",0]
[124,"Accounts Receivable - Other Government",0]
[125,"Accounts Receivable - Miscellaneous",0]
[126,"Accounts Receivable - Tenants",0]
[126.1,"Allowance for Doubtful Accounts -Tenants",0]
[126.2,"Allowance for Doubtful Accounts - Other",0]
[127,"Notes, Loans, & Mortgages Receivable - Current",0]
[128,"Fraud Recovery",0]
[128.1,"Allowance for Doubtful Accounts - Fraud",0]
[129,"Accrued Interest Receivable",0]
[120,"Total Receivables, Net of Allowances for Doubtful Accounts",0,{"$f":"SUM(D12:D22)","v":0}]
[" "," "]
[131,"Investments - Unrestricted",{"$f":"SUM($D25:$IV25)","v":0}]
[132,"Investments - Restricted",0]
[135,"Investments - Restricted for Payment of Current Liability",0]
[142,"Prepaid Expenses and Other Assets",0]
[143,"Inventories",0]
[143.1,"Allowance for Obsolete Inventories",0]
[144,"Inter Program Due From",0]
[145,"Assets Held for Sale",0]
[150,"Total Current Assets",0,{"$f":"SUM(D25:D32,D23,D10)","v":0}]
[" "," "]
[161,"Land",{"$f":"SUM($D35:$IV35)","v":0}]
[162,"Buildings",0]
[163,"Furniture, Equipment & Machinery - Dwellings",0]
[164,"Furniture, Equipment & Machinery - Administration",0]
[165,"Leasehold Improvements",0]
[166,"Accumulated Depreciation",0]
[167,"Construction in Progress",0]
[168,"Infrastructure",0]
[160,"Total Capital Assets, Net of Accumulated Depreciation",0,{"$f":"SUM(D35:D42)","v":0}]
[" "," "]
[171,"Notes, Loans and Mortgages Receivable - Non-Current",{"$f":"SUM($D45:$IV45)","v":0}]
[172,"Notes, Loans, & Mortgages Receivable - Non Current - Past Due",0]
[173,"Grants Receivable - Non Current",0]
[174,"Other Assets",0]
[176,"Investments in Joint Ventures",0]
[180," Total Non-Current Assets",0,{"$f":"SUM(D45:D49,D43)","v":0}]
[" "," "]
[190,"Total Assets",{"$f":"SUM($D52:$IV52)","v":0},{"$f":"+D50+D33","v":0}]
[]
[200,"Deferred Outflow of Resources",{"$f":"SUM($D54:$IV54)","v":0},0]
[" "," "]
[290,"Total Assests and Deferred Outflow of Resources",{"$f":"SUM($D56:$IV56)","v":0},{"$f":"+D54+D52","v":0}]
[]
[311,"Bank Overdraft",{"$f":"SUM($D58:$IV58)","v":0}]
[312,"Accounts Payable <= 90 Days",0]
[313,"Accounts Payable >90 Days Past Due",0]
[321,"Accrued Wage/Payroll Taxes Payable",0]
[322,"Accrued Compensated Absences - Current Portion",0]
[324,"Accrued Contingency Liability",0]
[325,"Accrued Interest Payable",0]
[331,"Accounts Payable - HUD PHA Programs",0]
[332,"Account Payable - PHA Projects",0]
[333,"Accounts Payable - Other Government",0]
[341,"Tenant Security Deposits",0]
[342,"Deferred Revenues",0]
[343,"Current Portion of Long-term Debt - Capital Projects/Mortgage ",0]
[344,"Current Portion of Long-term Debt - Operating Borrowings",0]
[345,"Other Current Liabilities",0]
[346," Accrued Liabilities - Other",0]
[347,"Inter Program - Due To",0]
[348,"Loan Liability - Current",0]
[310,"Total Current Liabilities",0,{"$f":"SUM(D58:D75)","v":0}]
[" "," "]
[351,"Long-term Debt, Net of Current - Capital Projects/Mortgage Revenue",{"$f":"SUM($D78:$IV78)","v":0}]
[352,"Long-term Debt, Net of Current - Operating Borrowings",0]
[353,"Non-current Liabilities - Other",0]
[354,"Accrued Compensated Absences - Non Current",0]
[355,"Loan Liability - Non Current",0]
[356,"FASB 5 Liabilities",0]
["357-010","Pension Liability",0]
["357-020","OPEB Liability",0]
[357,"Accrued Pension and OPEB Liabilities",0,{"$f":"+D84+D85","v":0}]
[357,"Accrued Pension and OPEB Liabilities",0]
[350,"Total Non-Current Liabilities",{"$f":"SUM($D88:$IV88)","v":0},{"$f":"SUM(D78:D83,D86)+D87","v":0}]
[" "," "]
[300,"Total Liabilities",{"$f":"SUM($D90:$IV90)","v":0},{"$f":"+D88+D76","v":0}]
[]
[400,"Deferrred Inflow of Resources",{"$f":"SUM($D92:$IV92)","v":0}]
[" "," "]
[508.1,"Invested In Capital Assets, Net of Related Debt",{"$f":"SUM($D94:$IV94)","v":0}]
[511.1,"Restricted Net Assets",{"$f":"SUM($D95:$IV95)","v":0}]
[512.1,"Unrestricted Net Assets",{"$f":"SUM($D96:$IV96)","v":0}]
[513,"Total Equity/Net Assets",{"$f":"SUM($D97:$IV97)","v":0},{"$f":"SUM(D94:D96)","v":0}]
[" "," "]
[509.2,"Fund Balance Reserved",{"$f":"SUM($D99:$IV99)","v":0}]
[511.2,"Unreserved, Designated Fund Balance",{"$f":"SUM($D100:$IV100)","v":0}]
[512.20000000000005,"Unreserved, Undesignated Fund Balance",{"$f":"SUM($D101:$IV101)","v":0}]
[513,"Total Equity/Net Assets",{"$f":"SUM($D102:$IV102)","v":0},{"$f":"SUM(D99:D101)","v":0}]
[]
[508.3,"Nonspendable Fund Balance",{"$f":"SUM($D104:$IV104)","v":0}]
[509.3,"Restricted Fund Balance",0]
[510.3,"Committed Fund Balance",0]
[511.3,"Assigned Fund Balance",0]
[512.29999999999995,"Unassigned Fund Balance",0]
[513,"Total Equity/Net Assets",0,{"$f":"SUM(D104:D108)","v":0}]
[]
[508.4,"Net Investment in Capital Assets",{"$f":"SUM($D111:$IV111)","v":0}]
[511.4,"Restricted Net Position",{"$f":"SUM($D112:$IV112)","v":0}]
[512.4,"Unrestricted Net Position",{"$f":"SUM($D113:$IV113)","v":0}]
[513,"Total Equity - Net Assets / Position",{"$f":"SUM($D114:$IV114)","v":0},{"$f":"SUM(D111:D113)","v":0}]
[]
[600,"Total Liab., Def. Inflow of Res., and Equity - Net Assets / Position",{"$f":"SUM($D116:$IV116)","v":0},{"$f":"+D114+D109+D92+D90","v":0}]
[" "," "]
[600,"Total Liabilities and Equity/Net Assets",{"$f":"SUM($D118:$IV118)","v":0},{"$f":"+D102+D97+D90","v":0}]

{"sheet":"Program IS","index":6,"n_rows":157,"n_cols":4,"rows_kept":157,"cut":false,"hidden":false,"merged":[]}
["PHA",{"$f":"'PHA Info'!C12&\" \"&'PHA Info'!C13","v":"Select PHA Code "},null,0]
["FDS Submission",{"$f":"TEXT('PHA Info'!C18,\"mm\")&\"/\"&TEXT('PHA Info'!C18,\"dd\")&\"/\"&TEXT('PHA Info'!C18,\"yyyy\")&\"  \"&'PHA Info'!C17","v":"Select Fiscal Year End/Select Fiscal Year End/Select Fiscal Year End  Select Submission Type"}]
["Financial Statement","Program Income Statement"]
["FDS Line Item","Description","Total",{"$f":"IFERROR(INDIRECT(\"'Program BS'!\"&VLOOKUP(D1,Sheet3!$K$3:$M$202,3,0)&\"4\"),\"\")","v":""}]
[70300,"Net Tenant Rental Revenue",{"$f":"SUM($D5:$IV5)","v":0}]
[70400,"Tenant Revenue - Other",0]
[70500,"Total Tenant Revenue",0,{"$f":"SUM(D5:D6)","v":0}]
[" "," ",0]
[70600,"HUD PHA Operating Grants",0]
[70610,"Capital Grants",0]
[70710,"Management Fee",0]
[70720,"Asset Management Fee",0]
[70730," Book Keeping Fee",0]
[70740,"Front Line Service Fee",0]
[70750,"Other Fees",0]
[70700,"Total Fee Revenue",0,{"$f":"SUM(D11:D15)","v":0}]
[" "," "]
[70800,"Other Government Grants",{"$f":"SUM($D18:$IV18)","v":0}]
[71100,"Investment Income - Unrestricted",0]
[71200,"Mortgage Interest Income",0]
[71300,"Proceeds from Disposition of Assets Held for Sale",0]
[71310,"Cost of Sale of Assets",0]
[71400,"Fraud Recovery",0]
[71500,"Other Revenue",0]
[71600,"Gain or Loss on Sale of Capital Assets",0]
[72000,"Investment Income - Restricted",0]
[70000,"Total Revenue",0,{"$f":"SUM(D18:D26,D16,D7,D9,D10)","v":0}]
[" "," "]
[91100,"Administrative Salaries",{"$f":"SUM($D29:$IV29)","v":0}]
[91200,"Auditing Fees",0]
["91300-010","To PHA Administered Program (i.e., COCC)",0]
["91300-020","To a Third Party/Outside Entity",0]
[91300,"Management Fee",0,{"$f":"SUM(D31:D32)","v":0}]
[91300,"Management Fee",0]
[91310,"Book-keeping Fee",0]
[91400,"Advertising and Marketing",0]
[91500,"Employee Benefit contributions - Administrative",0]
[91600,"Office Expenses",0]
[91700,"Legal Expense",0]
[91800," Travel",0]
[91810,"Allocated Overhead",0]
[91900,"Other",0]
[91000,"Total Operating - Administrative",0,{"$f":"SUM(D29:D30,D33:D42)","v":0}]
[" "," "]
[92000,"Asset Management Fee",{"$f":"SUM($D45:$IV45)","v":0}]
[92100,"Tenant Services - Salaries",0]
[92200,"Relocation Costs",0]
[92300,"Employee Benefit Contributions - Tenant Services",0]
[92400,"Tenant Services - Other",0]
[92500,"Total Tenant Services",0,{"$f":"SUM(D45:D49)","v":0}]
[" "," "]
[93100," Water",{"$f":"SUM($D52:$IV52)","v":0}]
[93200,"Electricity",0]
[93300,"Gas",0]
[93400,"Fuel",0]
[93500," Labor",0]
[93600,"Sewer",0]
[93700," Employee Benefit Contributions - Utilities",0]
[93800," Other Utilities Expense",0]
[93000,"Total Utilities",0,{"$f":"SUM(D52:D59)","v":0}]
[" "," "]
[94100,"Ordinary Maintenance and Operations - Labor",{"$f":"SUM($D62:$IV62)","v":0}]
[94200," Ordinary Maintenance and Operations - Materials and Other",{"$f":"SUM($D63:$IV63)","v":0}]
[94300,"Ordinary Maintenance and Operations Contracts",{"$f":"SUM($D64:$IV64)","v":0}]
[94500,"Employee Benefit Contributions - Ordinary Maintenance",{"$f":"SUM($D65:$IV65)","v":0}]
[94000," Total Maintenance",{"$f":"SUM($D66:$IV66)","v":0},{"$f":"SUM(D62:D65)","v":0}]
[" "," "]
[95100,"Protective Services - Labor",{"$f":"SUM($D68:$IV68)","v":0}]
[95200,"Protective Services - Other Contract Costs",{"$f":"SUM($D69:$IV69)","v":0}]
[95300,"Protective Services - Other",{"$f":"SUM($D70:$IV70)","v":0}]
[95500,"Employee Benefit Contributions - Protective Services",{"$f":"SUM($D71:$IV71)","v":0}]
[95000,"Total Protective Services",{"$f":"SUM($D72:$IV72)","v":0},{"$f":"SUM(D68:D71)","v":0}]
[" "," "]
[96110,"Property Insurance",{"$f":"SUM($D74:$IV74)","v":0}]
[96120,"Liability Insurance",{"$f":"SUM($D75:$IV75)","v":0}]
[96130,"Workmen's Compensation",{"$f":"SUM($D76:$IV76)","v":0}]
[96140,"All Other Insurance",{"$f":"SUM($D77:$IV77)","v":0}]
[96100,"Total insurance Premiums",{"$f":"SUM($D78:$IV78)","v":0},{"$f":"SUM(D74:D77)","v":0}]
[" "," "]
[96200,"Other General Expenses",{"$f":"SUM($D80:$IV80)","v":0}]
[96210,"Compensated Absences",0]
[96300,"Payments in Lieu of Taxes",0]
[96400,"Bad debt - Tenant Rents",0]
[96500,"Bad debt - Mortgages",0]
[96600,"Bad debt - Other",0]
[96800,"Severance Expense",0]
[96000,"Total Other General Expenses",0,{"$f":"SUM(D80:D86)","v":0}]
[" "," "]
[96710,"Interest of Mortgage (or Bonds) Payable",{"$f":"SUM($D89:$IV89)","v":0}]
[96720,"Interest on Notes Payable (Short and Long Term)",0]
[96730,"Amortization of Bond Issue Costs",0]
[96700,"Total Interest Expense and Amortization Cost",0,{"$f":"SUM(D89:D91)","v":0}]
[" "," ",0]
[96900,"Total Operating Expenses",0,{"$f":"+D92+D87+D78+D72+D66+D60+D50+D43","v":0}]
[" "," ",0]
[97000,"Excess of Operating Revenue over Operating Expenses",0,{"$f":"+D27-D94","v":0}]
[" "," "]
[97100,"Extraordinary Maintenance",{"$f":"SUM($D98:$IV98)","v":0}]
[97200,"Casualty Losses - Non-capitalized",0]
[97300,"Housing Assistance Payments",0]
[97350,"HAP Portability-In",0]
[97400,"Depreciation Expense",0]
[97500,"Fraud Losses",0]
[97600,"Capital Outlays  - Governmental Funds",0]
[97700,"Debt Principal Payment - Governmental Funds",0]
[97800,"Dwelling Units Rent Expense",0]
[90000," Total Expenses",0,{"$f":"SUM(D98:D106,D94)","v":0}]
[" "," "]
[10010,"Operating Transfer In",{"$f":"SUM($D109:$IV109)","v":0}]
[10020,"Operating transfer Out",0]
[10030,"Operating Transfers from/to Primary Government",0]
[10040,"Operating Transfers from/to Component Unit",0]
[10050,"Proceeds from Notes, Loans and Bonds",0]
[10060,"Proceeds from Property Sales",0]
[10070,"Extraordinary Items, Net Gain/Loss",0]
[10080,"Special Items (Net Gain/Loss)",0]
[10091,"Inter Project Excess Cash Transfer In",0]
[10092,"Inter Project Excess Cash Transfer Out",0]
[10093,"Transfers between Program and Project - In",0]
[10094,"Transfers between Project and Program - Out",0]
[10100,"Total Other financing Sources (Uses)",0,{"$f":"SUM(D109:D120)","v":0}]
[" "," "]
[10000,"Excess (Deficiency) of Total Revenue Over (Under) Total ",{"$f":"SUM($D123:$IV123)","v":0},{"$f":"+D27-D107+D121","v":0}]
[" "," "]
[11020,"Required Annual Debt Principal Payments",{"$f":"SUM($D125:$IV125)","v":0}]
[11030,"Beginning Equity",0]
["11040-010","Prior Period Adjustments and Correction of Errors",0]
["11040-020","Prior Period Adjustments and Correction of Errors",0]
["11040-030","Prior Period Adjustments and Correction of Errors",0]
["11040-040","Prior Period Adjustments and Correction of Errors",0]
["11040-050","Prior Period Adjustments and Correction of Errors",0]
["11040-060","Prior Period Adjustments and Correction of Errors",0]
["11040-070","Equity Transfers",0]
["11040-080","Equity Transfers",0]
["11040-090","Equity Transfers",0]
["11040-100","Equity Transfers",0]
["11040-110","Equity Transfers",0]
[11040,"Prior Period Adjustments, Equity Transfers and Correction of ",0,{"$f":"SUM(D127:D137)","v":0}]
[11050,"Changes in Compensated Absence Balance",0]
[11060,"Changes in Contingent Liability Balance",0]
[11070,"Changes in Unrecognized Pension Transition Liability",0]
[11080,"Changes in Special Term/Severance Benefits Liability",0]
[11090,"Changes in Allowance for Doubtful Accounts - Dwelling Rents",0]
[11100,"Changes in Allowance for Doubtful Accounts - Other",0]
[11170,"Administrative Fee Equity",0]
[11180,"Housing Assistance Payments Equity",0]
[11190,"Unit Months Available",0]
[11210,"Number of Unit Months Leased",0]
[11270,"Excess Cash",0]
[11610,"Land Purchases",0]
[11620,"Building Purchases",0]
[11630,"Furniture & Equipment - Dwelling Purchases",0]
[11640,"Furniture & Equipment - Administrative Purchases",0]
[11650,"Leasehold Improvements Purchases",0]
[11660,"Infrastructure Purchases",0]
[13510,"CFFP Debt Service Payments",0]
[13901,"Replacement Housing Factor Funds",0]

{"sheet":"COCC BS","index":7,"n_rows":173,"n_cols":3,"rows_kept":173,"cut":false,"hidden":false,"merged":[]}
["PHA",{"$f":"'PHA Info'!C12&\" \"&'PHA Info'!C13","v":"Select PHA Code "}]
["FDS Submission",{"$f":"TEXT('PHA Info'!C18,\"mm\")&\"/\"&TEXT('PHA Info'!C18,\"dd\")&\"/\"&TEXT('PHA Info'!C18,\"yyyy\")&\"  \"&'PHA Info'!C17","v":"Select Fiscal Year End/Select Fiscal Year End/Select Fiscal Year End  Select Submission Type"}]
["Financial Statement","COCC Balance Sheet"]
["FDS Line Item","Description","Amount"]
[111,"Cash - Unrestricted"]
[112,"Cash - Restricted - Modernization and Development"]
[113,"Cash - Other Restricted"]
[114,"Cash - Tenant Security Deposits"]
[115,"Cash - Restricted for Payment of Current Liabilities"]
[100,"Total Cash",{"$f":"SUM(C5:C9)","v":0}]
[" "," "]
[121,"Accounts Receivable - PHA Projects"]
["122-010","Operating Subsidy"]
["122-020","Capital Fund"]
["122-030","Other"]
[122," Accounts Receivable - HUD Other Projects",{"$f":"SUM(C13:C15)","v":0}]
[124,"Accounts Receivable - Other Government"]
["125-010","Not For Profit"]
["125-020","Partnership"]
["125-030","Joint Venture"]
["125-040","Tax Credit"]
["125-050","Other"]
["125-060","Other Comments"]
[125,"Accounts Receivable - Miscellaneous",{"$f":"SUM(C18:C22)","v":0}]
[126,"Accounts Receivable - Tenants"]
[126.1,"Allowance for Doubtful Accounts -Tenants"]
[126.2,"Allowance for Doubtful Accounts - Other"]
[127,"Notes, Loans, & Mortgages Receivable - Current"]
[128,"Fraud Recovery"]
[128.1,"Allowance for Doubtful Accounts - Fraud"]
[129,"Accrued Interest Receivable"]
[120,"Total Receivables, Net of Allowances for Doubtful Accounts",{"$f":"SUM(C24:C31,C16:C17,C12)","v":0}]
[" "," "]
[131,"Investments - Unrestricted"]
[132,"Investments - Restricted"]
[135,"Investments - Restricted for Payment of Current Liability"]
[142,"Prepaid Expenses and Other Assets"]
[143,"Inventories"]
[143.1,"Allowance for Obsolete Inventories"]
[144,"Inter Program Due From"]
[145,"Assets Held for Sale"]
[150,"Total Current Assets",{"$f":"SUM(C34:C41,C32,C10)","v":0}]
[" "," "]
[161,"Land"]
[162,"Buildings"]
[163,"Furniture, Equipment & Machinery - Dwellings"]
[164,"Furniture, Equipment & Machinery - Administration"]
[165,"Leasehold Improvements"]
[166,"Accumulated Depreciation"]
[167,"Construction in Progress"]
[168,"Infrastructure"]
[160,"Total Capital Assets, Net of Accumulated Depreciation",{"$f":"SUM(C44:C51)","v":0}]
[" "," "]
["171-010","Not For Profit"]
["171-020","Partnership"]
["171-030","Joint Venture"]
["171-040","Tax Credit"]
["171-050","Other"]
["171-060","Other Comments"]
[171,"Notes, Loans and Mortgages Receivable - Non-Current",{"$f":"SUM(C54:C58)","v":0}]
["172-010","Not For Profit"]
["172-020","Partnership"]
["172-030","Joint Venture"]
["172-040","Tax Credit"]
["172-050","Other"]
["172-060","Other Comments"]
[172,"Notes, Loans, & Mortgages Receivable - Non Current - Past Due",{"$f":"SUM(C61:C65)","v":0}]
[173,"Grants Receivable - Non Current"]
["174-010","Not For Profit"]
["174-020","Partnership"]
["174-030","Joint Venture"]
["174-040","Tax Credit"]
["174-050","Other"]
["174-060","Other Comments"]
[174,"Other Assets",{"$f":"SUM(C69:C73)","v":0}]
["176-010","Not For Profit"]
["176-020","Partnership"]
["176-030","Joint Venture"]
["176-040","Tax Credit"]
["176-050","Other"]
["176-060","Other Comments"]
[176,"Investments in Joint Ventures",{"$f":"SUM(C76:C80)","v":0}]
[180," Total Non-Current Assets",{"$f":"+C82+C75+C68+C67+C60+C52","v":0}]
[" "," "]
[190,"Total Assets",{"$f":"+C83+C42","v":0}]
[]
[200,"Deferred Outflow of Resources",0]
[]
[290,"Total Assests and Deferred Outflow of Resources",{"$f":"+C87+C85","v":0}]
[" "," "]
[311,"Bank Overdraft"]
[312,"Accounts Payable <= 90 Days"]
[313,"Accounts Payable >90 Days Past Due"]
[321,"Accrued Wage/Payroll Taxes Payable"]
[322,"Accrued Compensated Absences - Current Portion"]
[324,"Accrued Contingency Liability"]
[325,"Accrued Interest Payable"]
["331-010","Operating Subsidy"]
["331-020","Capital Fund"]
["331-030","Other"]
[331,"Accounts Payable - HUD PHA Programs",{"$f":"SUM(C98:C100)","v":0}]
[332,"Account Payable - PHA Projects"]
[333,"Accounts Payable - Other Government"]
[341,"Tenant Security Deposits"]
["342-010","Operating Subsidy"]
["342-020","Capital Fund"]
["342-030","Other"]
[342,"Deferred Revenues",{"$f":"SUM(C105:C107)","v":0}]
["343-010","CFFP"]
["343-020","Capital Projects/Mortgage Revenue"]
[343,"Current Portion of Long-term Debt - Capital Projects/Mortgage "]
[344,"Current Portion of Long-term Debt - Operating Borrowings"]
[345,"Other Current Liabilities"]
[346," Accrued Liabilities - Other"]
[347,"Inter Program - Due To"]
["348-010","Not For Profit"]
["348-020","Partnership"]
["348-030","Joint Venture"]
["348-040","Tax Credit"]
["348-050","Other"]
["348-060","Other Comments"]
[348,"Loan Liability - Current",{"$f":"SUM(C116:C120)","v":0}]
[310,"Total Current Liabilities",{"$f":"SUM(C122,C111:C115,C108,C101:C104,C91:C97)","v":0}]
[" "," "]
["351-010","CFFP"]
["351-020","Capital Projects/Mortgage Revenue"]
[351,"Long-term Debt, Net of Current - Capital Projects/Mortgage Revenue",{"$f":"+C125+C126","v":0}]
[352,"Long-term Debt, Net of Current - Operating Borrowings"]
[353,"Non-current Liabilities - Other"]
[354,"Accrued Compensated Absences - Non Current"]
["355-010","Not For Profit"]
["355-020","Partnership"]
["355-030","Joint Venture"]
["355-040","Tax Credit"]
["355-050","Other"]
["355-060","Other Comments"]
[355,"Loan Liability - Non Current",{"$f":"SUM(C131:C135)","v":0}]
[356,"FASB 5 Liabilities"]
["357-010","Pension Liability"]
["357-020","OPEB Liability"]
[357,"Accrued Pension and OPEB Liabilities",{"$f":"SUM(C139:C140)","v":0}]
[357,"Accrued Pension and OPEB Liabilities"]
[350,"Total Non-Current Liabilities",{"$f":"SUM(C137:C140,C127:C130)","v":0}]
[" "," "]
[300,"Total Liabilities",{"$f":"+C143+C123","v":0}]
[]
[400,"Deferred Inflow of Resources",0]
[" "," "]
[508.1,"Invested In Capital Assets, Net of Related Debt"]
[511.1,"Restricted Net Assets"]
[512.1,"Unrestricted Net Assets"]
[513,"Total Equity/Net Assets",{"$f":"SUM(C149:C151)","v":0}]
[]
[509.2,"Fund Balance Reserved"]
[511.2,"Unreserved, Designated Fund Balance"]
[512.20000000000005,"Unreserved, Undesignated Fund Balance"]
[513,"Total Equity/Net Assets",{"$f":"SUM(C154:C156)","v":0}]
[]
[508.3,"Nonspendable Fund Balance"]
[509.3,"Restricted Fund Balance"]
[510.3,"Committed Fund Balance"]
[511.3,"Assigned Fund Balance"]
[512.29999999999995,"Unassigned Fund Balance"]
[513,"Total Equity/Net Assets",{"$f":"SUM(C159:C163)","v":0}]
[]
[508.4,"Net Investment in Capital Assets"]
[511.4,"Restricted Net Position"]
[512.4,"Unrestricted Net Position"]
[513,"Total Equity - Net Assets / Position",{"$f":"SUM(C166:C168)","v":0}]
[]
[600,"Total Liab., Def. Inflow of Res., and Equity - Net Assets / Position",{"$f":"+C169+C164+C147+C145","v":0}]
[" "," "]
[600,"Total Liabilities and Equity/Net Assets",{"$f":"+C157+C152+C145","v":0}]

{"sheet":"COCC IS","index":8,"n_rows":174,"n_cols":5,"rows_kept":174,"cut":false,"hidden":false,"merged":[]}
["PHA",{"$f":"'PHA Info'!C12&\" \"&'PHA Info'!C13","v":"Select PHA Code "}]
["FDS Submission",{"$f":"TEXT('PHA Info'!C18,\"mm\")&\"/\"&TEXT('PHA Info'!C18,\"dd\")&\"/\"&TEXT('PHA Info'!C18,\"yyyy\")&\"  \"&'PHA Info'!C17","v":"Select Fiscal Year End/Select Fiscal Year End/Select Fiscal Year End  Select Submission Type"}]
["Financial Statement","COCC Income Statement"]
["FDS Line Item","Description","Total","14.850",14.872]
[70300,"Net Tenant Rental Revenue",{"$f":"SUM($D5:$E5)","v":0}]
[70400,"Tenant Revenue - Other",{"$f":"SUM($D6:$E6)","v":0}]
[70500,"Total Tenant Revenue",{"$f":"SUM($D7:$E7)","v":0},{"$f":"+D5+D6","v":0},{"$f":"+E5+E6","v":0}]
[" "," "]
[70600,"HUD PHA Operating Grants",{"$f":"SUM($D9:$E9)","v":0}]
[70610,"Capital Grants",0,0,0]
[70710,"Management Fee",0]
[70720,"Asset Management Fee",0]
[70730," Book Keeping Fee",0]
[70740,"Front Line Service Fee",0]
["70750-010","From PHA Administered Program",0]
["70750-020","From Third/Outside Party",0]
[70750,"Other Fees",0,{"$f":"SUM(D15:D16)","v":0},{"$f":"SUM(E15:E16)","v":0}]
[70750,"Other Fees",0]
[70700,"Total Fee Revenue",0,{"$f":"SUM(D11:D14,D17,D18)","v":0},{"$f":"SUM(E11:E14,E17,E18)","v":0}]
[" "," "]
[70800,"Other Government Grants",0]
[71100,"Investment Income - Unrestricted",0]
[71200,"Mortgage Interest Income",0]
[71300,"Proceeds from Disposition of Assets Held for Sale",0]
[71310,"Cost of Sale of Assets",0]
[71400,"Fraud Recovery",0]
[71500,"Other Revenue",0]
[71600,"Gain or Loss on Sale of Capital Assets",0]
[72000,"Investment Income - Restricted",0]
[70000,"Total Revenue",0,{"$f":"SUM(D21:D29,D19,D7,D9,D10)","v":0},{"$f":"SUM(E21:E29,E19,E7,E9,E10)","v":0}]
[" "," "]
[91100,"Administrative Salaries",0]
[91200,"Auditing Fees",0]
[91300,"Management Fee",0]
[91310,"Book-keeping Fee",0]
[91400,"Advertising and Marketing",0]
[91500,"Employee Benefit contributions - Administrative",0]
[91600,"Office Expenses",0]
[91700,"Legal Expense",0]
[91800," Travel",0]
[91810,"Allocated Overhead",0]
[91900,"Other",0]
[91000,"Total Operating - Administrative",0,{"$f":"SUM(D32:D42)","v":0},{"$f":"SUM(E32:E42)","v":0}]
[" "," "]
[92000,"Asset Management Fee",0]
[92100,"Tenant Services - Salaries",0]
[92200,"Relocation Costs",0]
[92300,"Employee Benefit Contributions - Tenant Services",0]
[92400,"Tenant Services - Other",0]
[92500,"Total Tenant Services",0,{"$f":"SUM(D45:D49)","v":0},{"$f":"SUM(E45:E49)","v":0}]
[" "," "]
[93100," Water",0]
[93200,"Electricity",0]
[93300,"Gas",0]
[93400,"Fuel",0]
[93500," Labor",0]
[93600,"Sewer",0]
[93700," Employee Benefit Contributions - Utilities",0]
[93800," Other Utilities Expense",0]
[93000,"Total Utilities",0,{"$f":"SUM(D52:D59)","v":0},{"$f":"SUM(E52:E59)","v":0}]
[" "," "]
[94100,"Ordinary Maintenance and Operations - Labor",0]
[94200," Ordinary Maintenance and Operations - Materials and Other",0]
["94300-010","Garbage and Trash Removal Contracts  ",0]
["94300-020","Heating & Cooling Contracts  ",0]
["94300-030","Snow Removal Contracts  ",0]
["94300-040","Elevator Maintenance Contracts  ",0]
["94300-050","Landscape & Grounds Contracts  ",0]
["94300-060","Unit Turnaround Contracts  ",0]
["94300-070","Electrical Contracts  ",0]
["94300-080","Plumbing Contracts  ",0]
["94300-090","Extermination Contracts  ",0]
["94300-100","Janitorial Contracts  ",0]
["94300-110","Routine Maintenance Contracts  ",0]
["94300-120","Miscellaneous Contracts",0]
[94300,"Ordinary Maintenance and Operations Contracts",0,{"$f":"SUM(D64:D75)","v":0},{"$f":"SUM(E64:E75)","v":0}]
[94500,"Employee Benefit Contributions - Ordinary Maintenance",0]
[94000," Total Maintenance",0,{"$f":"SUM(D76:D77,D62:D63)","v":0},{"$f":"SUM(E76:E77,E62:E63)","v":0}]
[" "," "]
[95100,"Protective Services - Labor",0]
[95200,"Protective Services - Other Contract Costs",0]
[95300,"Protective Services - Other",0]
[95500,"Employee Benefit Contributions - Protective Services",0]
[95000,"Total Protective Services",0,{"$f":"SUM(D80:D83)","v":0},{"$f":"SUM(E80:E83)","v":0}]
[" "," "]
[96110,"Property Insurance",0]
[96120,"Liability Insurance",0]
[96130,"Workmen's Compensation",{"$f":"SUM($D88:$E88)","v":0}]
[96140,"All Other Insurance",{"$f":"SUM($D89:$E89)","v":0}]
[96100,"Total insurance Premiums",{"$f":"SUM($D90:$E90)","v":0},{"$f":"SUM(D86:D89)","v":0},{"$f":"SUM(E86:E89)","v":0}]
[" "," "]
[96200,"Other General Expenses",{"$f":"SUM($D92:$E92)","v":0}]
[96210,"Compensated Absences",0]
[96300,"Payments in Lieu of Taxes",0]
[96400,"Bad debt - Tenant Rents",0]
[96500,"Bad debt - Mortgages",0]
[96600,"Bad debt - Other",0]
[96800,"Severance Expense",0]
[96000,"Total Other General Expenses",0,{"$f":"SUM(D92:D98)","v":0},{"$f":"SUM(E92:E98)","v":0}]
[" "," "]
[96710,"Interest of Mortgage (or Bonds) Payable",{"$f":"SUM($D101:$E101)","v":0}]
[96720,"Interest on Notes Payable (Short and Long Term)",{"$f":"SUM($D102:$E102)","v":0}]
[96730,"Amortization of Bond Issue Costs",{"$f":"SUM($D103:$E103)","v":0}]
[96700,"Total Interest Expense and Amortization Cost",{"$f":"SUM($D104:$E104)","v":0},{"$f":"SUM(D101:D103)","v":0},{"$f":"SUM(E101:E103)","v":0}]
[" "," "]
[96900,"Total Operating Expenses",{"$f":"SUM($D106:$E106)","v":0},{"$f":"+D104+D99+D90+D84+D78+D60+D50+D43","v":0},{"$f":"+E104+E99+E90+E84+E78+E60+E50+E43","v":0}]
[" "," "]
[97000,"Excess of Operating Revenue over Operating Expenses",{"$f":"SUM($D108:$E108)","v":0},{"$f":"+D30-D106","v":0},{"$f":"+E30-E106","v":0}]
[" "," "]
[97100,"Extraordinary Maintenance",{"$f":"SUM($D110:$E110)","v":0}]
[97200,"Casualty Losses - Non-capitalized",0]
[97300,"Housing Assistance Payments",0]
[97350,"HAP Portability-In",0]
[97400,"Depreciation Expense",0]
[97500,"Fraud Losses",0]
[97600,"Capital Outlays  - Governmental Funds",0]
[97700,"Debt Principal Payment - Governmental Funds",0]
[97800,"Dwelling Units Rent Expense",0]
[90000," Total Expenses",0,{"$f":"SUM(D110:D118,D106)","v":0},{"$f":"SUM(E110:E118,E106)","v":0}]
[" "," "]
[10010,"Operating Transfer In",{"$f":"SUM($D121:$E121)","v":0}]
[10020,"Operating transfer Out",0]
["10030-010","Not For Profit  ",0]
["10030-020","Partnership  ",0]
["10030-030","Joint Venture  ",0]
["10030-040","Tax Credit  ",0]
["10030-050","Other",0]
[10030,"Operating Transfers from/to Primary Government",0,{"$f":"SUM(D123:D127)","v":0},{"$f":"SUM(E123:E127)","v":0}]
[10040,"Operating Transfers from/to Component Unit",0]
[10050,"Proceeds from Notes, Loans and Bonds",0]
[10060,"Proceeds from Property Sales",0]
[10070,"Extraordinary Items, Net Gain/Loss",0]
[10080,"Special Items (Net Gain/Loss)",0]
[10091,"Inter Project Excess Cash Transfer In",0]
[10092,"Inter Project Excess Cash Transfer Out",0]
[10093,"Transfers between Program and Project - In",0]
[10094,"Transfers between Project and Program - Out",0]
[10100,"Total Other financing Sources (Uses)",0,{"$f":"SUM(D128:D137,D121:D122)","v":0},{"$f":"SUM(E128:E137,E121:E122)","v":0}]
[" "," "]
[10000,"Excess (Deficiency) of Total Revenue Over (Under) Total ",{"$f":"SUM($D140:$E140)","v":0},{"$f":"+D30-D119+D138","v":0},{"$f":"+E30-E119+E138","v":0}]
[" "," "]
[11020,"Required Annual Debt Principal Payments",{"$f":"SUM($D142:$E142)","v":0}]
[11030,"Beginning Equity",0]
["11040-010","Prior Period Adjustments and Correction of Errors",0]
["11040-020","Prior Period Adjustments and Correction of Errors",0]
["11040-030","Prior Period Adjustments and Correction of Errors",0]
["11040-040","Prior Period Adjustments and Correction of Errors",0]
["11040-050","Prior Period Adjustments and Correction of Errors",0]
["11040-060","Prior Period Adjustments and Correction of Errors",0]
["11040-070","Equity Transfers",0]
["11040-080","Equity Transfers",0]
["11040-090","Equity Transfers",0]
["11040-100","Equity Transfers",0]
["11040-110","Equity Transfers",0]
[11040,"Prior Period Adjustments, Equity Transfers and Correction of ",0,{"$f":"SUM(D143:D154)","v":0},{"$f":"SUM(E143:E154)","v":0}]
[11050,"Changes in Compensated Absence Balance",0]
[11060,"Changes in Contingent Liability Balance",0]
[11070,"Changes in Unrecognized Pension Transition Liability",0]
[11080,"Changes in Special Term/Severance Benefits Liability",0]
[11090,"Changes in Allowance for Doubtful Accounts - Dwelling Rents",0]
[11100,"Changes in Allowance for Doubtful Accounts - Other",0]
[11170,"Administrative Fee Equity",0]
[11180,"Housing Assistance Payments Equity",0]
[11190,"Unit Months Available",0]
[11210,"Number of Unit Months Leased",0]
[11270,"Excess Cash",0]
[11610,"Land Purchases",0]
[11620,"Building Purchases",0]
[11630,"Furniture & Equipment - Dwelling Purchases",0]
[11640,"Furniture & Equipment - Administrative Purchases",0]
[11650,"Leasehold Improvements Purchases",0]
[11660,"Infrastructure Purchases",0]
[13510,"CFFP Debt Service Payments",0]
[13901,"Replacement Housing Factor Funds",0]

{"sheet":"Elimination BS","index":9,"n_rows":115,"n_cols":3,"rows_kept":115,"cut":false,"hidden":false,"merged":[]}
["PHA",{"$f":"'PHA Info'!C12&\" \"&'PHA Info'!C13","v":"Select PHA Code "}]
["FDS Submission",{"$f":"TEXT('PHA Info'!C18,\"mm\")&\"/\"&TEXT('PHA Info'!C18,\"dd\")&\"/\"&TEXT('PHA Info'!C18,\"yyyy\")&\"  \"&'PHA Info'!C17","v":"Select Fiscal Year End/Select Fiscal Year End/Select Fiscal Year End  Select Submission Type"}]
["Financial Statement","Elimination Balance Sheet"]
["FDS Line Item","Description","Amount"]
[111,"Cash - Unrestricted"]
[112,"Cash - Restricted - Modernization and Development"]
[113,"Cash - Other Restricted"]
[114,"Cash - Tenant Security Deposits"]
[115,"Cash - Restricted for Payment of Current Liabilities"]
[100,"Total Cash",{"$f":"SUM(C5:C9)","v":0}]
[" "," "]
[121,"Accounts Receivable - PHA Projects"]
[122," Accounts Receivable - HUD Other Projects"]
[124,"Accounts Receivable - Other Government"]
[125,"Accounts Receivable - Miscellaneous"]
[126,"Accounts Receivable - Tenants"]
[126.1,"Allowance for Doubtful Accounts -Tenants"]
[126.2,"Allowance for Doubtful Accounts - Other"]
[127,"Notes, Loans, & Mortgages Receivable - Current"]
[128,"Fraud Recovery"]
[128.1,"Allowance for Doubtful Accounts - Fraud"]
[129,"Accrued Interest Receivable"]
[120,"Total Receivables, Net of Allowances for Doubtful Accounts",{"$f":"SUM(C12:C22)","v":0}]
[" "," "]
[131,"Investments - Unrestricted"]
[132,"Investments - Restricted"]
[135,"Investments - Restricted for Payment of Current Liability"]
[142,"Prepaid Expenses and Other Assets"]
[143,"Inventories"]
[143.1,"Allowance for Obsolete Inventories"]
[144,"Inter Program Due From"]
[145,"Assets Held for Sale"]
[150,"Total Current Assets",{"$f":"SUM(C25:C32,C23,C10)","v":0}]
[" "," "]
[161,"Land"]
[162,"Buildings"]
[163,"Furniture, Equipment & Machinery - Dwellings"]
[164,"Furniture, Equipment & Machinery - Administration"]
[165,"Leasehold Improvements"]
[166,"Accumulated Depreciation"]
[167,"Construction in Progress"]
[168,"Infrastructure"]
[160,"Total Capital Assets, Net of Accumulated Depreciation",{"$f":"SUM(C35:C42)","v":0}]
[" "," "]
[171,"Notes, Loans and Mortgages Receivable - Non-Current"]
[172,"Notes, Loans, & Mortgages Receivable - Non Current - Past Due"]
[173,"Grants Receivable - Non Current"]
[174,"Other Assets"]
[176,"Investments in Joint Ventures"]
[180," Total Non-Current Assets",{"$f":"SUM(C45:C49,C43)","v":0}]
[" "," "]
[190,"Total Assets",{"$f":"+C50+C33","v":0}]
[" "," "]
[200,"Deferred Outflow of Resources",0]
[" "," "]
[290,"Total Assests and Deferred Outflow of Resources",{"$f":"+C54+C52","v":0}]
[]
[311,"Bank Overdraft"]
[312,"Accounts Payable <= 90 Days"]
[313,"Accounts Payable >90 Days Past Due"]
[321,"Accrued Wage/Payroll Taxes Payable"]
[322,"Accrued Compensated Absences - Current Portion"]
[324,"Accrued Contingency Liability"]
[325,"Accrued Interest Payable"]
[331,"Accounts Payable - HUD PHA Programs"]
[332,"Account Payable - PHA Projects"]
[333,"Accounts Payable - Other Government"]
[341,"Tenant Security Deposits"]
[342,"Deferred Revenues"]
[343,"Current Portion of Long-term Debt - Capital Projects/Mortgage "]
[344,"Current Portion of Long-term Debt - Operating Borrowings"]
[345,"Other Current Liabilities"]
[346," Accrued Liabilities - Other"]
[347,"Inter Program - Due To"]
[348,"Loan Liability - Current"]
[310,"Total Current Liabilities",{"$f":"SUM(C58:C75)","v":0}]
[" "," "]
[351,"Long-term Debt, Net of Current - Capital Projects/Mortgage Revenue"]
[352,"Long-term Debt, Net of Current - Operating Borrowings"]
[353,"Non-current Liabilities - Other"]
[354,"Accrued Compensated Absences - Non Current"]
[355,"Loan Liability - Non Current"]
[356,"FASB 5 Liabilities"]
[357,"Accrued Pension and OPEB Liabilities"]
[350,"Total Non-Current Liabilities",{"$f":"SUM(C78:C84)","v":0}]
[" "," "]
[300,"Total Liabilities",{"$f":"+C85+C76","v":0}]
[" "," "]
[400,"Deferrred Inflow of Resources",0]
[]
[508.1,"Invested In Capital Assets, Net of Related Debt"]
[511.1,"Restricted Net Assets"]
[512.1,"Unrestricted Net Assets"]
[513,"Total Equity/Net Assets",{"$f":"SUM(C91:C93)","v":0}]
[" "," "]
[509.2,"Fund Balance Reserved"]
[511.2,"Unreserved, Designated Fund Balance"]
[512.20000000000005,"Unreserved, Undesignated Fund Balance"]
[513,"Total Equity/Net Assets",{"$f":"SUM(C96:C98)","v":0}]
[]
[508.3,"Nonspendable Fund Balance"]
[509.3,"Restricted Fund Balance"]
[510.3,"Committed Fund Balance"]
[511.3,"Assigned Fund Balance"]
[512.29999999999995,"Unassigned Fund Balance"]
[513,"Total Equity/Net Assets",{"$f":"SUM(C101:C105)","v":0}]
[]
[508.4,"Net Investment in Capital Assets"]
[511.4,"Restricted Net Position"]
[512.4,"Unrestricted Net Position"]
[513,"Total Equity - Net Assets / Position",{"$f":"SUM(C108:C110)","v":0}]
[]
[600,"Total Liab., Def. Inflow of Res., and Equity - Net Assets / Position",{"$f":"+C111+C106+C89+C87","v":0}]
[" "," "]
[600,"Total Liabilities and Equity/Net Assets",{"$f":"+C99+C94+C87","v":0}]

{"sheet":"Elimination IS","index":10,"n_rows":143,"n_cols":3,"rows_kept":143,"cut":false,"hidden":false,"merged":[]}
["PHA",{"$f":"'PHA Info'!C12&\" \"&'PHA Info'!C13","v":"Select PHA Code "}]
["FDS Submission",{"$f":"TEXT('PHA Info'!C18,\"mm\")&\"/\"&TEXT('PHA Info'!C18,\"dd\")&\"/\"&TEXT('PHA Info'!C18,\"yyyy\")&\"  \"&'PHA Info'!C17","v":"Select Fiscal Year End/Select Fiscal Year End/Select Fiscal Year End  Select Submission Type"}]
["Financial Statement","Elimination Income Statement"]
["FDS Line Item","Description","Amount"]
[70300,"Net Tenant Rental Revenue"]
[70400,"Tenant Revenue - Other"]
[70500,"Total Tenant Revenue",{"$f":"SUM(C5:C6)","v":0}]
[" "," "]
[70600,"HUD PHA Operating Grants"]
[70610,"Capital Grants"]
[70710,"Management Fee"]
[70720,"Asset Management Fee"]
[70730," Book Keeping Fee"]
[70740,"Front Line Service Fee"]
[70750,"Other Fees"]
[70700,"Total Fee Revenue",{"$f":"SUM(C11:C15)","v":0}]
[" "," "]
[70800,"Other Government Grants"]
[71100,"Investment Income - Unrestricted"]
[71200,"Mortgage Interest Income"]
[71300,"Proceeds from Disposition of Assets Held for Sale"]
[71310,"Cost of Sale of Assets"]
[71400,"Fraud Recovery"]
[71500,"Other Revenue"]
[71600,"Gain or Loss on Sale of Capital Assets"]
[72000,"Investment Income - Restricted"]
[70000,"Total Revenue",{"$f":"SUM(C18:C26,C16,C10,C9,C7)","v":0}]
[" "," "]
[91100,"Administrative Salaries"]
[91200,"Auditing Fees"]
[91300,"Management Fee"]
[91310,"Book-keeping Fee"]
[91400,"Advertising and Marketing"]
[91500,"Employee Benefit contributions - Administrative"]
[91600,"Office Expenses"]
[91700,"Legal Expense"]
[91800," Travel"]
[91810,"Allocated Overhead"]
[91900,"Other"]
[91000,"Total Operating - Administrative",{"$f":"SUM(C29:C39)","v":0}]
[" "," "]
[92000,"Asset Management Fee"]
[92100,"Tenant Services - Salaries"]
[92200,"Relocation Costs"]
[92300,"Employee Benefit Contributions - Tenant Services"]
[92400,"Tenant Services - Other"]
[92500,"Total Tenant Services",{"$f":"SUM(C42:C46)","v":0}]
[" "," "]
[93100," Water"]
[93200,"Electricity"]
[93300,"Gas"]
[93400,"Fuel"]
[93500," Labor"]
[93600,"Sewer"]
[93700," Employee Benefit Contributions - Utilities"]
[93800," Other Utilities Expense"]
[93000,"Total Utilities",{"$f":"SUM(C49:C56)","v":0}]
[" "," "]
[94100,"Ordinary Maintenance and Operations - Labor"]
[94200," Ordinary Maintenance and Operations - Materials and Other"]
[94300,"Ordinary Maintenance and Operations Contracts"]
[94500,"Employee Benefit Contributions - Ordinary Maintenance"]
[94000," Total Maintenance",{"$f":"SUM(C59:C62)","v":0}]
[" "," "]
[95100,"Protective Services - Labor"]
[95200,"Protective Services - Other Contract Costs"]
[95300,"Protective Services - Other"]
[95500,"Employee Benefit Contributions - Protective Services"]
[95000,"Total Protective Services",{"$f":"SUM(C65:C68)","v":0}]
[" "," "]
[96110,"Property Insurance"]
[96120,"Liability Insurance"]
[96130,"Workmen's Compensation"]
[96140,"All Other Insurance"]
[96100,"Total insurance Premiums",{"$f":"SUM(C71:C74)","v":0}]
[" "," "]
[96200,"Other General Expenses"]
[96210,"Compensated Absences"]
[96300,"Payments in Lieu of Taxes"]
[96400,"Bad debt - Tenant Rents"]
[96500,"Bad debt - Mortgages"]
[96600,"Bad debt - Other"]
[96800,"Severance Expense"]
[96000,"Total Other General Expenses",{"$f":"SUM(C77:C83)","v":0}]
[" "," "]
[96710,"Interest of Mortgage (or Bonds) Payable"]
[96720,"Interest on Notes Payable (Short and Long Term)"]
[96730,"Amortization of Bond Issue Costs"]
[96700,"Total Interest Expense and Amortization Cost",{"$f":"SUM(C86:C88)","v":0}]
[" "," "]
[96900,"Total Operating Expenses",{"$f":"+C89+C84+C75+C69+C63+C57+C47+C40","v":0}]
[" "," "]
[97000,"Excess of Operating Revenue over Operating Expenses",{"$f":"+C27-C91","v":0}]
[" "," "]
[97100,"Extraordinary Maintenance"]
[97200,"Casualty Losses - Non-capitalized"]
[97300,"Housing Assistance Payments"]
[97350,"HAP Portability-In"]
[97400,"Depreciation Expense"]
[97500,"Fraud Losses"]
[97600,"Capital Outlays  - Governmental Funds"]
[97700,"Debt Principal Payment - Governmental Funds"]
[97800,"Dwelling Units Rent Expense"]
[90000," Total Expenses",{"$f":"SUM(C95:C103,C91)","v":0}]
[" "," "]
[10010,"Operating Transfer In"]
[10020,"Operating transfer Out"]
[10030,"Operating Transfers from/to Primary Government"]
[10040,"Operating Transfers from/to Component Unit"]
[10050,"Proceeds from Notes, Loans and Bonds"]
[10060,"Proceeds from Property Sales"]
[10070,"Extraordinary Items, Net Gain/Loss"]
[10080,"Special Items (Net Gain/Loss)"]
[10091,"Inter Project Excess Cash Transfer In"]
[10092,"Inter Project Excess Cash Transfer Out"]
[10093,"Transfers between Program and Project - In"]
[10094,"Transfers between Project and Program - Out"]
[10100,"Total Other financing Sources (Uses)",{"$f":"SUM(C106:C117)","v":0}]
[" "," "]
[10000,"Excess (Deficiency) of Total Revenue Over (Under) Total ",{"$f":"+C27-C104+C118","v":0}]
[" "," "]
[11020,"Required Annual Debt Principal Payments"]
[11030,"Beginning Equity"]
[11040,"Prior Period Adjustments, Equity Transfers and Correction of "]
[11050,"Changes in Compensated Absence Balance"]
[11060,"Changes in Contingent Liability Balance"]
[11070,"Changes in Unrecognized Pension Transition Liability"]
[11080,"Changes in Special Term/Severance Benefits Liability"]
[11090,"Changes in Allowance for Doubtful Accounts - Dwelling Rents"]
[11100,"Changes in Allowance for Doubtful Accounts - Other"]
[11170,"Administrative Fee Equity"]
[11180,"Housing Assistance Payments Equity"]
[11190,"Unit Months Available"]
[11210,"Number of Unit Months Leased"]
[11270,"Excess Cash"]
[11610,"Land Purchases"]
[11620,"Building Purchases"]
[11630,"Furniture & Equipment - Dwelling Purchases"]
[11640,"Furniture & Equipment - Administrative Purchases"]
[11650,"Leasehold Improvements Purchases"]
[11660,"Infrastructure Purchases"]
[13510,"CFFP Debt Service Payments"]
[13901,"Replacement Housing Factor Funds"]

{"sheet":"Other Proj BS","index":11,"n_rows":118,"n_cols":3,"rows_kept":118,"cut":false,"hidden":false,"merged":[]}
["PHA",{"$f":"'PHA Info'!C12&\" \"&'PHA Info'!C13","v":"Select PHA Code "}]
["FDS Submission",{"$f":"TEXT('PHA Info'!C18,\"mm\")&\"/\"&TEXT('PHA Info'!C18,\"dd\")&\"/\"&TEXT('PHA Info'!C18,\"yyyy\")&\"  \"&'PHA Info'!C17","v":"Select Fiscal Year End/Select Fiscal Year End/Select Fiscal Year End  Select Submission Type"}]
["Financial Statement","Other Project Balance Sheet"]
["FDS Line Item","Description","Amount"]
[111,"Cash - Unrestricted"]
[112,"Cash - Restricted - Modernization and Development"]
[113,"Cash - Other Restricted"]
[114,"Cash - Tenant Security Deposits"]
[115,"Cash - Restricted for Payment of Current Liabilities"]
[100,"Total Cash",{"$f":"SUM(C5:C9)","v":0}]
[" "," "]
[121,"Accounts Receivable - PHA Projects"]
[122," Accounts Receivable - HUD Other Projects"]
[124,"Accounts Receivable - Other Government"]
[125,"Accounts Receivable - Miscellaneous"]
[126,"Accounts Receivable - Tenants"]
[126.1,"Allowance for Doubtful Accounts -Tenants"]
[126.2,"Allowance for Doubtful Accounts - Other"]
[127,"Notes, Loans, & Mortgages Receivable - Current"]
[128,"Fraud Recovery"]
[128.1,"Allowance for Doubtful Accounts - Fraud"]
[129,"Accrued Interest Receivable"]
[120,"Total Receivables, Net of Allowances for Doubtful Accounts",{"$f":"SUM(C12:C22)","v":0}]
[" "," "]
[131,"Investments - Unrestricted"]
[132,"Investments - Restricted"]
[135,"Investments - Restricted for Payment of Current Liability"]
[142,"Prepaid Expenses and Other Assets"]
[143,"Inventories"]
[143.1,"Allowance for Obsolete Inventories"]
[144,"Inter Program Due From"]
[145,"Assets Held for Sale"]
[150,"Total Current Assets",{"$f":"SUM(C25:C32,C23,C10)","v":0}]
[" "," "]
[161,"Land"]
[162,"Buildings"]
[163,"Furniture, Equipment & Machinery - Dwellings"]
[164,"Furniture, Equipment & Machinery - Administration"]
[165,"Leasehold Improvements"]
[166,"Accumulated Depreciation"]
[167,"Construction in Progress"]
[168,"Infrastructure"]
[160,"Total Capital Assets, Net of Accumulated Depreciation",{"$f":"SUM(C35:C42)","v":0}]
[" "," "]
[171,"Notes, Loans and Mortgages Receivable - Non-Current"]
[172,"Notes, Loans, & Mortgages Receivable - Non Current - Past Due"]
[173,"Grants Receivable - Non Current"]
[174,"Other Assets"]
[176,"Investments in Joint Ventures"]
[180," Total Non-Current Assets",{"$f":"SUM(C45:C49,C43)","v":0}]
[" "," "]
[190,"Total Assets",{"$f":"+C50+C33","v":0}]
[" "," "]
[200,"Deferred Outflow of Resources"]
[" "," "]
[290,"Total Assests and Deferred Outflow of Resources",{"$f":"+C54+C52","v":0}]
[]
[311,"Bank Overdraft"]
[312,"Accounts Payable <= 90 Days"]
[313,"Accounts Payable >90 Days Past Due"]
[321,"Accrued Wage/Payroll Taxes Payable"]
[322,"Accrued Compensated Absences - Current Portion"]
[324,"Accrued Contingency Liability"]
[325,"Accrued Interest Payable"]
[331,"Accounts Payable - HUD PHA Programs"]
[332,"Account Payable - PHA Projects"]
[333,"Accounts Payable - Other Government"]
[341,"Tenant Security Deposits"]
[342,"Deferred Revenues"]
[343,"Current Portion of Long-term Debt - Capital Projects/Mortgage "]
[344,"Current Portion of Long-term Debt - Operating Borrowings"]
[345,"Other Current Liabilities"]
[346," Accrued Liabilities - Other"]
[347,"Inter Program - Due To"]
[348,"Loan Liability - Current"]
[310,"Total Current Liabilities",{"$f":"SUM(C58:C75)","v":0}]
[" "," "]
[351,"Long-term Debt, Net of Current - Capital Projects/Mortgage Revenue"]
[352,"Long-term Debt, Net of Current - Operating Borrowings"]
[353,"Non-current Liabilities - Other"]
[354,"Accrued Compensated Absences - Non Current"]
[355,"Loan Liability - Non Current"]
[356,"FASB 5 Liabilities"]
["357-010","Pension Liability"]
["357-020","OPEB Liability"]
[357,"Accrued Pension and OPEB Liabilities"]
[357,"Accrued Pension and OPEB Liabilities"]
[350,"Total Non-Current Liabilities",{"$f":"SUM(C78:C85)+C87","v":0}]
[" "," "]
[300,"Total Liabilities",{"$f":"+C88+C76","v":0}]
[]
[400,"Deferrred Inflow of Resources"]
[" "," "]
[508.1,"Invested In Capital Assets, Net of Related Debt"]
[511.1,"Restricted Net Assets"]
[512.1,"Unrestricted Net Assets"]
[513,"Total Equity/Net Assets",{"$f":"SUM(C94:C96)","v":0}]
[" "," "]
[509.2,"Fund Balance Reserved"]
[511.2,"Unreserved, Designated Fund Balance"]
[512.20000000000005,"Unreserved, Undesignated Fund Balance"]
[513,"Total Equity/Net Assets",{"$f":"SUM(C99:C101)","v":0}]
[]
[508.3,"Nonspendable Fund Balance"]
[509.3,"Restricted Fund Balance"]
[510.3,"Committed Fund Balance"]
[511.3,"Assigned Fund Balance"]
[512.29999999999995,"Unassigned Fund Balance"]
[513,"Total Equity/Net Assets",{"$f":"SUM(C104:C108)","v":0}]
[]
[508.4,"Net Investment in Capital Assets"]
[511.4,"Restricted Net Position"]
[512.4,"Unrestricted Net Position"]
[513,"Total Equity - Net Assets / Position",{"$f":"SUM(C111:C113)","v":0}]
[]
[600,"Total Liab., Def. Inflow of Res., and Equity - Net Assets / Position",{"$f":"+C114+C109+C92+C90","v":0}]
[" "," "]
[600,"Total Liabilities and Equity/Net Assets",{"$f":"+C102+C97+C90","v":0}]

{"sheet":"Other Proj IS","index":12,"n_rows":169,"n_cols":5,"rows_kept":169,"cut":false,"hidden":false,"merged":[]}
["PHA",{"$f":"'PHA Info'!C12&\" \"&'PHA Info'!C13","v":"Select PHA Code "}]
["FDS Submission",{"$f":"TEXT('PHA Info'!C18,\"mm\")&\"/\"&TEXT('PHA Info'!C18,\"dd\")&\"/\"&TEXT('PHA Info'!C18,\"yyyy\")&\"  \"&'PHA Info'!C17","v":"Select Fiscal Year End/Select Fiscal Year End/Select Fiscal Year End  Select Submission Type"}]
["Financial Statement","Other Project Income Statement"]
["FDS Line Item","Description","Total","14.850","14.872"]
[70300,"Net Tenant Rental Revenue",{"$f":"SUM($D5:$E5)","v":0}]
[70400,"Tenant Revenue - Other",{"$f":"SUM($D6:$E6)","v":0}]
[70500,"Total Tenant Revenue",{"$f":"SUM($D7:$E7)","v":0},{"$f":"SUM(D5:D6)","v":0},{"$f":"SUM(E5:E6)","v":0}]
[" "," "]
[70600,"HUD PHA Operating Grants",{"$f":"SUM($D9:$E9)","v":0}]
[70610,"Capital Grants",0]
[70710,"Management Fee",0]
[70720,"Asset Management Fee",0]
[70730," Book Keeping Fee",0]
[70740,"Front Line Service Fee",0]
[70750,"Other Fees",0]
[70700,"Total Fee Revenue",0,{"$f":"SUM(D11:D15)","v":0},{"$f":"SUM(E11:E15)","v":0}]
[" "," "]
[70800,"Other Government Grants",{"$f":"SUM($D18:$E18)","v":0}]
[71100,"Investment Income - Unrestricted",0]
[71200,"Mortgage Interest Income",0]
[71300,"Proceeds from Disposition of Assets Held for Sale",0]
[71310,"Cost of Sale of Assets",0]
[71400,"Fraud Recovery",0]
[71500,"Other Revenue",0]
[71600,"Gain or Loss on Sale of Capital Assets",0]
[72000,"Investment Income - Restricted",0]
[70000,"Total Revenue",0,{"$f":"SUM(D18:D26,D16,D7,D9,D10)","v":0},{"$f":"SUM(E18:E26,E16,E7,E9,E10)","v":0}]
[" "," "]
[91100,"Administrative Salaries",{"$f":"SUM($D29:$E29)","v":0}]
[91200,"Auditing Fees",0]
["91300-010","To PHA Administered Program (i.e., COCC)",0]
["91300-020","To a Third Party/Outside Entity",0]
[91300,"Management Fee",0,{"$f":"SUM(D31:D32)","v":0},{"$f":"SUM(E31:E32)","v":0}]
[91300,"Management Fee",{"$f":"SUM($D31:$E31)","v":0}]
[91310,"Book-keeping Fee",0]
[91400,"Advertising and Marketing",0]
[91500,"Employee Benefit contributions - Administrative",0]
[91600,"Office Expenses",0]
[91700,"Legal Expense",0]
[91800," Travel",0]
[91810,"Allocated Overhead",0]
[91900,"Other",0]
[91000,"Total Operating - Administrative",0,{"$f":"SUM(D29:D30,D33:D42)","v":0},{"$f":"SUM(E29:E30,E33:E42)","v":0}]
[" "," "]
[92000,"Asset Management Fee",{"$f":"SUM($D45:$E45)","v":0}]
[92100,"Tenant Services - Salaries",0]
[92200,"Relocation Costs",0]
[92300,"Employee Benefit Contributions - Tenant Services",0]
[92400,"Tenant Services - Other",{"$f":"SUM($D49:$E49)","v":0}]
[92500,"Total Tenant Services",0,{"$f":"SUM(D45:D49)","v":0},{"$f":"SUM(E45:E49)","v":0}]
[" "," "]
[93100," Water",{"$f":"SUM($D52:$E52)","v":0}]
[93200,"Electricity",0]
[93300,"Gas",0]
[93400,"Fuel",0]
[93500," Labor",0]
[93600,"Sewer",0]
[93700," Employee Benefit Contributions - Utilities",0]
[93800," Other Utilities Expense",0]
[93000,"Total Utilities",0,{"$f":"SUM(D52:D59)","v":0},{"$f":"SUM(E52:E59)","v":0}]
[" "," "]
[94100,"Ordinary Maintenance and Operations - Labor",{"$f":"SUM($D62:$E62)","v":0}]
[94200," Ordinary Maintenance and Operations - Materials and Other",{"$f":"SUM($D63:$E63)","v":0}]
["94300-010","Garbage and Trash Removal Contracts  ",{"$f":"SUM($D64:$IV64)","v":0}]
["94300-020","Heating & Cooling Contracts  ",0]
["94300-030","Snow Removal Contracts  ",0]
["94300-040","Elevator Maintenance Contracts  ",0]
["94300-050","Landscape & Grounds Contracts  ",0]
["94300-060","Unit Turnaround Contracts  ",0]
["94300-070","Electrical Contracts  ",0]
["94300-080","Plumbing Contracts  ",0]
["94300-090","Extermination Contracts  ",0]
["94300-100","Janitorial Contracts  ",0]
["94300-110","Routine Maintenance Contracts  ",0]
["94300-120","Miscellaneous Contracts",0]
[94300,"Ordinary Maintenance and Operations Contracts",{"$f":"SUM($D76:$E76)","v":0},{"$f":"SUM(D64:D75)","v":0},{"$f":"SUM(E64:E75)","v":0}]
[94500,"Employee Benefit Contributions - Ordinary Maintenance",{"$f":"SUM($D77:$E77)","v":0}]
[94000," Total Maintenance",{"$f":"SUM($D78:$E78)","v":0},{"$f":"SUM(D62:D63,D76:D77)","v":0},{"$f":"SUM(E62:E63,E76:E77)","v":0}]
[" "," "]
[95100,"Protective Services - Labor",{"$f":"SUM($D80:$E80)","v":0}]
[95200,"Protective Services - Other Contract Costs",{"$f":"SUM($D81:$E81)","v":0}]
[95300,"Protective Services - Other",{"$f":"SUM($D82:$E82)","v":0}]
[95500,"Employee Benefit Contributions - Protective Services",{"$f":"SUM($D83:$E83)","v":0}]
[95000,"Total Protective Services",{"$f":"SUM($D84:$E84)","v":0},{"$f":"SUM(D80:D83)","v":0},{"$f":"SUM(E80:E83)","v":0}]
[" "," "]
[96110,"Property Insurance",{"$f":"SUM($D86:$E86)","v":0}]
[96120,"Liability Insurance",{"$f":"SUM($D87:$E87)","v":0}]
[96130,"Workmen's Compensation",{"$f":"SUM($D88:$E88)","v":0}]
[96140,"All Other Insurance",{"$f":"SUM($D89:$E89)","v":0}]
[96100,"Total insurance Premiums",{"$f":"SUM($D90:$E90)","v":0},{"$f":"SUM(D86:D89)","v":0},{"$f":"SUM(E86:E89)","v":0}]
[" "," "]
[96200,"Other General Expenses",{"$f":"SUM($D92:$E92)","v":0}]
[96210,"Compensated Absences",0]
[96300,"Payments in Lieu of Taxes",0]
[96400,"Bad debt - Tenant Rents",0]
[96500,"Bad debt - Mortgages",0]
[96600,"Bad debt - Other",0]
[96800,"Severance Expense",0]
[96000,"Total Other General Expenses",0,{"$f":"SUM(D92:D98)","v":0},{"$f":"SUM(E92:E98)","v":0}]
[" "," "]
[96710,"Interest of Mortgage (or Bonds) Payable",{"$f":"SUM($D101:$E101)","v":0}]
[96720,"Interest on Notes Payable (Short and Long Term)",{"$f":"SUM($D102:$E102)","v":0}]
[96730,"Amortization of Bond Issue Costs",{"$f":"SUM($D103:$E103)","v":0}]
[96700,"Total Interest Expense and Amortization Cost",{"$f":"SUM($D104:$E104)","v":0},{"$f":"SUM(D101:D103)","v":0},{"$f":"SUM(E101:E103)","v":0}]
[" "," "]
[96900,"Total Operating Expenses",{"$f":"SUM($D106:$E106)","v":0},{"$f":"+D104+D99+D90+D84+D78+D60+D50+D43","v":0},{"$f":"+E104+E99+E90+E84+E78+E60+E50+E43","v":0}]
[" "," "]
[97000,"Excess of Operating Revenue over Operating Expenses",{"$f":"SUM($D108:$E108)","v":0},{"$f":"+D27-D106","v":0},{"$f":"+E27-E106","v":0}]
[" "," "]
[97100,"Extraordinary Maintenance",{"$f":"SUM($D110:$E110)","v":0}]
[97200,"Casualty Losses - Non-capitalized",0]
[97300,"Housing Assistance Payments",0]
[97350,"HAP Portability-In",0]
[97400,"Depreciation Expense",0]
[97500,"Fraud Losses",0]
[97600,"Capital Outlays  - Governmental Funds",0]
[97700,"Debt Principal Payment - Governmental Funds",0]
[97800,"Dwelling Units Rent Expense",0]
[90000," Total Expenses",0,{"$f":"SUM(D110:D118,D106)","v":0},{"$f":"SUM(E110:E118,E106)","v":0}]
[" "," "]
[10010,"Operating Transfer In",{"$f":"SUM($D121:$E121)","v":0}]
[10020,"Operating transfer Out",0]
[10030,"Operating Transfers from/to Primary Government",0]
[10040,"Operating Transfers from/to Component Unit",0]
[10050,"Proceeds from Notes, Loans and Bonds",0]
[10060,"Proceeds from Property Sales",0]
[10070,"Extraordinary Items, Net Gain/Loss",0]
[10080,"Special Items (Net Gain/Loss)",0]
[10091,"Inter Project Excess Cash Transfer In",0]
[10092,"Inter Project Excess Cash Transfer Out",0]
[10093,"Transfers between Program and Project - In",0]
[10094,"Transfers between Project and Program - Out",0]
[10100,"Total Other financing Sources (Uses)",0,{"$f":"SUM(D121:D132)","v":0},{"$f":"SUM(E121:E132)","v":0}]
[" "," "]
[10000,"Excess (Deficiency) of Total Revenue Over (Under) Total ",{"$f":"SUM($D135:$E135)","v":0},{"$f":"+D27-D119+D133","v":0},{"$f":"+E27-E119+E133","v":0}]
[" "," "]
[11020,"Required Annual Debt Principal Payments",{"$f":"SUM($D137:$E137)","v":0}]
[11030,"Beginning Equity",0]
["11040-010","Prior Period Adjustments and Correction of Errors",0]
["11040-020","Prior Period Adjustments and Correction of Errors",0]
["11040-030","Prior Period Adjustments and Correction of Errors",0]
["11040-040","Prior Period Adjustments and Correction of Errors",0]
["11040-050","Prior Period Adjustments and Correction of Errors",0]
["11040-060","Prior Period Adjustments and Correction of Errors",0]
["11040-070","Equity Transfers",0]
["11040-080","Equity Transfers",0]
["11040-090","Equity Transfers",0]
["11040-100","Equity Transfers",0]
["11040-110","Equity Transfers",0]
[11040,"Prior Period Adjustments, Equity Transfers and Correction of ",0,{"$f":"SUM(D139:D149)","v":0},{"$f":"SUM(E139:E149)","v":0}]
[11050,"Changes in Compensated Absence Balance",0]
[11060,"Changes in Contingent Liability Balance",0]
[11070,"Changes in Unrecognized Pension Transition Liability",0]
[11080,"Changes in Special Term/Severance Benefits Liability",0]
[11090,"Changes in Allowance for Doubtful Accounts - Dwelling Rents",0]
[11100,"Changes in Allowance for Doubtful Accounts - Other",0]
[11170,"Administrative Fee Equity",0]
[11180,"Housing Assistance Payments Equity",0]
[11190,"Unit Months Available",0]
[11210,"Number of Unit Months Leased",0]
[11270,"Excess Cash",0]
[11610,"Land Purchases",0]
[11620,"Building Purchases",0]
[11630,"Furniture & Equipment - Dwelling Purchases",0]
[11640,"Furniture & Equipment - Administrative Purchases",0]
[11650,"Leasehold Improvements Purchases",0]
[11660,"Infrastructure Purchases",0]
[13510,"CFFP Debt Service Payments",0]
[13901,"Replacement Housing Factor Funds",0]

{"sheet":"HCV BS","index":13,"n_rows":134,"n_cols":3,"rows_kept":134,"cut":false,"hidden":false,"merged":[]}
["PHA",{"$f":"'PHA Info'!C12&\" \"&'PHA Info'!C13","v":"Select PHA Code "}]
["FDS Submission",{"$f":"TEXT('PHA Info'!C18,\"mm\")&\"/\"&TEXT('PHA Info'!C18,\"dd\")&\"/\"&TEXT('PHA Info'!C18,\"yyyy\")&\"  \"&'PHA Info'!C17","v":"Select Fiscal Year End/Select Fiscal Year End/Select Fiscal Year End  Select Submission Type"}]
["Financial Statement","HCV Program Balance Sheet"]
["FDS Line Item","Description",14.871]
[111,"Cash - Unrestricted"]
[112,"Cash - Restricted - Modernization and Development"]
["113-010","HAP Funds"]
["113-020","FSS Escrow Deposits"]
["113-030","All Other Funds"]
[113,"Cash - Other Restricted",{"$f":"SUM(C7:C9)","v":0}]
[113,"Cash - Other Restricted"]
[114,"Cash - Tenant Security Deposits"]
["115-010","HAP Funds"]
["115-020","FSS Escrow Deposits"]
["115-030","All Other Funds"]
[115,"Cash - Restricted for Payment of Current Liabilities",{"$f":"SUM(C13:C15)","v":0}]
[115,"Cash - Restricted for Payment of Current Liabilities"]
[100,"Total Cash",{"$f":"SUM(C5:C6,C10,C11,C12,C17,C16)","v":0}]
[" "," "]
[121,"Accounts Receivable - PHA Projects"]
[122," Accounts Receivable - HUD Other Projects"]
[124,"Accounts Receivable - Other Government"]
[125,"Accounts Receivable - Miscellaneous"]
[126,"Accounts Receivable - Tenants"]
[126.1,"Allowance for Doubtful Accounts -Tenants"]
[126.2,"Allowance for Doubtful Accounts - Other"]
[127,"Notes, Loans, & Mortgages Receivable - Current"]
[128,"Fraud Recovery"]
[128.1,"Allowance for Doubtful Accounts - Fraud"]
[129,"Accrued Interest Receivable"]
[120,"Total Receivables, Net of Allowances for Doubtful Accounts",{"$f":"SUM(C20:C30)","v":0}]
[" "," "]
[131,"Investments - Unrestricted"]
["132-010","HAP Funds"]
["132-020","FSS Escrow Deposits"]
["132-030","All Other Funds"]
[132,"Investments - Restricted",{"$f":"SUM(C34:C36)","v":0}]
[132,"Investments - Restricted"]
["135-010","HAP Funds"]
["135-020","FSS Escrow Deposits"]
["135-030","All Other Funds"]
[135,"Investments - Restricted for Payment of Current Liability",{"$f":"SUM(C39:C41)","v":0}]
[135,"Investments - Restricted for Payment of Current Liability"]
[142,"Prepaid Expenses and Other Assets"]
[143,"Inventories"]
[143.1,"Allowance for Obsolete Inventories"]
[144,"Inter Program Due From"]
[145,"Assets Held for Sale"]
[150,"Total Current Assets",{"$f":"SUM(C37,C33,C42:C48,C31,C18)","v":0}]
[" "," "]
[161,"Land"]
[162,"Buildings"]
[163,"Furniture, Equipment & Machinery - Dwellings"]
[164,"Furniture, Equipment & Machinery - Administration"]
[165,"Leasehold Improvements"]
[166,"Accumulated Depreciation"]
[167,"Construction in Progress"]
[168,"Infrastructure"]
[160,"Total Capital Assets, Net of Accumulated Depreciation",{"$f":"SUM(C51:C58)","v":0}]
[" "," "]
[171,"Notes, Loans and Mortgages Receivable - Non-Current"]
[172,"Notes, Loans, & Mortgages Receivable - Non Current - Past Due"]
[173,"Grants Receivable - Non Current"]
[174,"Other Assets"]
[176,"Investments in Joint Ventures"]
[180," Total Non-Current Assets",{"$f":"SUM(C61:C65,C59)","v":0}]
[" "," "]
[190,"Total Assets",{"$f":"+C66+C49","v":0}]
[" "]
[200,"Deferred Outflow of Resources"]
[" "," "]
[290,"Total Assests and Deferred Outflow of Resources",{"$f":"+C70+C68","v":0}]
[]
[311,"Bank Overdraft"]
[312,"Accounts Payable <= 90 Days"]
[313,"Accounts Payable >90 Days Past Due"]
[321,"Accrued Wage/Payroll Taxes Payable"]
[322,"Accrued Compensated Absences - Current Portion"]
[324,"Accrued Contingency Liability"]
[325,"Accrued Interest Payable"]
[331,"Accounts Payable - HUD PHA Programs"]
[332,"Account Payable - PHA Projects"]
[333,"Accounts Payable - Other Government"]
[341,"Tenant Security Deposits"]
[342,"Deferred Revenues"]
[343,"Current Portion of Long-term Debt - Capital Projects/Mortgage "]
[344,"Current Portion of Long-term Debt - Operating Borrowings"]
[345,"Other Current Liabilities"]
[346," Accrued Liabilities - Other"]
[347,"Inter Program - Due To"]
[348,"Loan Liability - Current"]
[310,"Total Current Liabilities",{"$f":"SUM(C74:C91)","v":0}]
[" "," "]
[351,"Long-term Debt, Net of Current - Capital Projects/Mortgage Revenue"]
[352,"Long-term Debt, Net of Current - Operating Borrowings"]
[353,"Non-current Liabilities - Other"]
[354,"Accrued Compensated Absences - Non Current"]
[355,"Loan Liability - Non Current"]
[356,"FASB 5 Liabilities"]
["357-010","Pension Liability"]
["357-020","OPEB Liability"]
[357,"Accrued Pension and OPEB Liabilities",{"$f":"SUM($D102:$IV102)","v":0}]
[357,"Accrued Pension and OPEB Liabilities"]
[350,"Total Non-Current Liabilities",{"$f":"SUM(C94:C103)","v":0}]
[" "," "]
[300,"Total Liabilities",{"$f":"+C104+C92","v":0}]
[" "," "]
[400,"Deferrred Inflow of Resources"]
[]
[508.1,"Invested In Capital Assets, Net of Related Debt"]
[511.1,"Restricted Net Assets"]
[512.1,"Unrestricted Net Assets"]
[513,"Total Equity/Net Assets",{"$f":"SUM(C110:C112)","v":0}]
[" "," "]
[509.2,"Fund Balance Reserved"]
[511.2,"Unreserved, Designated Fund Balance"]
[512.20000000000005,"Unreserved, Undesignated Fund Balance"]
[513,"Total Equity/Net Assets",{"$f":"SUM(C115:C117)","v":0}]
[]
[508.3,"Nonspendable Fund Balance"]
[509.3,"Restricted Fund Balance"]
[510.3,"Committed Fund Balance"]
[511.3,"Assigned Fund Balance"]
[512.29999999999995,"Unassigned Fund Balance"]
[513,"Total Equity/Net Assets",{"$f":"SUM(C120:C124)","v":0}]
[" "," "]
[508.4,"Net Investment in Capital Assets"]
[511.4,"Restricted Net Position"]
[512.4,"Unrestricted Net Position"]
[513,"Total Equity - Net Assets / Position",{"$f":"SUM(C127:C129)","v":0}]
[]
[600,"Total Liab., Def. Inflow of Res., and Equity - Net Assets / Position",{"$f":"+C130+C125+C108+C106","v":0}]
[]
[600,"Total Liabilities and Equity/Net Assets",{"$f":"+C118+C113+C106","v":0}]

{"sheet":"HCV IS","index":14,"n_rows":220,"n_cols":3,"rows_kept":220,"cut":false,"hidden":false,"merged":[]}
["PHA",{"$f":"'PHA Info'!C12&\" \"&'PHA Info'!C13","v":"Select PHA Code "}]
["FDS Submission",{"$f":"TEXT('PHA Info'!C18,\"mm\")&\"/\"&TEXT('PHA Info'!C18,\"dd\")&\"/\"&TEXT('PHA Info'!C18,\"yyyy\")&\"  \"&'PHA Info'!C17","v":"Select Fiscal Year End/Select Fiscal Year End/Select Fiscal Year End  Select Submission Type"}]
["Financial Statement","HCV Program Income Statement"]
["FDS Line Item","Description","14.871"]
[70300,"Net Tenant Rental Revenue"]
[70400,"Tenant Revenue - Other"]
[70500,"Total Tenant Revenue",{"$f":"+C5+C6","v":0}]
[" "," "]
["70600-010","Housing Assistance Payments"]
["70600-020","Ongoing Administrative Fees Earned"]
["70600-030","Hard to House Fee Revenue"]
["70600-031","FSS Coordinator Grant"]
["70600-040","Actual Independent Public Accountant Audit Costs"]
["70600-050","Total Preliminary Fees Earned"]
["70600-060","All Other Fees"]
["70600-070","Admin Fee Calculation Description"]
[70600,"HUD PHA Operating Grants",{"$f":"SUM(C9:C15)","v":0}]
[70610,"Capital Grants"]
[]
[70710,"Management Fee"]
[70720,"Asset Management Fee"]
[70730," Book Keeping Fee"]
[70740,"Front Line Service Fee"]
[70750,"Other Fees"]
[70700,"Total Fee Revenue",{"$f":"SUM(C20:C24)","v":0}]
[" "," "]
[70800,"Other Government Grants"]
["71100-010","Housing Assistance Payment"]
["71100-020","Administrative Fee"]
[71100,"Investment Income - Unrestricted",{"$f":"+C28+C29","v":0}]
[71200,"Mortgage Interest Income"]
[71300,"Proceeds from Disposition of Assets Held for Sale"]
[71310,"Cost of Sale of Assets"]
["71400-010","Housing Assistance Payment"]
["71400-020","Administrative Fee"]
[71400,"Fraud Recovery",{"$f":"+C34+C35","v":0}]
[71500,"Other Revenue"]
[71600,"Gain or Loss on Sale of Capital Assets"]
["72000-010","Housing Assistance Payment"]
["72000-020","Administrative Fee"]
[72000,"Investment Income - Restricted",{"$f":"+C39+C40","v":0}]
[]
[70000,"Total Revenue",{"$f":"SUM(C41,C36:C38,C30:C33,C27,C25,C18,C17,C7)","v":0}]
[" "," "]
[91100,"Administrative Salaries"]
[91200,"Auditing Fees"]
["91300-010","To PHA Administered Program (i.e., COCC)"]
["91300-020","To a Third Party/Outside Entity"]
[91300,"Management Fee",{"$f":"SUM(C47:C48)","v":0}]
[91300,"Management Fee"]
[91310,"Book-keeping Fee"]
[91400,"Advertising and Marketing"]
[91500,"Employee Benefit contributions - Administrative"]
[91600,"Office Expenses"]
[91700,"Legal Expense"]
[91800," Travel"]
[91810,"Allocated Overhead"]
[91900,"Other"]
[91000,"Total Operating - Administrative",{"$f":"SUM(C45:C46,C49:C58)","v":0}]
[" "," "]
[92000,"Asset Management Fee"]
[]
[92100,"Tenant Services - Salaries"]
[92200,"Relocation Costs"]
[92300,"Employee Benefit Contributions - Tenant Services"]
[92400,"Tenant Services - Other"]
[92500,"Total Tenant Services",{"$f":"SUM(C63:C66)","v":0}]
[" "," "]
[93100," Water"]
[93200,"Electricity"]
[93300,"Gas"]
[93400,"Fuel"]
[93500," Labor"]
[93600,"Sewer"]
[93700," Employee Benefit Contributions - Utilities"]
[93800," Other Utilities Expense"]
[93000,"Total Utilities",{"$f":"SUM(C69:C76)","v":0}]
[" "," "]
[94100,"Ordinary Maintenance and Operations - Labor"]
[94200," Ordinary Maintenance and Operations - Materials and Other"]
[94300,"Ordinary Maintenance and Operations Contracts"]
[94500,"Employee Benefit Contributions - Ordinary Maintenance"]
[94000," Total Maintenance",{"$f":"SUM(C79:C82)","v":0}]
[" "," "]
[95100,"Protective Services - Labor"]
[95200,"Protective Services - Other Contract Costs"]
[95300,"Protective Services - Other"]
[95500,"Employee Benefit Contributions - Protective Services"]
[95000,"Total Protective Services",{"$f":"SUM(C85:C88)","v":0}]
[" "," "]
[96110,"Property Insurance"]
[96120,"Liability Insurance"]
[96130,"Workmen's Compensation"]
[96140,"All Other Insurance"]
[96100,"Total insurance Premiums",{"$f":"SUM(C91:C94)","v":0}]
[" "," "]
[96200,"Other General Expenses"]
[96210,"Compensated Absences"]
[96300,"Payments in Lieu of Taxes"]
[96400,"Bad debt - Tenant Rents"]
[96500,"Bad debt - Mortgages"]
[96600,"Bad debt - Other"]
[96800,"Severance Expense"]
[96000,"Total Other General Expenses",{"$f":"SUM(C97:C103)","v":0}]
[" "," "]
[96710,"Interest of Mortgage (or Bonds) Payable"]
[96720,"Interest on Notes Payable (Short and Long Term)"]
[96730,"Amortization of Bond Issue Costs"]
[96700,"Total Interest Expense and Amortization Cost",{"$f":"SUM(C106:C108)","v":0}]
[" "," "]
[96900,"Total Operating Expenses",{"$f":"+C109+C104+C95+C89+C83+C77+C67+C61+C59","v":0}]
[" "," "]
[97000,"Excess of Operating Revenue over Operating Expenses",{"$f":"+C43-C111","v":0}]
[" "," "]
[97100,"Extraordinary Maintenance"]
[97200,"Casualty Losses - Non-capitalized"]
["97300-010","Mainstream 1"]
["97300-020","Home-Ownership"]
["97300-025","Litigation"]
["97300-030","Hope VI - Section 8"]
["97300-040","Tenant ion"]
["97300-041","Portability-Out"]
["97300-045","FSS Escrow Deposits"]
["97300-049","All Other \"Special\" Vouchers (i.e., FUP, NED, etc.)"]
["97300-050","All Other"]
[97300,"Housing Assistance Payments",{"$f":"SUM(C117:C125)","v":0}]
[97350,"HAP Portability-In"]
[97400,"Depreciation Expense"]
[97500,"Fraud Losses"]
[97600,"Capital Outlays  - Governmental Funds"]
[97700,"Debt Principal Payment - Governmental Funds"]
[97800,"Dwelling Units Rent Expense"]
[90000," Total Expenses",{"$f":"SUM(C126:C132,C115:C116,C111)","v":0}]
[" "," "]
[10010,"Operating Transfer In"]
[10020,"Operating transfer Out"]
[10030,"Operating Transfers from/to Primary Government"]
[10040,"Operating Transfers from/to Component Unit"]
[10050,"Proceeds from Notes, Loans and Bonds"]
[10060,"Proceeds from Property Sales"]
[10070,"Extraordinary Items, Net Gain/Loss"]
[10080,"Special Items (Net Gain/Loss)"]
[10091,"Inter Project Excess Cash Transfer In"]
[10092,"Inter Project Excess Cash Transfer Out"]
[10093,"Transfers between Program and Project - In"]
[10094,"Transfers between Project and Program - Out"]
[10100,"Total Other financing Sources (Uses)",{"$f":"SUM(C135:C146)","v":0}]
[" "," "]
[10000,"Excess (Deficiency) of Total Revenue Over (Under) Total ",{"$f":"+C43-C133+C147","v":0}]
[" "," "]
[11020,"Required Annual Debt Principal Payments"]
[11030,"Beginning Equity"]
[]
["11040-010","Prior Period Adjustments and Correction of Errors"]
["11040-020","Prior Period Adjustments and Correction of Errors"]
["11040-030","Prior Period Adjustments and Correction of Errors"]
["11040-040","Prior Period Adjustments and Correction of Errors"]
["11040-050","Prior Period Adjustments and Correction of Errors"]
["11040-060","Prior Period Adjustments and Correction of Errors"]
["11040-070","Equity Transfers"]
["11040-080","Equity Transfers"]
["11040-090","Equity Transfers"]
["11040-100","Equity Transfers"]
["11040-110","Equity Transfers"]
[11040,"Prior Period Adjustments, Equity Transfers and Correction of ",{"$f":"SUM(C154:C164)","v":0}]
[11050,"Changes in Compensated Absence Balance"]
[11060,"Changes in Contingent Liability Balance"]
[11070,"Changes in Unrecognized Pension Transition Liability"]
[11080,"Changes in Special Term/Severance Benefits Liability"]
[11090,"Changes in Allowance for Doubtful Accounts - Dwelling Rents"]
[11100,"Changes in Allowance for Doubtful Accounts - Other"]
["11170-001","Administrative Fee Equity - Beginning Balance  "]
["11170-010","Administrative Fee Revenue  ",{"$f":"C10","v":0}]
["11170-020","Hard to House Fee Revenue  ",{"$f":"C11","v":0}]
["11170-021","FSS Coordinator Grant  ",{"$f":"C12","v":0}]
["11170-030","Audit Costs  ",{"$f":"C13","v":0}]
["11170-040","Investment Income  ",{"$f":"C40+C29","v":0}]
["11170-045","Fraud Recovery Revenue  ",{"$f":"C35","v":0}]
["11170-050","Other Revenue  "]
["11170-051","Comment for Other Revenue"]
["11170-060","Total Admin Fee Revenues  ",{"$f":"SUM(C173:C179)","v":0}]
["11170-080","Total Operating Expenses  ",{"$f":"C111","v":0}]
["11170-090","Depreciation  ",{"$f":"C128","v":0}]
["11170-095","Housing Assistance Payment Portability In  ",{"$f":"C127","v":0}]
["11170-100","Other Expenses  "]
["11170-101","Comment for Other Expense"]
["11170-110","Total Expenses  ",{"$f":"SUM(C182:C185)","v":0}]
["11170-002","Net Administrative Fee",{"$f":"C181-C187","v":0}]
["11170-003","Administrative Fee Equity- Ending Balance",{"$f":"C172+C188","v":0}]
["11170-005","Pre-2004 Administrative Reserves"]
["11170-006","Post-2003 Administrative Reserves"]
[11170,"Administrative Fee Equity- Ending Balance",{"$f":"C189","v":0}]
["11180-001","Housing Assistance Payments Equity - Beginning Balance"]
["11180-010","Housing Assistance Payment Revenues",{"$f":"C9","v":0}]
["11180-015","Fraud Recovery Revenue",{"$f":"C34","v":0}]
["11180-020","Other Revenue"]
["11180-021","Comments for Other Revenue"]
["11180-025","Investment Income",{"$f":"+C28+C39","v":0}]
["11180-030","Total Housing Assistance Payments Revenues",{"$f":"C198+C196+C195+C194","v":0}]
["11180-080","Housing Assistance Payments",{"$f":"+C126","v":0}]
["11180-090","Other Expenses"]
["11180-091","Comments for Other Expenses"]
["11180-100","Total Housing Assistance Payments Expenses",{"$f":"+C201+C200","v":0}]
["11180-002","Net Housing Assistance Payments",{"$f":"C199-C203","v":0}]
["11180-003","Housing Assistance Payments Equity - Ending",{"$f":"C193+C204","v":0}]
[11180,"Housing Assistance Payments Equity",{"$f":"C205","v":0}]
["11190-210","Total ACC Units"]
["11190-220","Unfunded Units"]
["11190-230","Other Adjustments"]
[11190,"Unit Months Available",{"$f":"SUM(C207:C209)","v":0}]
[11210,"Number of Unit Months Leased"]
[11270,"Excess Cash"]
[11610,"Land Purchases"]
[11620,"Building Purchases"]
[11630,"Furniture & Equipment - Dwelling Purchases"]
[11640,"Furniture & Equipment - Administrative Purchases"]
[11650,"Leasehold Improvements Purchases"]
[11660,"Infrastructure Purchases"]
[13510,"CFFP Debt Service Payments"]
[13901,"Replacement Housing Factor Funds"]

{"sheet":"Sheet3","index":15,"n_rows":4271,"n_cols":13,"rows_kept":4271,"cut":false,"hidden":true,"merged":[]}
["PHA","PHA Name"]
["Select PHA Code",null,null,null,"Select Submission Type",null,null,"Select Accounting Method",null,null,0,0]
["AK001","Alaska Housing Finance Corporation",null,null,"Unaudited/Non Single Audit",null,null,"Full Accrual",null,null,1,1,"D"]
["AK901","AK HSG FINANCE CORP",null,null,"Unaudited/No Audit ",null,null,"Modified Accrual",null,null,2,2,"E"]
["AL001","Housing Authority of the Birmingham District",null,null,"Unaudited/Single Audit",null,null,null,null,null,3,3,"F"]
["AL002","Mobile Housing Board",null,null," ",null,null,null,null,null,4,4,"G"]
["AL004","Anniston HA",null,null,"Select Asset Management Type",null,null,null,null,null,5,5,"H"]
["AL005","Phenix City Housing Authority",null,null,"Asset Management without COCC/Elimination ",null,null,null,null,null,6,6,"I"]
["AL006","Housing Authority of the City of Montgomery",null,null,"Asset Management with Elimination Only ",null,null,null,null,null,7,7,"J"]
["AL007","Housing Authority of the City of Dothan",null,null,"Asset Management with COCC/Elimination ",null,null,null,null,null,8,8,"K"]
["AL008","Selma Housing Authority",null,null,"Non-Asset Management with COCC/Elimination ",null,null,null,null,null,9,9,"L"]
["AL009","Housing Authority of the City of Attalla",null,null,"Non-Asset Management with Elimination Only ",null,null,null,null,null,10,10,"M"]
["AL010","Fairfield Housing Authority",null,null,"Non Asset Management",null,null,null,null,null,11,11,"N"]
["AL011","Housing Authority of the City of Fort Payne",null,null,null,null,null,null,null,null,12,12,"O"]
["AL012","Housing Authority of the City of Jasper",null,null,null,null,null,null,null,null,13,13,"P"]
["AL013","Tarrant Housing Authority",null,null,null,null,null,null,null,null,14,14,"Q"]
["AL014","The Guntersville Housing Authority",null,null," ",null,null,null,null,null,15,15,"R"]
["AL047","The Housing Authority of the City of Huntsville",null,null,"Select Fiscal Year End",null,null,null,null,null,16,16,"S"]
["AL048","Housing Authority of the City of Decatur",null,null,"12/31/2015",null,null,null,null,null,17,17,"T"]
["AL049","Greater Gadsden",null,null,"3/31/2016",null,null,null,null,null,18,18,"U"]
["AL050","HA Auburn",null,null,"6/30/2016",null,null,null,null,null,19,19,"V"]
["AL051","Housing Authority of Red Bay",null,null,"9/30/2016",null,null,null,null,null,20,20,"W"]
["AL052","HA Cullman",null,null,"12/31/2016",null,null,null,null,null,21,21,"X"]
["AL053","Housing Authority of Hamilton, Alabama",null,null,"3/31/2017",null,null,null,null,null,22,22,"Y"]
["AL054","Florence H/A",null,null,"6/30/2017",null,null,null,null,null,23,23,"Z"]
["AL055","HA Cordova",null,null,"9/30/2017",null,null,null,null,null,24,24,"AA"]
["AL056","Haleyville Housing Authority",null,null,"12/31/2017",null,null,null,null,null,25,25,"AB"]
["AL057","Sylacauga Housing Authority",null,null,"3/31/2018",null,null,null,null,null,26,null,"AC"]
["AL058","Winfield Housing Authority",null,null,"6/30/2018",null,null,null,null,null,27,null,"AD"]
["AL059","Housing Authority of the City of Tuscumbia",null,null,"9/30/2018",null,null,null,null,null,28,null,"AE"]
["AL060","HA Russellville",null,null,"12/31/2018",null,null,null,null,null,29,null,"AF"]
["AL061","HA Opelika",null,null,"3/31/2019",null,null,null,null,null,30,null,"AG"]
["AL062","Housing Authority of the City of Lanett, Al",null,null,"6/30/2019",null,null,null,null,null,31,null,"AH"]
["AL063","H A Oneonta",null,null,"9/30/2019",null,null,null,null,null,32,null,"AI"]
["AL064","Housing Authority of the City of Carbon Hill",null,null,"12/31/2019",null,null,null,null,null,33,null,"AJ"]
["AL065","Housing Authority of the City of Roanoke, Al",null,null,"3/31/2020",null,null,null,null,null,34,null,"AK"]
["AL066","Housing Authority of Reform",null,null,"6/30/2020",null,null,null,null,null,35,null,"AL"]
["AL067","Housing Authority of the City of Athens, Al",null,null,"9/30/2020",null,null,null,null,null,36,null,"AM"]
["AL068","Sheffield Housing Authority",null,null,"12/31/2020",null,null,null,null,null,37,null,"AN"]
["AL069","HA Leeds",null,null,"3/31/2021",null,null,null,null,null,38,null,"AO"]
["AL070","City of Union Springs Housing Authority",null,null,"6/30/2021",null,null,null,null,null,39,null,"AP"]
["AL071","Housing Authority of Guin, Alabama",null,null,"9/30/2021",null,null,null,null,null,40,null,"AQ"]
["AL072","HA Columbiana",null,null,"12/31/2021",null,null,null,null,null,41,null,"AR"]
["AL073","Housing Authority of the City of Ozark",null,null,"3/31/2022",null,null,null,null,null,42,null,"AS"]
["AL074","Housing Authority of Boston",null,null,"6/30/2022",null,null,null,null,null,43,null,"AT"]
["AL075","Boaz Housing Authority",null,null,"9/30/2022",null,null,null,null,null,44,null,"AU"]
["AL076","Hackleburg Housing Authority",null,null,"12/31/2022",null,null,null,null,null,45,null,"AV"]
["AL077","HA Tuscaloosa",null,null,"3/31/2023",null,null,null,null,null,46,null,"AW"]
["AL078","Housing Authority of the Town of Berry",null,null,"6/30/2023",null,null,null,null,null,47,null,"AX"]
["AL079","Housing Authority of the Town of Montevallo",null,null,"9/30/2023",null,null,null,null,null,48,null,"AY"]
["AL080","Housing Authority of the City of Moulton, Al",null,null,"12/31/2023",null,null,null,null,null,49,null,"AZ"]
["AL081","Bear Creek Housing Authority",null,null,"3/31/2024",null,null,null,null,null,50,null,"BA"]
["AL082","Crossville Housing Auhtority",null,null,"6/30/2024",null,null,null,null,null,51,null,"BB"]
["AL083","Collinsville Housing Authority",null,null,"9/30/2024",null,null,null,null,null,52,null,"BC"]
["AL084","Housing Authority of the City of Vernon, Al",null,null,"12/31/2024",null,null,null,null,null,53,null,"BD"]
["AL085","Housing Authority of the Town of Calera",null,null,"3/31/2025",null,null,null,null,null,54,null,"BE"]
["AL086","Jefferson County Housing Authority",null,null,"6/30/2025",null,null,null,null,null,55,null,"BF"]
["AL087","Housing Authority of the City of Hartselle",null,null,"9/30/2025",null,null,null,null,null,56,null,"BG"]
["AL088","Housing Authority of the City of Luverne, Al",null,null,"12/31/2025",null,null,null,null,null,57,null,"BH"]
["AL089","Vincent Housing Authority",null,null,null,null,null,null,null,null,58,null,"BI"]
["AL090","Phil Campbell Housing Authority",null,null,null,null,null,null,null,null,59,null,"BJ"]
["AL091","HA Arab",null,null,null,null,null,null,null,null,60,null,"BK"]
["AL093","Housing Authority of the Town of Hanceville",null,null,null,null,null,null,null,null,61,null,"BL"]
["AL094","Housing Authority of the City of Georgiana",null,null,null,null,null,null,null,null,62,null,"BM"]
["AL095","HA Millport",null,null,null,null,null,null,null,null,63,null,"BN"]
["AL096","Housing Authority of the City of Heflin",null,null,null,null,null,null,null,null,64,null,"BO"]
["AL098","Housing Authority of the City of Aliceville",null,null,null,null,null,null,null,null,65,null,"BP"]
["AL099","HA Scottsboro",null,null,null,null,null,null,null,null,66,null,"BQ"]
["AL100","Housing Authority of the City of Columbia",null,null,null,null,null,null,null,null,67,null,"BR"]
["AL101","Abbeville Housing Authority",null,null,null,null,null,null,null,null,68,null,"BS"]
["AL102","Altoona Housing Authority",null,null,null,null,null,null,null,null,69,null,"BT"]
["AL103","Housing Authority of the City of Hartford",null,null,null,null,null,null,null,null,70,null,"BU"]
["AL104","Cottonwood Housing Authority",null,null,null,null,null,null,null,null,71,null,"BV"]
["AL105","Housing Authority of the City of Talladega, Al",null,null,null,null,null,null,null,null,72,null,"BW"]
["AL106","Pell City Housing Authority",null,null,null,null,null,null,null,null,73,null,"BX"]
["AL107","HA Elba",null,null,null,null,null,null,null,null,74,null,"BY"]
["AL108","Ragland Housing Authority",null,null,null,null,null,null,null,null,75,null,"BZ"]
["AL109","Housing Authority of the City of Demopolis, Al",null,null,null,null,null,null,null,null,76,null,"CA"]
["AL110","HA Piedmont",null,null,null,null,null,null,null,null,77,null,"CB"]
["AL111","Housing Authority of the City of Florala",null,null,null,null,null,null,null,null,78,null,"CC"]
["AL112","HA Opp",null,null,null,null,null,null,null,null,79,null,"CD"]
["AL114","Lineville Housing Authority",null,null,null,null,null,null,null,null,80,null,"CE"]
["AL115","Enterprise Housing Authority",null,null,null,null,null,null,null,null,81,null,"CF"]
["AL116","York Housing Authority",null,null,null,null,null,null,null,null,82,null,"CG"]
["AL117","Washington County Housing Authority",null,null,null,null,null,null,null,null,83,null,"CH"]
["AL118","Eufaula Housing Authority",null,null,null,null,null,null,null,null,84,null,"CI"]
["AL119","Housing Authority of the City of Sulligent, Al",null,null,null,null,null,null,null,null,85,null,"CJ"]
["AL120","Housing Authority of the City of Linden",null,null,null,null,null,null,null,null,86,null,"CK"]
["AL121","Albertville Housing Authority",null,null,null,null,null,null,null,null,87,null,"CL"]
["AL122","Childersburg Housing Authority",null,null,null,null,null,null,null,null,88,null,"CM"]
["AL123","Housing Authority of the City of Headland, Al",null,null,null,null,null,null,null,null,89,null,"CN"]
["AL124","HA Midland City",null,null,null,null,null,null,null,null,90,null,"CO"]
["AL125","HA Bessemer",null,null,null,null,null,null,null,null,91,null,"CP"]
["AL126","Brundidge Housing Authority",null,null,null,null,null,null,null,null,92,null,"CQ"]
["AL127","HA Andalusia",null,null,null,null,null,null,null,null,93,null,"CR"]
["AL128","HA Samson",null,null,null,null,null,null,null,null,94,null,"CS"]
["AL129","Walker County Housing Authority",null,null,null,null,null,null,null,null,95,null,"CT"]
["AL131","Housing Authority of the City of Prattville, Al",null,null,null,null,null,null,null,null,96,null,"CU"]
["AL132","Housing Authority of the City of Goodwater",null,null,null,null,null,null,null,null,97,null,"CV"]
["AL133","Housing Authority of the Town of Hobson City",null,null,null,null,null,null,null,null,98,null,"CW"]
["AL134","Housing Authority of the Town of Blountsville, Al",null,null,null,null,null,null,null,null,99,null,"CX"]
["AL135","Housing Authority of the Town of Valley Head, Al",null,null,null,null,null,null,null,null,100,null,"CY"]
["AL136","Housing Authority of the Town of Ashland",null,null,null,null,null,null,null,null,101,null,"CZ"]
["AL137","Housing Authority of the City of Fayette",null,null,null,null,null,null,null,null,102,null,"DA"]
["AL138","Gordo Housing Authority",null,null,null,null,null,null,null,null,103,null,"DB"]
["AL139","HA Jacksonville",null,null,null,null,null,null,null,null,104,null,"DC"]
["AL140","Housing Authority of the City of Centre, Al",null,null,null,null,null,null,null,null,105,null,"DD"]
["AL141","Housing Authority of the Town of Kennedy",null,null,null,null,null,null,null,null,106,null,"DE"]
["AL142","Housing Authority of the City of Newton",null,null,null,null,null,null,null,null,107,null,"DF"]
["AL143","Housing Authority of the Town of Slocomb",null,null,null,null,null,null,null,null,108,null,"DG"]
["AL144","HA Ashford",null,null,null,null,null,null,null,null,109,null,"DH"]
["AL145","Housing Authority of the City of Brantley",null,null,null,null,null,null,null,null,110,null,"DI"]
["AL146","Housing Authority of the City of Eutaw",null,null,null,null,null,null,null,null,111,null,"DJ"]
["AL147","Housing Authority of the City of Bridgeport",null,null,null,null,null,null,null,null,112,null,"DK"]
["AL149","Housing Authority of the Town of New Brockton",null,null,null,null,null,null,null,null,113,null,"DL"]
["AL150","Housing Authority of the City of Clanton",null,null,null,null,null,null,null,null,114,null,"DM"]
["AL151","Housing Authority of the City of Brent",null,null,null,null,null,null,null,null,115,null,"DN"]
["AL152","HA Northport",null,null,null,null,null,null,null,null,116,null,"DO"]
["AL153","Housing Authority of the Town of Parrish",null,null,null,null,null,null,null,null,117,null,"DP"]
["AL154","HA Atmore",null,null,null,null,null,null,null,null,118,null,"DQ"]
["AL155","Housing Authority of the City of Greenville",null,null,null,null,null,null,null,null,119,null,"DR"]
["AL156","Housing Authority of the City of Brewton",null,null,null,null,null,null,null,null,120,null,"DS"]
["AL157","Housing Authority of the City of Greensboro",null,null,null,null,null,null,null,null,121,null,"DT"]
["AL158","Housing Authority of the Town of Clayton",null,null,null,null,null,null,null,null,122,null,"DU"]
["AL159","Housing Authority of the City of Lafayette",null,null,null,null,null,null,null,null,123,null,"DV"]
["AL160","Tuskegee Housing Authority",null,null,null,null,null,null,null,null,124,null,"DW"]
["AL161","Housing Authority of the City of Marion, Al",null,null,null,null,null,null,null,null,125,null,"DX"]
["AL163","HA FLOMATON",null,null,null,null,null,null,null,null,126,null,"DY"]
["AL164","HA Bay Minette",null,null,null,null,null,null,null,null,127,null,"DZ"]
["AL165","HA Foley",null,null,null,null,null,null,null,null,128,null,"EA"]
["AL166","Housing Authority of the City of Chickasaw",null,null,null,null,null,null,null,null,129,null,"EB"]
["AL167","Stevenson Housing Authority",null,null,null,null,null,null,null,null,130,null,"EC"]
["AL168","Rainsville Housing Authority",null,null,null,null,null,null,null,null,131,null,"ED"]
["AL169","The Housing Authority of the City of Prichard",null,null,null,null,null,null,null,null,132,null,"EE"]
["AL171","Uniontown Housing Authority",null,null,null,null,null,null,null,null,133,null,"EF"]
["AL172","HA Tallassee",null,null,null,null,null,null,null,null,134,null,"EG"]
["AL173","HA Monroeville",null,null,null,null,null,null,null,null,135,null,"EH"]
["AL174","Housing Authority of the City of Alexander City",null,null,null,null,null,null,null,null,136,null,"EI"]
["AL175","Housing Authority of the City of Livingston",null,null,null,null,null,null,null,null,137,null,"EJ"]
["AL176","Sumiton Housing Authority",null,null,null,null,null,null,null,null,138,null,"EK"]
["AL177","HA Troy",null,null,null,null,null,null,null,null,139,null,"EL"]
["AL178","Housing Authority of the City of Dadeville",null,null,null,null,null,null,null,null,140,null,"EM"]
["AL179","Housing Authority of the City of Daleville",null,null,null,null,null,null,null,null,141,null,"EN"]
["AL180","HOUSING AUTHORITY OF CARROLLTON",null,null,null,null,null,null,null,null,142,null,"EO"]
["AL181","Evergreen Housing Authority",null,null,null,null,null,null,null,null,143,null,"EP"]
["AL182","Triana Housing Authority",null,null,null,null,null,null,null,null,144,null,"EQ"]
["AL187","Regional HA of Lawrence, Cullman & Morgan Counties",null,null,null,null,null,null,null,null,145,null,"ER"]
["AL189","Top of Alabama Regional Housing Authority",null,null,null,null,null,null,null,null,146,null,"ES"]
["AL190","Housing Authority of Greene County, Al",null,null,null,null,null,null,null,null,147,null,"ET"]
["AL192","South Central Alabama Regional HA",null,null,null,null,null,null,null,null,148,null,"EU"]
["AL193","Housing Authority of the Town of Fort Deposit",null,null,null,null,null,null,null,null,149,null,"EV"]
["AL199","Housing Authority of the City of Valley",null,null,null,null,null,null,null,null,150,null,"EW"]
["AL202","Mobile County Housing Authority",null,null,null,null,null,null,null,null,151,null,"EX"]
["AR002","North Little Rock Housing Authority",null,null,null,null,null,null,null,null,152,null,"EY"]
["AR003","The Housing Authority of the City of Fort Smi",null,null,null,null,null,null,null,null,153,null,"EZ"]
["AR004","Housing Authority of the City of Little Rock",null,null,null,null,null,null,null,null,154,null,"FA"]
["AR005","Blytheville Housing Authority",null,null,null,null,null,null,null,null,155,null,"FB"]
["AR006","Housing Authority of the City of Conway",null,null,null,null,null,null,null,null,156,null,"FC"]
["AR010","NW Regional Housing Authority",null,null,null,null,null,null,null,null,157,null,"FD"]
["AR012","Arkadelphia Housing Authority",null,null,null,null,null,null,null,null,158,null,"FE"]
["AR015","Housing Authority of the City of Texarkana",null,null,null,null,null,null,null,null,159,null,"FF"]
["AR016","Camden Housing Authority",null,null,null,null,null,null,null,null,160,null,"FG"]
["AR017","Housing Authority of the City of Pine Bluff",null,null,null,null,null,null,null,null,161,null,"FH"]
["AR018","Housing Authority of the City of Magnolia",null,null,null,null,null,null,null,null,162,null,"FI"]
["AR020","Little River County Housing Authority",null,null,null,null,null,null,null,null,163,null,"FJ"]
["AR021","Housing Authority of the City of Osceola",null,null,null,null,null,null,null,null,164,null,"FK"]
["AR022","Housing Authority of the County of Sevier",null,null,null,null,null,null,null,null,165,null,"FL"]
["AR023","Housing Authority of the County of Poinsett",null,null,null,null,null,null,null,null,166,null,"FM"]
["AR024","West Memphis Housing Authority",null,null,null,null,null,null,null,null,167,null,"FN"]
["AR025","Housing Authority of the County of Howard",null,null,null,null,null,null,null,null,168,null,"FO"]
["AR026","Housing Authority of the City of Morrilton",null,null,null,null,null,null,null,null,169,null,"FP"]
["AR027","Housing Authority of the City of Marianna",null,null,null,null,null,null,null,null,170,null,"FQ"]
["AR028","Housing Authority of the City of Newport",null,null,null,null,null,null,null,null,171,null,"FR"]
["AR029","Housing Authority of the City of Van Buren",null,null,null,null,null,null,null,null,172,null,"FS"]
["AR030","Unknown - No Activity",null,null,null,null,null,null,null,null,173,null,"FT"]
["AR031","Hot Springs Housing Authority",null,null,null,null,null,null,null,null,174,null,"FU"]
["AR032","Housing Authority of the City of Paris",null,null,null,null,null,null,null,null,175,null,"FV"]
["AR033","LOGAN COUNTY HOUSING AUTHORITY",null,null,null,null,null,null,null,null,176,null,"FW"]
["AR034","Trumann Housing Authority",null,null,null,null,null,null,null,null,177,null,"FX"]
["AR035","Searcy Housing Authority",null,null,null,null,null,null,null,null,178,null,"FY"]
["AR037","Housing Authority of the City of Prescott",null,null,null,null,null,null,null,null,179,null,"FZ"]
["AR038","Housing Authority of the City of Booneville",null,null,null,null,null,null,null,null,180,null,"GA"]
["AR039","Wynne Housing Authority",null,null,null,null,null,null,null,null,181,null,"GB"]
["AR040","Housing Authority of the City of Des Arc",null,null,null,null,null,null,null,null,182,null,"GC"]
["AR041","Lonoke County Housing Authority",null,null,null,null,null,null,null,null,183,null,"GD"]
["AR042","Star City Housing Authority",null,null,null,null,null,null,null,null,184,null,"GE"]
["AR043","Housing Authority of the City of Dumas",null,null,null,null,null,null,null,null,185,null,"GF"]
["AR044","Housing Authority of the City of Waldron",null,null,null,null,null,null,null,null,186,null,"GG"]
["AR045","Pike County Housing Authority",null,null,null,null,null,null,null,null,187,null,"GH"]
["AR046","Housing Authority of the City of Amity",null,null,null,null,null,null,null,null,188,null,"GI"]
["AR047","Housing Authority of the City of Hoxie",null,null,null,null,null,null,null,null,189,null,"GJ"]
["AR048","Housing Authority of the City of Dewitt",null,null,null,null,null,null,null,null,190,null,"GK"]
["AR049","Housing Authority of the City of Gurdon",null,null,null,null,null,null,null,null,191,null,"GL"]
["AR050","Housing Authority of the City of Helena",null,null,null,null,null,null,null,null,192,null,"GM"]
["AR051","Housing Authority of the City of Clarksville",null,null,null,null,null,null,null,null,193,null,"GN"]
["AR052","Clarendon Housing Authority",null,null,null,null,null,null,null,null,194,null,"GO"]
["AR053","Housing Authority of the City of McGehee",null,null,null,null,null,null,null,null,195,null,"GP"]
["AR054","Housing Authority of the City of Wilson",null,null,null,null,null,null,null,null,196,null,"GQ"]
["AR055","Housing Authority of the City of Dardanelle",null,null,null,null,null,null,null,null,197,null,"GR"]
["AR057","Housing Authority of the City of Imboden",null,null,null,null,null,null,null,null,198,null,"GS"]
["AR058","Housing Authority of the County of Arkansas",null,null,null,null,null,null,null,null,199,null,"GT"]
["AR059","Housing Authority of the City of Brinkley",null,null,null,null,null,null,null,null,200,null,"GU"]
["AR060","Housing Authority of the City of West Helena"]
["AR061","Housing Authority of the City of Hughes"]
["AR062","Unknown - No Activity"]
["AR063","Housing Authority of the City of Pocahontas"]
["AR064","Housing Authority of the City of Earle"]
["AR065","Housing Authority of the City of Stephens"]
["AR066","Russellville Housing Authority"]
["AR068","Hope Housing Authority"]
["AR069","Housing Authority of the City of Rector"]
["AR070","Housing Authority of the City of Monette"]
["AR071","Housing Authority of the City of Batesville"]
["AR072","Housing Authority of the City of Parkin"]
["AR073","Housing Authority of the City of Sparkman"]
["AR074","Housing Authority of the City of Salem"]
["AR075","Housing Authority of the City of Leachville"]
["AR076","Housing Authority of the City of Mount Ida"]
["AR078","Housing Authority of the City of Dell"]
["AR079","Housing Authority of the City of Luxora"]
["AR080","Housing Authority of the City of Manila"]
["AR081","Housing Authority of the City of Carthage"]
["AR082","Warren Housing Authority"]
["AR083","Housing Authority of the City of Gould"]
["AR084","Housing Authority of the City of Bald Knob"]
["AR085","Housing Authority of the City of Dover"]
["AR086","Housing Authority of the City of Mammoth Spring"]
["AR087","Housing Authority of the City of Crossett"]
["AR088","Housing Authority of the City of Lake City"]
["AR089","Housing Authority of the City of Newark"]
["AR090","Housing Authority of the City of Judsonia"]
["AR091","Housing Authority of the City of Ola"]
["AR092","Housing Authority of the City of Caraway"]
["AR093","Housing Authority of the City of Hickory Ridge"]
["AR094","Housing Authority of the City of Malvern"]
["AR095","Housing Authority of the City of Decatur"]
["AR096","Housing Authority of the City of Alma"]
["AR097","Housing Authority of the City of Fayetteville"]
["AR098","Housing Authority of the City of McRae"]
["AR099","Housing Authority of the City of Forrest City"]
["AR101","Housing Authority of the City of Ozark"]
["AR102","Housing Authority of the City of Coal Hill"]
["AR103","Housing Authority of the City of Melbourne"]
["AR104","Springdale Housing Authority"]
["AR106","Housing Authority of the City of Beebe"]
["AR111","Housing Authority of the City of Rison"]
["AR112","Housing Authority of the City of Marmaduke"]
["AR113","Housing Authority of the City of Heber Springs"]
["AR115","Cushman Housing Authority"]
["AR116","Unknown - No Activity"]
["AR117","Polk County Housing Authority"]
["AR118","Housing Authority of the City of McCrory"]
["AR121","Paragould Housing Authority"]
["AR122","Housing Authority of the City of Yellville"]
["AR123","Housing Authority of the City of Augusta"]
["AR131","Jonesboro Urban Renewal HA"]
["AR135","DEVALLS BLUFF HOUSING AUTHORITY"]
["AR141","Housing Authority of the City of Atkins"]
["AR146","Housing Authority of the City of Kensett"]
["AR148","Housing Authority of the City of England"]
["AR152","LAKE VILLAGE HOUSING AUTH"]
["AR161","CONWAY COUNTY HOUSING AUTH"]
["AR163","HSG AUTH OF THE CITY OF SILOAM SPRINGS"]
["AR166","Stuttgart Housing Authority"]
["AR170","Jacksonville Housing Authority"]
["AR171","Housing Authority of the City of Greenwood"]
["AR172","Housing Authority of the City of Cotton Plant"]
["AR175","Housing Authority of the City of Benton, Ar"]
["AR176","CLAY COUNTY HOUSING DEPARTMENT"]
["AR177","LAWRENCE CO. PUBLIC HSG AGCY"]
["AR181","FAYETTEVILLE HOUSING AUTHORITY"]
["AR193","NWR - TERMINATED  SEE AR010"]
["AR194","CRAWFORD COUNTY PUBLIC FACILITIES BOARD NO 1"]
["AR197","White River Regional Housing Authority"]
["AR199","Unknown - No Activity"]
["AR200","HARRISON HOUSING AGENCY"]
["AR201","WALNUT RIDGE HOUSING AGENCY"]
["AR202","HOXIE PUBLIC HOUSING AGENCY"]
["AR210","DREW COUNTY PUBLIC FACILITIES BOARD"]
["AR211","POPE COUNTY PUBLIC FACILITIES BOARD"]
["AR213","MISSISSIPPI COUNTY PUBLIC FACILITIES BOARD"]
["AR214","ASHLEY COUNTY HOUSING AUTHORITY"]
["AR215","JOHNSON COUNTY SECTION 8 HSG AGENCY"]
["AR219","CABOT PUBLIC HOUSING AGENCY"]
["AR221","BRINKLEY HOUSING AUTHORITY"]
["AR222","UNION CO."]
["AR223"," PHILLIPS COUNTY PUBLIC HOUSING AGENCY"]
["AR224","SAINT FRANCIS COUNTY HOUSING AUTHORITY"]
["AR225","LEE COUNTY HOUSING AUTHORITY"]
["AR226","HOWARD COUNTY PUBLIC HOUSING AGENCY"]
["AR227","Unknown - No Activity"]
["AR228","CITY OF MAGNOLIA HOUSING AUTHORITY"]
["AR230","HOUSING AUTHORITY OF TEXARKANA"]
["AR232","POINSETT COUNTY HOUSING AGENCY"]
["AR234","Unknown - No Activity"]
["AR238","SEVIER COUNTY PUBLIC HOUSING AGENCY"]
["AR240","SCOTT COUNTY PUBLIC HOUSING AGENCY"]
["AR241","FRANKLIN COUNTY PUBLIC HOUSING AGENCY"]
["AR246","CALHOUN COUNTY PUBLIC HOUSING AGENCY"]
["AR247","POCAHONTAS PUBLIC HSG AGENCY"]
["AR248","ARKANSAS CO. PUBLIC HOUSING AGENCY"]
["AR249","DALLAS COUNTY PUBLIC HOUSING AGENCY"]
["AR250","LAFAYETTE CO. PUBLIC HOUSING AGENCY"]
["AR252","PULASKI COUNTY HOUSING AGENCY"]
["AR257","MCGEHEE PUBLIC RESIDENTIAL FACILITIES BOARD"]
["AR264","EARLE SECTION 8 HOUSING AUTHORITY"]
["AR265","YELL COUNTY PUBLIC FACILITIES BOARD"]
["AR266","DESHA CO RESIDENTIAL HSG FACILITIES BOARD"]
["AR267","GREENE COUNTY HOUSING AUTHORITY"]
["AZ001","City of Phoenix Housing Department"]
["AZ003","City of Glendale Housing Authority"]
["AZ004","Housing And Community Development Tucson"]
["AZ005","CITY OF MESA"]
["AZ006","Flagstaff Housing Authority"]
["AZ008","Winslow Public Housing Authority"]
["AZ009","Housing Authority of Maricopa County"]
["AZ010","Pinal County Housing Authority"]
["AZ013","Yuma County Housing Department"]
["AZ021","Eloy Housing Authority"]
["AZ023","Nogales Housing Authority"]
["AZ025","South Tucson Housing Authority"]
["AZ028","Chandler Housing & Redevelopment Division"]
["AZ031","CITY OF TEMPE"]
["AZ032","CITY OF SCOTTSDALE"]
["AZ033","PIMA COUNTY"]
["AZ034","COUNTY OF COCHISE PHA"]
["AZ035","Yuma City Housing Authority"]
["AZ037","CITY OF DOUGLAS HSG AUTH"]
["AZ038","Peoria Housing Authority"]
["AZ041","Williams Housing Authority"]
["AZ043","MOHAVE COUNTY COMMUNTITY SERVICES DEPT."]
["AZ045","GILA COUNTY HOUSING AUTHORITY"]
["AZ880","ARIZONA BEHAVIORAL HEALTH CORPORATION"]
["AZ901","STATE OF ARIZONA"]
["CA001","Housing Authority of the City & County of Sf"]
["CA002","Housing Authority of the County of Los Angeles"]
["CA003","Oakland Housing Authority"]
["CA004","Housing Authority of the City of Los Angeles"]
["CA005","City of Sacramento Housing Authority"]
["CA006","Housing Authority City of Fresno"]
["CA007","County of Sacramento Housing Authority"]
["CA008","Housing Authority of the County of Kern"]
["CA009","Housing Authority of the City of Upland"]
["CA010","City of Richmond Housing Authority"]
["CA011","Housing Authority of the County Contra Costa"]
["CA014","Housing Authority of the County of San Mateo"]
["CA015","City of South San Francisco Housing Authority"]
["CA017","Housing Authority of the City of Riverbank"]
["CA019","Housing Authority of the County of San Bernardino"]
["CA021","Housing Authority of the County of Santa Barbara"]
["CA022","Housing Authority of the City of Needles"]
["CA023","County of Merced Housing Authority"]
["CA024","County of San Joaquin Housing Auth."]
["CA025","City of Eureka Hsg Auth"]
["CA026","County of Stanislaus Housing Auth"]
["CA027","Housing Authority of the County of Riverside"]
["CA028","Housing Authority of Fresno County"]
["CA030","Tulare County Housing Authority"]
["CA031","Housing Authority of the City of Oxnard"]
["CA032","Housing Authority of the City of Port Hueneme"]
["CA033","County of Monterey Hsg Auth"]
["CA035","Housing Authority of the City of San Buenaventura"]
["CA039","Housing Authority of the City of Calexico"]
["CA041","City of Benicia Hsg Auth"]
["CA043","County of Butte Hsg Auth"]
["CA044","Housing Authority of the County of Yolo"]
["CA045","Unknown - No Activity"]
["CA046","City of Wasco Housing Authority"]
["CA048","Regional Hsg Authority of Sutter & Nevada Co."]
["CA049","Soledad"]
["CA050","Housing Authority of the City of Paso Robles"]
["CA052","Housing Authority of County of Marin"]
["CA053","Kings County Housing Auth"]
["CA055","CITY OF VALLEJO"]
["CA056","SAN JOSE HOUSING AUTHORITY"]
["CA058","City of Berkeley Housing Authority"]
["CA059","Housing Authority of the County Santa Clara"]
["CA060","CITY OF PITTSBURG HSG AUTH"]
["CA061","CITY OF CRESCENT CITY HSG AUTH"]
["CA062","CITY OF ALAMEDA HOUSING AUTHORITY"]
["CA063","San Diego Housing Commission"]
["CA064","Housing Authority of the City of San Luis Obispo"]
["CA065","CITY OF FAIRFIELD"]
["CA066","SUISUN CITY HOUSING AUTHORITY"]
["CA067","Alameda County Hsg Auth"]
["CA068","CITY OF LONG BEACH HSG AUTH"]
["CA069","The Housing Authority of the City of Madera"]
["CA070","County of Plumas Housing Authority"]
["CA071","CITY OF COMPTON"]
["CA072","Santa Cruz County Hsg Auth"]
["CA073","HSG AUTHORITY CITY OF NAPA"]
["CA074","Hsg Auth of the City of Livermore"]
["CA075","H/A OF THE CITY OF SANTA PAULA"]
["CA076","Housing Authority of the City of Santa Barbara"]
["CA077","CITY OF CARLSBAD HOUSING & REDEVELOPMENT"]
["CA079","CITY OF PASADENA COMMUNITY DEVELOPMENT COMMISSION"]
["CA081","Housing Authority of the City of Pleasanton"]
["CA082","CITY OF INGLEWOOD"]
["CA084","MENDOCINO COUNTY"]
["CA085","COUNTY OF SONOMA"]
["CA086","COUNTY OF HUMBOLDT HSG AUTH"]
["CA088","CITY OF SANTA ROSA"]
["CA092","Housing Authority of the County of Ventura"]
["CA093","CITY OF SANTA ANA HSG AUTH"]
["CA094","COUNTY OF ORANGE HOUSING AUTHORITY"]
["CA096","COUNTY OF SHASTA HSG AUTH"]
["CA101","Unknown - No Activity"]
["CA102","GARDEN GROVE HOUSING AUTHORITY"]
["CA103","REDONDO BEACH HOUSING AUTHORITY"]
["CA104","CITY OF ANAHEIM HOUSING AUTHORITY"]
["CA105","CITY OF BURBANK HOUSING AUTHORITY"]
["CA106","CITY OF REDDING HSG AUTH"]
["CA107","YUBA COUNTY HOUSING AUTHORITY"]
["CA108","Housing Authority of the County of San Diego"]
["CA110","CULVER CITY PUBLIC HOUSING AGENCY"]
["CA111","CITY OF SANTA MONICA"]
["CA114","CITY OF GLENDALE HOUSING AUTHORITY"]
["CA116","CITY OF NATIONAL CITY"]
["CA117","CITY OF PICO RIVERA"]
["CA118","NORWALK HOUSING AUTHORITY"]
["CA119","CITY OF SOUTH GATE"]
["CA120","Housing Authority of the City of Baldwin Park"]
["CA121","CITY OF TORRANCE"]
["CA122","CITY OF HOLLISTER"]
["CA123","CITY OF POMONA"]
["CA125","CITY OF VACAVILLE"]
["CA126","CITY OF HAWTHORNE HOUSING AUTHORITY"]
["CA127","MARIPOSA COUNTY HSG AUTH"]
["CA128","CITY OF ROSEVILLE"]
["CA131","COUNTY OF SOLANO HSG AUTH"]
["CA132","CITY OF OCEANSIDE COMM DEV COMMISSION"]
["CA135","CITY OF LAKEWOOD HOUSING AUTHORITY"]
["CA136","CITY OF HAWAIIAN GARDENS HSG AUTH"]
["CA137","CITY OF PARAMOUNT HOUSING AUTHORITY"]
["CA138","CITY OF LAWNDALE HSG AUTH"]
["CA139","Housing Authority of the City of Lomita"]
["CA141","SAN JUAN BAUTISTA"]
["CA142","Dublin"]
["CA143","Imperial Valley Housing Authority"]
["CA144","LAKE COUNTY HOUSING COMMISSION"]
["CA145","WEST HOLLYWOOD HOUSING AUTHORITY"]
["CA146","NEVADA COUNTY HOUSING AUTHORITY"]
["CA147","SANTA FE SPRINGS H A"]
["CA149","PLACER COUNTY HOUSING AUTHORITY"]
["CA151","COMM SERVICE DEPT EL DORADO COUNTY"]
["CA152","LASSEN COUNTY"]
["CA154","COUNTY OF TEHAMA"]
["CA155","CITY OF ENCINITAS HOUSING AUTHORITY"]
["CA701","Unknown - No Activity"]
["CA702","Unknown - No Activity"]
["CA703","Unknown - No Activity"]
["CA704","Unknown - No Activity"]
["CA705","Unknown - No Activity"]
["CA706","Unknown - No Activity"]
["CA707","Unknown - No Activity"]
["CA708","Unknown - No Activity"]
["CA710","Unknown - No Activity"]
["CA711","Unknown - No Activity"]
["CA712","Unknown - No Activity"]
["CA912","CALIFORNIA DEPT OF HSG AND COMM DEV"]
["CA913","CALIFORNIA DEPT OF HSG AND COMM DEV"]
["CA915","CALIFORNIA DEPT OF HSG AND COMM DEV"]
["CO001","Housing Authority of the City And County of Denver"]
["CO002","Housing Authority of the City of Pueblo"]
["CO003","Housing Authority of the City of Walsenburg"]
["CO004","Housing Authority of the City of Alamosa"]
["CO005","Trinidad Housing Authority"]
["CO006","Housing Authority of the City of Lamar"]
["CO007","Housing Authority of the Town of Holly"]
["CO008","Housing Authority of Antonito"]
["CO009","Housing Authority of the Town of Yuma"]
["CO011","Fort Morgan Housing Authority"]
["CO012","Housing Authority of the Town of Limon"]
["CO013","Housing Authority of the City of Salida"]
["CO014","Wellington Housing Authority"]
["CO015","Housing Authority of the Town of Aguilar"]
["CO016","Boulder Housing Partners"]
["CO017","Housing Authority of the Town of Haxtun"]
["CO018","Housing Authority of the Town of Kersey"]
["CO019","Housing Authority of the City of Brighton"]
["CO020","Housing Authority of the Town of Keenesburg"]
["CO021","Julesburg Housing Authority"]
["CO022","Housing Authority of the City of Wray"]
["CO023","Holyoke Housing Authority"]
["CO024","LAS ANIMAS HOUSING AUTHORITY"]
["CO025","Housing Authority of the City of Sterling"]
["CO026","Housing Authority for the Town of Cheyenne Wells"]
["CO028","Housing Authority of the City of Colorado Springs"]
["CO029","Housing Authority of the City of Fort Lupton"]
["CO030","Burlington Housing Authority"]
["CO031","La Junta Housing Authority"]
["CO034","LOVELAND HOUSING AUTHORITY"]
["CO035","Housing Authority of the City of Greeley"]
["CO036","Littleton Housing Authority"]
["CO037","Costilla County Housing Authority"]
["CO038","Conejos County Housing Authority"]
["CO040","Delta Housing Authority"]
["CO041","Fort Collins Housing Authority"]
["CO043","Center Housing Authority"]
["CO044","Housing Authority of the City of Brush"]
["CO045","ROCKY FORD HOUSING AUTHORITY"]
["CO048","Englewood Housing Authority"]
["CO049","Lakewood Housing Authority"]
["CO050","ARVADA HOUSING AUTHORITY"]
["CO051","GRAND JUNCTION HSG AUTH"]
["CO052","Aurora Housing Authority"]
["CO057","SHERIDAN HOUSING AUTHORITY"]
["CO058","Adams County Housing Authority"]
["CO059","Louisville Housing Authority"]
["CO061","BOULDER COUNTY HSG AU"]
["CO065","HOUSING AUTHORITY OF THE CITY OF LAMAR"]
["CO070","LONGMONT HOUSING AUTHORITY"]
["CO071","Housing Authority of the City of Fountain"]
["CO072","JEFFERSON COUNTY HOUSING AUTHORITY"]
["CO079","Housing Authority of the County of Montezuma"]
["CO080","Unknown - No Activity"]
["CO081","ARCHULETA COUNTY HOUSING AUTHORITY"]
["CO087","MONTROSE COUNTY HOUSING AUTHORITY"]
["CO090","HOUSING AUTHORITY OF WELD COUNTY"]
["CO095","GARFIELD COUNTY HOUSING AUTHORITY"]
["CO100","HSG.  AUTH.  OF THE CITY OF MANITOU SPRINGS"]
["CO101","OTERO COUNTY HOUSING AUTHORITY"]
["CO103","LARIMER COUNTY HOUSING AUTHORITY"]
["CO105","EL PASO COUNTY HOUSING AUTHORITY"]
["CO888","COLORADO BLUESKY ENTERPRISES"]
["CO889","CENTER FOR PEOPLE WITH DISABILITIES"]
["CO901","COLORADO DEPARTMENT OF HUMAN SERVICES"]
["CO911","COLORADO DIVISION OF HOUSING"]
["CO921","COLORADO HOUSING FINANCE AUTHORITY"]
["CT001","Housing Authority of the City of Bridgeport"]
["CT002","Housing Authority of the City of Norwalk"]
["CT003","Housing Authority of the City of Hartford"]
["CT004","Housing Authority of the City of New Haven"]
["CT005","Housing Authority of the City of New Britain"]
["CT006","Waterbury Housing Authority"]
["CT007","Stamford Housing Authority"]
["CT008","ENFIELD HSG AUTHORITY"]
["CT009","Middletown Housing Authority"]
["CT010","Willimantic Housing Authority"]
["CT011","Housing Authority of the City of Meriden"]
["CT013","East Hartford Housing Authority"]
["CT015","Housing Authority of the City of Ansonia"]
["CT017","DERBY H A"]
["CT018","Norwich Housing Authority"]
["CT019","Greenwich Housing Authority"]
["CT020","Housing Authority of the City of Danbury"]
["CT022","New London Housing Authority"]
["CT023","Bristol Housing Authority"]
["CT024","Putnam Housing Authority"]
["CT025","Winchester Housing Authority"]
["CT026","Manchester Housing Authority"]
["CT027","Housing Authority of the Town of Stratford"]
["CT028","Vernon Housing Authority"]
["CT029","West Haven Housing Authority"]
["CT030","Milford Redevelopment And Housing Partnership"]
["CT031","Torrington Housing Authority"]
["CT032","Windsor Locks Housing Authority"]
["CT033","SOUTH WINDSOR HSG AUTHORITY"]
["CT035","Housing Authority of the Town of Seymour"]
["CT036","Portland Housing Authority"]
["CT038","MANSFIELD H A"]
["CT039","Housing Authority of the Town of West Hartfor"]
["CT040","Housing Authority of the Town of Glastonbury"]
["CT041","FARMINGTON H A"]
["CT042","HAMDEN H A"]
["CT045","Unknown - No Activity"]
["CT047","Naugatuck Housing Authority"]
["CT048","WINDSOR H A"]
["CT049","NEWINGTON H A"]
["CT051","CITY OF HARTFORD"]
["CT052","FAIRFIELD HSG AUTHORITY"]
["CT053","WETHERSFIELD H A"]
["CT054","New Canaan Housing Authority"]
["CT056","Bloomfield Housing Authority"]
["CT058","PLAINFIELD H A"]
["CT061","KILLINGLY HSG AUTHORITY"]
["CT063","EAST HAVEN HSG AUTHORITY"]
["CT066","Housing Authority of the Town of Brooklyn"]
["CT067","WALLINGFORD HSG AUTHORITY"]
["CT068","CANTON HOUSING AUTHORITY"]
["CT901","CONN DEPT OF SOCIAL SERVICES"]
["CT911","Unknown - No Activity"]
["DC001","D.C Housing Authority"]
["DC101","KENILWORTH PARKSIDE RMC"]
["DC777","Unknown - No Activity"]
["DC880","COMMUNITY CONNECTIONS, INC"]
["DE001","Wilmington Housing Authority"]
["DE002","Dover Housing Authority"]
["DE003","Newark Housing Authority"]
["DE004","Delaware State Housing Authority"]
["DE005","NEW CASTLE COUNTY"]
["DE901","DELAWARE STATE HOUSING AUTHORITY"]
["FL001","Jacksonville Housing Authority"]
["FL002","Housing Authority of the City of St. Petersburg"]
["FL003","Tampa Housing Authority"]
["FL004","Orlando Housing Authority"]
["FL005","Miami Dade Public Housing And Community Dev"]
["FL006","Area Housing Commission"]
["FL007","Housing Authority of City of Daytona Beach"]
["FL008","Sarasota Housing Authority"]
["FL009","West Palm Beach Housing Authority"]
["FL010","Housing Authority of the City of Fort Lauderdale"]
["FL011","Housing Authority of the City of Lakeland"]
["FL012","Housing Authority of Avon Park"]
["FL013","Housing Authority of the City of Key West"]
["FL015","Northwest Florida Regional Housing Authority"]
["FL016","The Housing Authority of the City of Sanford"]
["FL017","Housing Authority of the City of Miami Beach"]
["FL018","Panama City Housing Authority"]
["FL019","Housing Authority of the City of Cocoa"]
["FL020","Housing Authority of Brevard County"]
["FL021","Pahokee Housing Authority"]
["FL022","Housing Authority of New Smyrna Beach"]
["FL023","Housing Authority of the City of Bradenton"]
["FL024","Ormond Beach Housing Authority"]
["FL025","Housing Authority of the City of Titusville"]
["FL026","Housing Authority of Bartow"]
["FL027","Housing Authority of the City of Live Oak"]
["FL028","Housing Authority of Pompano Beach"]
["FL030","Housing Authority of the County of Flagler"]
["FL031","Housing Authority of the City of Marianna"]
["FL032","Ocala Housing Authority"]
["FL033","Seminole County Housing Authority"]
["FL034","Plant City Housing Authority"]
["FL035","Housing Authority of Springfield"]
["FL036","Housing Authority of the City of Apalachicola"]
["FL037","Housing Authority of City of Fernandina Beach"]
["FL038","Chipley Housing Authority"]
["FL039","Defuniak Springs Housing Authority"]
["FL040","Housing Authority of the City of Eustis"]
["FL041","Housing Authority of the City of Fort Pierce"]
["FL042","Union County Housing Authority"]
["FL045","Housing Authority of the City of Stuart"]
["FL046","Crestview Housing Authority"]
["FL047","Housing Authority of the Ctiy of Fort Myers"]
["FL049","Levy County Housing Authority"]
["FL050","Suwannee County Housing Authority"]
["FL051","Gilchrist County Housing Authority"]
["FL052","Niceville Housing Authority"]
["FL053","Milton Housing Authority"]
["FL054","Housing Authority of the City of Mulberry"]
["FL055","Arcadia Housing Authority"]
["FL056","Melbourne Housing Authority"]
["FL057","Palatka Housing Authority"]
["FL058","Tarpon Springs Housing Authority"]
["FL060","Punta Gorda Housing Authority"]
["FL061","Dunedin Housing Authority"]
["FL062","Pinellas County Housing Authority"]
["FL063","Gainesville Housing Authority"]
["FL064","Venice Housing Authority"]
["FL065","Macclenny Housing Authority"]
["FL066","Hialeah Housing Authority"]
["FL068","H/A CITY OF HOMESTEAD"]
["FL069","Fort Walton Beach Housing Authority"]
["FL070","Alachua County Housing Authority"]
["FL071","Lake Wales Housing Authority"]
["FL072","Deland Housing Authority"]
["FL073","Tallahassee Housing Authority"]
["FL074","Brooksville Housing Authority"]
["FL075","Clearwater Housing Authority"]
["FL076","Riviera Beach Housing Authority"]
["FL079","Broward County Housing Authority"]
["FL080","Palm Beach County Housing Authority"]
["FL081","Housing Authority of the City of Deerfield Beach"]
["FL082","Housing Authority of the City of Winter Park"]
["FL083","Delray Beach Housing Authority"]
["FL088","GAINESVILLE H/A"]
["FL089","HILLSBOROUGH COUNTY-BOCC"]
["FL091","HA OF THE CITY OF FORT MYERS"]
["FL092","CITY OF PENSACOLA  SECTION 8"]
["FL093","ORANGE CO  SECTION 8"]
["FL095","Unknown - No Activity"]
["FL096","WAKULLA CO SECTION 8 HOUSING"]
["FL097","MILTON HOUSING AUTHORITY"]
["FL098","CITY OF GREEN COVE SPRINGS SEC 8"]
["FL099","Unknown - No Activity"]
["FL100","Unknown - No Activity"]
["FL101","CITY OF BRADENTON"]
["FL102","BAKER CO HSG ASSIST PROGRAM"]
["FL103","Unknown - No Activity"]
["FL104","Pasco County Housing Authority"]
["FL105","Manatee County Housing Authority"]
["FL106","LAKE CO. HOUSING AGENCY"]
["FL107","CITY OF HAINES CITY"]
["FL108","HOLMES COUNTY COMMISSIONERS"]
["FL109","WASHINGTON COUNTY HRA"]
["FL110","WALTON COUNTY HOUSING"]
["FL111","SARASOTA OFFICE OF HOUSING AND COMMUNITY DEVEL"]
["FL113","VOLUSIA COUNTY SECTION 8"]
["FL114","Unknown - No Activity"]
["FL115","CITY OF LEESBURG, HOUSING SERVICES DEPARTMENT"]
["FL116","Dania Beach Housing Authority"]
["FL117","SUMTER COUNTY HOUSING SERVICES"]
["FL119","HA Boca Raton"]
["FL123","HENDRY CO PUBLIC H/A"]
["FL125","Columbia County Housing Authority"]
["FL128","HA Lee County"]
["FL130","Unknown - No Activity"]
["FL132","INDIAN RIVER CO BD OF CO COMM"]
["FL135","Unknown - No Activity"]
["FL136","HA Hollywood"]
["FL137","HERNANDO COUNTY HOUSING AUTHOR"]
["FL139","Winter Haven Housing Authority"]
["FL140","JEFFERSON CO SEC 8 HSG"]
["FL141","COLLIER COUNTY HA"]
["FL143","HOUSING & NEIGHBORHOOD DEVELOP"]
["FL144","Monroe County Housing Authority"]
["FL145","CITY OF MIAMI, DEPT. OF COMMUNITY DEVELOPMENT"]
["FL146","Unknown - No Activity"]
["FL147","CITRUS COUNTY HOUSING SERVICES"]
["FL148","Unknown - No Activity"]
["FL201","OSCEOLA COUNTY BOARD OF COUNTY COMMISSIONERS"]
["FL202","HOLMES COUNTY HOUSING AUTHORITY"]
["FL880","HOUSING PARTNERSHIP INC."]
["FL881","CARRFOUR SUPPORTIVE HOUSING"]
["FL888","BOLEY CENTER FOR BEHAVIOR HEALTHCARE INC"]
["GA001","Housing Authority of the City of Augusta"]
["GA002","Housing Authority of Savannah"]
["GA003","Housing Authority of the City of Athens"]
["GA004","Housing Authority of the City of Columbus"]
["GA005","HOUSING AUTHORITY OF THE CITY OF ROME, GA"]
["GA006","Housing Authority of the City of Atlanta Georgia"]
["GA007","Housing Authority of the City of Macon"]
["GA009","Housing Authority of the City of Brunswick"]
["GA010","Housing Authority of the City of Marietta"]
["GA011","Housing Authority of the City of Decatur"]
["GA023","Housing Authority of the City of Albany"]
["GA024","Housing Authority of the City of Thomasville"]
["GA025","Housing Authority of the City of Cedartown"]
["GA026","Housing Authority of the City of Lagrange"]
["GA028","Housing Authority of the City of Waycross"]
["GA059","Housing Authority of the City of Gainesville"]
["GA060","Housing Authority of the City of Moultrie"]
["GA061","Housing Authority of the City of Griffin"]
["GA062","Housing Authority of the City of Americus"]
["GA063","Housing Authority of the City of Cordele"]
["GA064","Housing Authority of the City of Bainbridge"]
["GA065","Housing Authority of the City of West Point"]
["GA066","Housing Authority of the City of Jesup"]
["GA067","Housing Authority of the City of Dawson"]
["GA069","Housing Authority of the City of Dublin"]
["GA070","Housing Authority of the City of Fitzgerald"]
["GA071","Housing Authority of the City of Baxley"]
["GA072","Housing Authority of the City of Eatonton"]
["GA073","Housing Authority of the City of Monroe"]
["GA074","Housing Authority of the City of Elberton"]
["GA075","Toccoa"]
["GA076","Housing Authority of the City of Douglas"]
["GA077","Housing Authority of the City of Cochran"]
["GA078","Housing Authority of the City of East Point"]
["GA079","Unknown - No Activity"]
["GA080","Housing Authority of the City of Eastman"]
["GA081","Housing Authority of the City of Hartwell"]
["GA082","Housing Authority of the City of Cornelia"]
["GA083","Housing Authority of the City of Cairo"]
["GA084","Housing Authority of the City of McRae"]
["GA085","Housing Authority of the City of Quitman"]
["GA086","Housing Authority of the City of Waynesboro"]
["GA087","Housing Authority of the City of Ashburn"]
["GA088","Housing Authority of the City of Adel"]
["GA089","Housing Authority of the City of Hawkinsville"]
["GA090","Housing Authority of the City of Royston"]
["GA091","Housing Authority of the City of Buford"]
["GA092","Housing Authority of the City of Nashville"]
["GA093","Housing Authority of the City of Lawrenceville"]
["GA094","Housing Authority of the City of Lavonia"]
["GA095","Housing Authority of the City of Newnan"]
["GA096","Housing Authority of the City of Camilla"]
["GA097","Housing Authority of the City of Tallapoosa"]
["GA098","Housing Authority of the City of Pelham"]
["GA099","Housing Authority of the City of Roswell"]
["GA100","Housing Authority of the City of Valdosta"]
["GA101","Housing Authority of the City of Tifton"]
["GA102","ROCKMART HOUSING AUTHORITY"]
["GA103","Housing Authority of the City of Comer"]
["GA104","Housing Authority of the City of Sylvester"]
["GA105","Housing Authority of the City of Greensboro"]
["GA106","Housing Authority of the County of Douglas"]
["GA107","Housing Authority of the City of Villa Rica"]
["GA108","Housing Authority of the City of Manchester"]
["GA109","Housing Authority of the City of Newton"]
["GA110","Housing Authority of the City of Hampton"]
["GA111","Housing Authority of the City of Arlington"]
["GA112","Housing Authority of the City of Doerun"]
["GA113","Housing Authority of the City of Nicholls"]
["GA114","Housing Authority of the City of Blakely"]
["GA115","Housing Authority of the City of Clayton"]
["GA116","Housing Authority of the City of Carrollton"]
["GA117","Housing Authority of the City of Boston"]
["GA118","Housing Authority of the County of Stewart"]
["GA119","Housing Authority of the City of Calhoun"]
["GA120","Housing Authority of the City of Lyons"]
["GA122","Unknown - No Activity"]
["GA123","Housing Authority of the City of Acworth"]
["GA124","Housing Authority of the City of Buchanan"]
["GA125","Housing Authority of the City of Commerce"]
["GA126","Housing Authority of the City of Danielsville"]
["GA127","Housing Authority of the City of Warrenton"]
["GA128","Housing Authority of the City of Thomson"]
["GA129","Housing Authority of the County of Lee"]
["GA130","Housing Authority of the City of Cave Spring"]
["GA131","Housing Authority of the City of Swainsboro"]
["GA132","Housing Authority of the City of Statesboro"]
["GA133","Housing Authority of the City of Alma"]
["GA134","Housing Authority of the City of Blackshear"]
["GA135","Housing Authority of the City of Hogansville"]
["GA136","Housing Authority of the City of Hahira"]
["GA137","Housing Authority of the City of Hazlehurst"]
["GA138","Housing Authority of the City of Lakeland"]
["GA139","Housing Authority of the City of Glennville"]
["GA141","Housing Authority of the County of Screven"]
["GA142","Housing Authority of the City of Millen"]
["GA143","Unknown - No Activity"]
["GA144","Housing Authority of the City of Washington"]
["GA145","Housing Authority of the City of Vidalia"]
["GA147","Housing Authority of the City of Social Circle"]
["GA148","Housing Authority of the City of Dallas"]
["GA152","Housing Authority of the City of Sylvania"]
["GA153","Housing Authority of the City of Summerville"]
["GA155","Housing Authority of the City of Lumber City"]
["GA157","Housing Authority of the City of Louisville"]
["GA158","Housing Authority of the County of Atkinson"]
["GA160","Housing Authority of the City of Warner Robins"]
["GA161","Housing Authority of the County of Harris"]
["GA162","Housing Authority of the City of Edison"]
["GA163","Housing Authority of the City of Jefferson"]
["GA165","Housing Authority of the City of Pearson"]
["GA166","Housing Authority of the City of Claxton"]
["GA167","Housing Authority of the City of Fort Gaines"]
["GA168","Housing Authority of the City of Ocilla"]
["GA169","Housing Authority of the City of Harlem"]
["GA170","Housing Authority of the City of Lafayette"]
["GA171","Housing Authority of the City of Loganville"]
["GA172","Housing Authority of the City of Homerville"]
["GA173","Unknown - No Activity"]
["GA174","Housing Authority of the City of Dahlonega"]
["GA175","Housing Authority of the City of Rochelle"]
["GA176","Housing Authority of the City of Ellijay"]
["GA177","Housing Authority of the City of Barnesville"]
["GA178","Housing Authority of the City of Alamo"]
["GA179","Housing Authority of the City of Buena Vista"]
["GA180","Housing Authority of the City of Fairburn"]
["GA181","Housing Authority of the City of Wrightsville"]
["GA182","Housing Authority of the City of McDonough"]
["GA183","Housing Authority of the City of Winder"]
["GA184","Housing Authority of the City of Conyers"]
["GA185","Housing Authority of the City of Jackson"]
["GA186","Housing Authority of the City of Abbeville"]
["GA187","Housing Authority of the City of Palmetto"]
["GA188","Housing Authority of the City of Lithonia"]
["GA189","Housing Authority of the City of Metter"]
["GA190","Housing Authority of the City of Gibson"]
["GA191","Housing Authority of the City of Union Point"]
["GA192","Housing Authority of the City of Crawfordville"]
["GA193","Housing Authority of the City of Madison"]
["GA194","Housing Authority of the City of Glenwood"]
["GA195","Housing Authority of the City of Tennille"]
["GA196","Housing Authority of the City of Cumming"]
["GA197","Housing Authority of the City of Union City"]
["GA198","Housing Authority of the City of Colquitt"]
["GA199","Housing Authority of the City of Sandersville"]
["GA200","Housing Authority of the City of Milledgeville"]
["GA201","Housing Authority of the City of Jasper"]
["GA202","Housing Authority of the City of Blue Ridge"]
["GA203","Housing Authority of the City of Monticello"]
["GA204","Housing Authority of the City of Senoia"]
["GA205","Housing Authority of the City of Fort Valley"]
["GA206","Housing Authority of the City of Chatsworth"]
["GA207","Housing Authority of the City of Bowdon"]
["GA208","Housing Authority of the City of Vienna"]
["GA209","Housing Authority of the City of Norcross"]
["GA210","Housing Authority of the City of Sparta"]
["GA211","Housing Authority of the City of Lincolnton"]
["GA213","Housing Authority of the City of Canton"]
["GA214","Housing Authority of the City of Ellaville"]
["GA216","Housing Authority of the City of Ringgold"]
["GA217","Housing Authority of the City of Unadilla"]
["GA218","Housing Authority of the City of Grantville"]
["GA220","Housing Authority of the City of Reidsville"]
["GA221","Housing Authority of the City of Hinesville"]
["GA223","Housing Authority of the City of Roberta"]
["GA224","Housing Authority of the City of Greenville"]
["GA226","Housing Authority of the City of Cuthbert"]
["GA228","Housing Authority of the City of Jonesboro"]
["GA229","Housing Authority of the City of Shellman"]
["GA230","Woodbury"]
["GA231","Unknown - No Activity"]
["GA232","Housing Authority of the City of College Park"]
["GA233","Housing Authority of the City of Franklin"]
["GA237","Housing Authority of the County of Dekalb, GA"]
["GA238","Housing Authority of the City of Mount Vernon"]
["GA239","Housing Authority of the City of Soperton"]
["GA241","Housing Authority of the City of McCaysville"]
["GA243","Housing Authority of the City of Byron"]
["GA244","Housing Authority of the City of Menlo"]
["GA245","Housing Authority of the City of Covington"]
["GA246","Housing Authority of the City of Fort Oglethorpe"]
["GA247","Housing Authority of the City of Thomaston"]
["GA252","Housing Authority of the City of Perry"]
["GA254","Housing Authority of the City of Bremen"]
["GA256","Unknown - No Activity"]
["GA263","Housing Authority of the City of Nahunta"]
["GA264","Housing Authority of Fulton County"]
["GA266","CITY OF MARIETTA"]
["GA268","Housing Authority of the County of Houston"]
["GA269","CITY OF ATLANTA, BUREAU OF HSG"]
["GA270","Unknown - No Activity"]
["GA280","Flint Area Consolidated"]
["GA281","Etowah Area Consolidated"]
["GA282","Southeast Georgia Consolidated Housing Author"]
["GA283","Tri-City Housing Authority"]
["GA284","Northeast Georgia Housing Authority"]
["GA285","Northwest GA Housing Authority"]
["GA901","GEORGIA DEPT. OF COMMUNITY AFFAIRS-RENTAL ASSIST."]
["GQ001","Guam Housing & Urban Renewal Authority"]
["GQ901","GUAM HSG AND URBAN RENEWAL AUTH"]
["HI001","Hawaii Public Housing Authority"]
["HI002","COUNTY OF HAWAII"]
["HI003","CITY AND COUNTY OF HONOLULU"]
["HI004","COUNTY OF MAUI"]
["HI005","COUNTY OF KAUAI"]
["HI701","Unknown - No Activity"]
["HI901","HAWAII PUBLIC HOUSING AUTHORITY"]
["IA001","Corning Housing Commission"]
["IA002","Charles City Hsg And Redev Authority"]
["IA003","Afton Housing Commission"]
["IA004","Ottumwa Housing Authority"]
["IA005","Stanton Housing Commission"]
["IA006","Lone Tree Housing Commission"]
["IA007","Low Rent Housing Agency of Hamburg"]
["IA008","Low Rent Housing Agency of Sidney"]
["IA009","Malvern Low Rent Housing Agency"]
["IA010","Low Rent Housing Agency of Farragut"]
["IA011","Low Rent Housing Agency of Sioux Center"]
["IA012","Tabor Low Rent Housing Agency"]
["IA013","Low Rent Housing Agency of Waverly"]
["IA014","Low Rent Housing Agency of Onawa"]
["IA015","Low Rent Housing Agency of Burlington"]
["IA016","Chariton Housing Authority"]
["IA017","Low Rent Housing Agency of Winterset"]
["IA018","SIOUX CITY HOUSING SERVICES DIVISION"]
["IA019","Shenandoah Low Rent Housing Agency"]
["IA020","Des Moines Municipal Housing Agency"]
["IA021","Municipal Housing Agency of Manning"]
["IA022","City of Iowa City Housing Authority"]
["IA023","Municipal Housing Agency of Council Bluffs"]
["IA024","CITY OF CEDAR RAPIDS"]
["IA025","Essex Low Rent Housing Agency"]
["IA026","Low Rent Housing Agency of Mount Ayr"]
["IA027","Low Rent Housing Agency of Leon"]
["IA028","Low Rent Housing Agency of Bancroft"]
["IA029","Low Rent Housing Agency of Missouri Valley"]
["IA030","Keokuk Housing Authority"]
["IA032","Lenox Low Rent Housing Agency"]
["IA034","Clarinda Low Rent Housing Agency"]
["IA038","Evansdale Municipal Housing Authority"]
["IA042","Centerville Municipal Housing Agency"]
["IA044","Low Rent Housing Agency of Red Oak"]
["IA045","Davenport Housing Commission"]
["IA046","Rock Rapids Municipal Housing Agency"]
["IA047","Fort Madison Housing Authority"]
["IA049","Muscatine Municipal Housing Agency"]
["IA050","Waterloo Housing Authority"]
["IA054","LRHA OF DECORAH IOWA"]
["IA056","EMMETSBURG LOW RENT HOUSING"]
["IA057","SPIRIT LAKE LOW RENT HSG AGENCY"]
["IA079","Villisca Low Rent Housing Agency"]
["IA081","MAQUOKETA PUBLIC HOUSING"]
["IA084","GRINNELL LOW RENT HOUSING AUTHORITY"]
["IA087","DUBUQUE DEPT OF HUMAN RIGHTS"]
["IA089","CITY OF AMES DEPT. OF PLANNING & HS"]
["IA098","Low Rent Housing Agency of Clinton"]
["IA100","OSKALOOSA MUNICIPAL PHA"]
["IA107","Fort Dodge Municipal Housing Agency"]
["IA108","CITY OF MASON CITY"]
["IA113","CITY OF CEDAR FALLS, IOWA"]
["IA114","Albia Housing Agency"]
["IA117","Southern Iowa Regional Housing Authority"]
["IA119","Low Rent Housing Agency of Knoxville"]
["IA120","WARREN COUNTY HOUSING AUTH"]
["IA121","NEW HAMPTON MUNICIPAL HOUSING AGCY"]
["IA122","REGIONAL HSG AUTH - VOUCHER XII"]
["IA123","BETTENDORF HOUSING AUTHORITY"]
["IA124","Area XV Multi-County Housing Agency"]
["IA125","MARSHALLTOWN LRHA"]
["IA126","Eastern Iowa Regional Housing Authority"]
["IA127","North Iowa Regional Housing Authority"]
["IA128","SOUTHEAST IOWA REGIONAL HSG AUTH"]
["IA129"," NORTHWEST IOWA  REGIONAL  HA"]
["IA130","UPPER EXPLORERLAND REGIONAL"]
["IA131","Central Iowa Regional Housing Authority"]
["IA132","IOWA NORTHLAND REGIONAL HSG AUTH"]
["IA133","MID IOWA REGIONAL HOUSING AUTHORITY"]
["IA136","SIOUXLAND REGIONAL HOUSING AUTH"]
["IA138","Unknown - No Activity"]
["ID001","Twin Falls Housing Authority"]
["ID002","Nampa Housing Authority"]
["ID005","Housing Authority of the City of Pocatello"]
["ID010","Housing Authority of the City of Buhl"]
["ID011","Housing Authority of the City Jerome"]
["ID012","Housing Authority of the City of American Falls"]
["ID013","Boise City Housing Authority"]
["ID016","Southwestern Idaho Cooperative Housing Authority"]
["ID020","Idaho Housing And Finance Association"]
["ID021","Ada County Housing Authority"]
["ID901","IDAHO HOUSING AND FINANCE ASSOCIATION"]
["IL001","The Housing Authority of City of East St. Louis"]
["IL002","Chicago Housing Authority"]
["IL003","Peoria Housing Authority"]
["IL004","Springfield Housing Authority"]
["IL005","Granite City Housing Authority"]
["IL006","Housing Authority of Champaign County"]
["IL007","Alexander County Housing Authority"]
["IL009","The Housing Authority of Henry County"]
["IL010","Grtr Metro. Area Hsng Auth of Rock Island County"]
["IL011","The Housing Authority of the City of Danville, IL"]
["IL012","Decatur Housing Authority"]
["IL014","Housing Authority for Lasalle County"]
["IL015","Madison County Housing Authority"]
["IL016","Quincy Housing Authority"]
["IL018","Housing Authority of the City of Rock Island"]
["IL020","Moline Housing Authority"]
["IL022","Rockford Housing Authority"]
["IL024","Housing Authority of Joliet"]
["IL025","Housing Authority of the County of Cook"]
["IL026","Housing Authority of the City of Waukegan"]
["IL027","Grundy County Housing Authority"]
["IL028","Menard County Housing Authority"]
["IL029","Housing Authority of the City of Freeport"]
["IL030","St. Clair County Housing Authority"]
["IL031","Dewitt County Housing Authority"]
["IL032","Whiteside County Housing Authority"]
["IL034","Housing Authority of the County of Ford"]
["IL035","Lee County Housing Authority"]
["IL036","Housing Authority of the County of Vermilion, Ill."]
["IL037","Montgomery County Housing Authority"]
["IL038","Housing Authority of Christian County, Illinois"]
["IL039","Kankakee County Housing Authority"]
["IL040","Logan County Housing Authority"]
["IL041","Massac County Housing Authority"]
["IL042","Mason County Housing Authority"]
["IL043","Housing Authority - County of Saline"]
["IL044","Housing Authority of the City of Pekin"]
["IL045","Housing Authority of Pulaski County"]
["IL046","Housing Authority of Adams County"]
["IL047","Macoupin County Housing Authority"]
["IL048","Perry County Housing Authority"]
["IL049","Housing Authority of Calhoun County"]
["IL050","Housing Authority of the County of Williamson"]
["IL051","Housing Authority of the City of Bloomington, IL"]
["IL052","Randolph County Housing Authority"]
["IL053","Housing Authority of the County of Jackson, Il."]
["IL054","MAYWOOD HOUSING AUTHORITY"]
["IL055","Housing Authority - City of Alton"]
["IL056","Housing Authority of the County of Lake, Il."]
["IL057","Housing Authority of Marion County"]
["IL058","Housing Authority of Pope County"]
["IL059","Housing Authority of Jefferson County"]
["IL060","Housing Authority of Gallatin County"]
["IL061","Housing Authority of the County of Franklin"]
["IL062","Effingham County Housing Authority"]
["IL063","Housing Authority of Johnson County"]
["IL065","Clay County Housing Authority"]
["IL066","Housing Authority of the County of Hardin"]
["IL067","Housing Authority of the County of Union"]
["IL068","White County Housing Authority"]
["IL069","Housing Authority of the County of Clark, Il."]
["IL070","Housing Authority of the County of Cumberland, Il."]
["IL071","Pike County Housing Authority"]
["IL072","Housing Authority of Greene County"]
["IL073","Scott County Housing Authority"]
["IL074","Housing Authority of the County of Jersey"]
["IL076","Housing Authority of the County of McDonough"]
["IL078","Housing Authority of the County of Bond"]
["IL079","Morgan County Housing Authority"]
["IL080","Edwards County Housing Authority"]
["IL081","Carroll County Housing Authority"]
["IL082","Housing Authority of the County of Jodaviess"]
["IL083","Winnebago County Housing Authority"]
["IL084","Fulton County Housing Authority"]
["IL085","Knox County Housing Authority"]
["IL086","Bureau County Housing Authority"]
["IL087","Housing Authority of the County of Shelby, Il."]
["IL088","Housing Authority of the County of Wayne, Illinois"]
["IL089","Housing Authority of the County of Dekalb"]
["IL090","Aurora Housing Authority Ofthe City of Aurora"]
["IL091","Warren County Housing Authority"]
["IL092","Housing Authority of Elgin"]
["IL093","Housing Authority of the County of Wabash, Il."]
["IL094","Livingston County Housing Authority"]
["IL095","Ogle County Housing Authority"]
["IL096","Housing Authority of the County of Richland"]
["IL097","Hancock County Housing Authority"]
["IL099","Housing Authority of the County of Brown"]
["IL100","Housing Authority County of Coles"]
["IL101","DUPAGE COUNTY HOUSING AUTHORITY"]
["IL102","The Housing Authority of the County of Cass Il."]
["IL103","Housing Authority of the Village of Oak Park"]
["IL104","Woodford County Housing Authority"]
["IL107","Housing Authority of the City of North Chicago, IL"]
["IL108","Housing Authority of the County of Lawrence, Il."]
["IL115","HENDERSON COUNTY HOUSING AUTHORITY"]
["IL116","McHenry County Housing Authority"]
["IL117","MCLEAN COUNTY HA"]
["IL118","Hamilton County Housing Authority"]
["IL120","Housing Authority of Edgar County"]
["IL122","BOONE COUNTY HOUSING AUTHORITY"]
["IL123","HSG AUTHORITY OF THE CITY OF MOUNT VERNON"]
["IL124","EAST PEORIA HOUSING AUTHORITY"]
["IL126","Housing Authority of the City of Marion, Illinois"]
["IL128","Housing Authority of Piatt County"]
["IL130","CICERO HOUSING AUTHORITY"]
["IL131","Mercer County Housing Authority"]
["IL136","HOUSING AUTHORITY OF PARK FOREST"]
["IL137","KENDALL COUNTY HSG AUTH"]
["IL802","Habitat Corp."]
["IL901","ILLINOIS HOUSING DEV AUTH        CLOFTON@IHDA.ORG"]
["IL911","STATE OF ILLINOIS DEPT OF COMMERCE & COMM AFFAIRS"]
["IN002","Vincennes Housing Authority"]
["IN003","Fort Wayne Housing Authority"]
["IN004","Delaware County Housing Authority"]
["IN005","Housing Authority of the City of Muncie"]
["IN006","Housing Authority of the City of Anderson"]
["IN007","Kokomo Housing Authority"]
["IN009","Housing Authority of the City of Richmond"]
["IN010","Housing Authority of the City of Hammond"]
["IN011","Housing Authority of the City of Gary"]
["IN012","Housing Authority of the City of New Albany"]
["IN015","Housing Authority of South Bend"]
["IN016","Housing Authority of the City of Evansville"]
["IN017","Indianapolis Housing Agency"]
["IN018","Housing Authority of the City of Tell City"]
["IN019","Housing Authority of the City of Michigan City"]
["IN020","Housing Authority of the City of Mishawaka"]
["IN021","Housing Authority of the City of Terre Haute"]
["IN022","Housing Authority of the City of Bloomington"]
["IN023","Housing Authority of the City of Jeffersonville"]
["IN024","Rockport Housing Authority"]
["IN025","Housing Authority of the City of Charlestown"]
["IN026","Housing Authority of the City of Elkhart"]
["IN028","Housing Authority of the City of Huntingburg"]
["IN029","Housing Authority of the City of East Chicago"]
["IN030","Washington Housing Authority"]
["IN031","Housing Authority of the City of Bedford"]
["IN032","Bloomfield Housing Authority"]
["IN034","Sullivan Housing Authority"]
["IN035","Brazil Housing Authority"]
["IN036","Housing Authority of the City of Kendallville"]
["IN037","Mount Vernon Housing Authority"]
["IN039","Housing Authority of the City of Angola"]
["IN041","Housing Authority of the City of Marion, In"]
["IN043","CANNELTON HOUSING AUTHORITY"]
["IN047","CRAWFORDSVILLE HOUSING AUTHORITY"]
["IN048","ROCKVILLE HSG AUTH"]
["IN050","New Castle Housing Authority"]
["IN055","Linton Housing Authority"]
["IN056","SEYMOUR HOUSING AUTHORITY"]
["IN058","Columbus Housing Authority"]
["IN060","WARSAW HOUSING AUTHORITY"]
["IN062","DECATUR HOUSING AUTHORITY"]
["IN067","Knox County Housing Authority"]
["IN069","FULTON CO. HSG AUTH"]
["IN070","FRANKLIN COUNTY HOUSING AUTHORITY"]
["IN071","HA FOR THE CITY OF LAFAYETTE"]
["IN073","FAYETTE COUNTY HA"]
["IN075","Unknown - No Activity"]
["IN077","JASONVILLE HOUSING AUTHORITY"]
["IN078","GREENSBURG HOUSING AUTHORITY"]
["IN079","ELWOOD HOUSING AUTHORITY"]
["IN080","NOBLESVILLE HOUSING AUTHORITY"]
["IN083","SELLERSBURG HA"]
["IN084","PORTLAND HSG AUTH"]
["IN085","Fremont Housing Authority"]
["IN086","UNION CITY HA"]
["IN089","Housing Authority of the City of Rome City"]
["IN090","Greendale Housing Authority"]
["IN091","Housing Authority of the City of Peru"]
["IN092","LOGANSPORT HOUSING AUTHORITY"]
["IN094","GREENCASTLE HOUSING AUTHORITY"]
["IN100","ST. JOSEPH COUNTY HOUSING AUTHORITY"]
["IN101","GOSHEN HOUSING AUTHORITY"]
["IN103","MARSHALL CO. HOUSING AUTHORITY"]
["IN104","Jennings County Housing Authority"]
["IN901","INDIANA HOUSING & COMMUNITY DEVELOPMENT AUTHORITY"]
["KS001","Kansas City, KS Housing Authority"]
["KS002","Topeka Housing Authority"]
["KS003","Bird City Housing Authority"]
["KS004","Wichita Housing Authority"]
["KS005","Housing Authority of the City of Colby"]
["KS006","Dodge City Housing Authority"]
["KS007","Washington Housing Authority"]
["KS008","Holton Housing Authority"]
["KS009","Bonner Springs Housing Authority"]
["KS010","Seneca Housing Authority"]
["KS011","Horton Housing Authority"]
["KS012","Oberlin Housing Authority"]
["KS013","Hanover Housing Authority"]
["KS014","Linn Housing Authority"]
["KS015","North Newton Housing Authority"]
["KS016","South Hutchinson Housing Authority"]
["KS017","Atchison Housing Authority"]
["KS018","Anthony Housing Authority"]
["KS019","Beloit Housing Authority"]
["KS020","Osborne Housing Authority"]
["KS021","Oakley Housing Authority"]
["KS022","Atwood Housing Authority"]
["KS023","Kinsley Housing Authority"]
["KS025","Lyons Housing Authority"]
["KS026","Luray Housing Authority"]
["KS027","Russell Housing Authority"]
["KS028","Sterling Housing Authority"]
["KS029","Augusta Housing Authority"]
["KS030","Blue Rapids Housing Authority"]
["KS031","City of Clay Center"]
["KS032","Marion Housing Authority"]
["KS033","Minneapolis Housing Authority"]
["KS034","Norton Housing Authority"]
["KS036","Phillipsburg Housing Authority"]
["KS037","Wellington Housing Authority"]
["KS038","Salina Housing Authority"]
["KS039","Paola Housing Authority"]
["KS040","Fort Scott Housing Authority"]
["KS041","Great Bend Housing Authority"]
["KS042","Wamego Housing Authority"]
["KS043","Olathe Housing Authority"]
["KS044","Parsons Housing Authority"]
["KS045","Galena Housing Authority"]
["KS047","Jetmore Housing Authority"]
["KS049","Iola Housing Authority"]
["KS050","Agra Housing Authority"]
["KS051","Gaylord Housing Authority"]
["KS052","Pleasanton Housing Authority"]
["KS053","Lawrence/Douglas County Housing Authority"]
["KS054","Sabetha Housing Authority"]
["KS055","Housing Authority of the City of Goodland"]
["KS056","Valley Falls Housing Authority"]
["KS057","Housing Authority of Medicine Lodge"]
["KS058","Ulysses Housing Authority"]
["KS059","Moundridge Housing Authority"]
["KS060","Waterville Housing Authority"]
["KS061","Humboldt Housing Authority"]
["KS062","Chanute Housing Authority"]
["KS063","Manhattan Housing Authority"]
["KS065","Lindsborg Housing Authority"]
["KS066","Sedgwick Housing Authority"]
["KS068","Leavenworth Housing Authority"]
["KS069","Neodesha Housing Authority"]
["KS070","Strong City Housing Authority"]
["KS071","Garden City Housing Authority"]
["KS072","Liberal Housing Authority"]
["KS073","Newton Housing Authority"]
["KS076","St. Francis Housing Authority"]
["KS077","Girard Housing Authority"]
["KS078","Burrton Housing Authority"]
["KS079","Howard Housing Authority"]
["KS080","Housing Authority of the City of Hoxie"]
["KS081","Nicodemus Housing Authority"]
["KS082","Hill City Housing Authority"]
["KS083","Greenleaf Housing Authority"]
["KS086","Downs Housing Authority"]
["KS091","Hays Housing Authority"]
["KS094","Florence Housing Authority"]
["KS095","Belleville Housing Authority"]
["KS096","Hillsboro Housing Authority"]
["KS100","Housing Authority of the City of Herington KS"]
["KS105","Junction City Housing Authority"]
["KS112","Halstead Housing Authority"]
["KS113","Cawker City Housing Authority"]
["KS121","Lincoln Housing Authority"]
["KS131","Frontenac Housing Authority"]
["KS132","Winfield Housing Authority"]
["KS141","Mankato Housing Authority"]
["KS142","Stafford Housing Authority"]
["KS143","Columbus Housing Authority"]
["KS147","Chapman Housing Authority"]
["KS149","PITTSBURG PUBLIC HOUSING AUTHORITY"]
["KS152","Solomon Housing Authority"]
["KS155","Cherryvale Housing Authority"]
["KS158","Victoria Housing Authority"]
["KS159","ECKAN"]
["KS160","DOUGLAS COUNTY PUBLIC HOUSING AUTHORITY"]
["KS161","SEK-CAP, INC"]
["KS162","JOHNSON COUNTY HOUSING AUTHORITY"]
["KS163","HSG AUTH CITY OF HUTCHINSON KS"]
["KS165","FORD COUNTY HOUSING AUTHORITY"]
["KS166","COWLEY COUNTY PUBLIC HOUSING AUTHORITY"]
["KS167","RILEY COUNTY HOUSING AUTHORITY"]
["KS168","NEK-CAP, INC"]
["KS169","SEDGWICK COUNTY HOUSING AUTHORITY"]
["KS170","ELLIS COUNTY PHA"]
["KY001","Louisville Metro Housing Authority"]
["KY002","Housing Authority of Covington"]
["KY003","Housing Authority of Frankfort"]
["KY004","Housing Authority of Lexington"]
["KY006","Housing Authority of Paducah"]
["KY007","Housing Authority of Madisonville"]
["KY008","Housing Authority of Somerset"]
["KY009","Housing Authority of Owensboro"]
["KY010","Housing Authority of Corbin"]
["KY011","Housing Authority of Hopkinsville"]
["KY012","Housing Authority of Henderson"]
["KY013","Housing Authority of Paris"]
["KY014","Housing Authority of Danville"]
["KY015","Housing Authority of Newport"]
["KY016","Housing Authority of Richmond"]
["KY017","Housing Authority of Maysville"]
["KY018","Housing Authority of Winchester"]
["KY019","Housing Authority of Middlesborough"]
["KY020","Housing Authority of Mount Sterling"]
["KY021","Housing Authority of Cynthiana"]
["KY022","Housing Authority of Lebanon"]
["KY023","Housing Authority of Russellville"]
["KY024","Housing Authority of Hazard"]
["KY025","Housing Authority of Lyon County"]
["KY026","Housing Authority of Glasgow"]
["KY027","Housing Authority of Paintsville"]
["KY028","Housing Authority of Barbourville"]
["KY029","Housing Authority of Cumberland"]
["KY030","Housing Authority of Murray"]
["KY031","Housing Authority of Williamsburg"]
["KY032","Housing Authority of Morehead"]
["KY033","Housing Authority of Catlettsburg"]
["KY034","Housing Authority of Nicholasville"]
["KY035","Housing Authority of Prestonsburg"]
["KY036","Housing Authority of Irvine"]
["KY037","Housing Authority of Hickman"]
["KY038","Housing Authority of Martin"]
["KY039","Housing Authority of Pineville"]
["KY040","Housing Authority of Mayfield"]
["KY041","Housing Authority of Morgantown"]
["KY042","Housing Authority of Cadiz"]
["KY043","Housing Authority of Fulton"]
["KY044","Housing Authority of Whitesburg"]
["KY045","Housing Authority of Jackson"]
["KY046","Housing Authority of Albany"]
["KY047","Campbellsville Housing And Redevelopment Authority"]
["KY048","Housing Authority of Monticello"]
["KY049","Housing Authority of Versailles"]
["KY050","Housing Authority of Tompkinsville"]
["KY052","Housing Authority of Lancaster"]
["KY053","Housing Authority of Greensburg"]
["KY054","Housing Authority of Elizabethtown"]
["KY055","Housing Authority of Burkesville"]
["KY056","Housing Authority of Springfield"]
["KY057","Housing Authority of Carrollton"]
["KY058","Housing Authority of Beattyville"]
["KY059","Housing Authority of Falmouth"]
["KY060","Housing Authority of Flemingsburg"]
["KY061","Housing Authority of Georgetown"]
["KY062","Housing Authority of Harrodsburg"]
["KY063","Housing Authority of Bowling Green"]
["KY064","Housing Authority of Columbia"]
["KY065","Housing Authority of London"]
["KY066","Housing Authority of Manchester"]
["KY067","Housing Authority of Horse Cave"]
["KY069","Housing Authority of Williamstown"]
["KY070","Housing Authority of Central City"]
["KY071","Housing Authority of Bardstown"]
["KY072","Housing Authority of Princeton"]
["KY073","Housing Authority of Liberty"]
["KY074","Housing Authority of Ashland"]
["KY075","Housing Authority of Dawson Springs"]
["KY077","Housing Authority of Harlan"]
["KY078","Housing Authority of Eminence"]
["KY079","Housing Authority of Stanford"]
["KY080","Housing Authority of Stanton"]
["KY081","Housing Authority of McCreary County"]
["KY083","Housing Authority of Hodgenville"]
["KY084","Housing Authority Vanceburg"]
["KY085","Housing Authority of Providence"]
["KY086","HA of Lawrence County"]
["KY087","Housing Authority of Radcliff"]
["KY089","Housing Authority of Shelbyville"]
["KY090","Housing Authority of Berea"]
["KY091","Housing Authority of Benton"]
["KY092","Housing Authority of Olive Hill"]
["KY093","Housing Authority of Morganfield"]
["KY094","Housing Authority of Sturgis"]
["KY096","Housing Authority of Knott County"]
["KY097","Housing Authority of Mount Vernon"]
["KY098","Housing Authority of Owenton"]
["KY099","Housing Authority of Franklin"]
["KY100","Housing Authority of Greenville"]
["KY101","Housing Authority of Irvington"]
["KY104","Housing Authority of Scottsville"]
["KY105","JEFFERSON COUNTY HOUSING AUTHORITY"]
["KY106","Housing Authority of Owingsville"]
["KY107","Housing Authority of Pikeville"]
["KY121","PIKE COUNTY HOUSING AUTHORITY"]
["KY122","Housing Authority of Beaver Dam"]
["KY129","Housing Authority of Dayton"]
["KY130","LEXINGTON-FAYETTE COUNTY HOUSING AUTHORITY"]
["KY131","CITY OF LOUISVILLE HOUSING AUTHORITY"]
["KY132","CITY OF RICHMOND SECTION 8 HOUSING"]
["KY133","COVINGTON HOUSING AUTHORITY"]
["KY135","BOONE COUNTY HOUSING AUTHORITY"]
["KY136","CAMPBELL COUNTY HOUSING AUTHORITY"]
["KY137","PADUCAH HOUSING AUTHORITY"]
["KY138","COMMUNITY DEVELOPMENT AGENCY"]
["KY140","PARIS BOURBON COUNTY  HOUSING AUTHORITY"]
["KY141","PINEVILLE/BELL COUNTY HOUSING AUTHORITY"]
["KY142","ASHLAND HOUSING AUTHORITY"]
["KY143","WILLIAMSBURG COMMUNITY DEVELOPMENT AGENCY"]
["KY144","HICKMAN HOUSING AUTHORITY"]
["KY145","BRECKENRIDGE COUNTY HOUSING AUTHORITY"]
["KY146","HARRODSBURG HOUSING AUTHORITY"]
["KY147","Housing Authority of McKee"]
["KY149","Housing Authority of Martin County"]
["KY150","BARBOURVILLE HOUSING AUTHORITY"]
["KY154","BLOOMFIELD HOUSING AUTHORITY"]
["KY157","Housing Authority of Floyd County"]
["KY158","Housing Authority of Dry Ridge"]
["KY159","Unknown - No Activity"]
["KY160","CUMBERLAND VALLEY HOUSING AUTHORITY"]
["KY161","APPALACHIAN FOOTHILLS HA"]
["KY163","LAKE CUMBERLAND HOUSING AUTHORITY"]
["KY165","GRAYSON-CARTER COUNTY HOUSING AUTHORITY"]
["KY169","LAUREL COUNTY HOUSING AUTHORITY"]
["KY170","Housing Authority of Todd County"]
["KY171","BOWLING GREEN HOUSING AUTHORITY"]
["KY173","GLASGOW COMMUNITY DEVELOPMENT AGENCY"]
["KY176","Unknown - No Activity"]
["KY177","Housing Authority of Salyersville/Magoffin Co."]
["KY901","KENTUCKY HOUSING CORPORATION"]
["LA001","Housing Authority of New Orleans"]
["LA002","Housing Authority of Shreveport"]
["LA003","Housing Authority of East Baton Rouge"]
["LA004","Housing Authority of Lake Charles"]
["LA005","Housing Authority of the City of Lafayette"]
["LA006","Housing Authority of Monroe"]
["LA009","ASCENSION PARISH SEC.8  HSG. AGENCY"]
["LA011","Housing Authority of Westwego"]
["LA012","Housing Authority of the City of Kenner"]
["LA013","Housing Authority of Jefferson Parish"]
["LA023","Housing Authority of the City of Alexandria"]
["LA024","Bogalusa Housing Authority"]
["LA025","Housing Authority of the City of Eunice"]
["LA026","Housing Authority of Kaplan"]
["LA027","Housing Authority of New Iberia"]
["LA028","Housing Authority of Rayne"]
["LA029","Housing Authority of Crowley"]
["LA030","Housing Authority of Ville Platte"]
["LA031","Housing Authority of the Town of Mamou"]
["LA032","Housing Authority of the Town of Church Point"]
["LA033","Housing Authority of Oakdale"]
["LA034","Housing Authority of the City of Abbeville"]
["LA035","Housing Authority of the Town of Gueydan"]
["LA036","Housing Authority of the City of Morgan City"]
["LA037","Housing Authority of the City of Minden"]
["LA038","Housing Authority of the Town of Marksville"]
["LA039","Housing Authority of the Town of Welsh"]
["LA040","Housing Auth. of the Town of St. Martinville"]
["LA041","Housing Authority of the Town of Lake Arthur"]
["LA042","Housing Authority of the City of Bossier City"]
["LA043","Housing Authority of the City of Donaldsonville"]
["LA044","Housing Authority of the City of Thibodaux"]
["LA045","Housing Authority of the Town of Arcadia"]
["LA046","Housing Authority of the Town of Vinton"]
["LA047","Housing Authority of the Town of Erath"]
["LA052","Housing Authority of Farmerville"]
["LA054","Housing Authority of Ruston"]
["LA055","Housing Authority of City of Opelousas"]
["LA056","Housing Authority of the Town of Berwick"]
["LA057","Pineville Housing Authority"]
["LA058","Housing Authority of the Town of Basile"]
["LA059","Housing Authority of the City of Breaux Bridge"]
["LA061","Housing Authority of the Town of Jonesboro"]
["LA062","Housing Authority of the Town of Bunkie"]
["LA063","Housing Authority of the City of Sulphur"]
["LA065","Housing Authority of the Town of Delcambre"]
["LA066","Housing Authority of the Town of Elton"]
["LA067","Housing Authority of the Parish of St. Landry"]
["LA068","Housing Authority of the Town of Oberlin"]
["LA069","Housing Authority of the Town of Kinder"]
["LA070","Housing Authority of the Town of Patterson"]
["LA071","Housing Authority of the Town of Cottonport"]
["LA072","Housing Authority of the Town of Simmesport"]
["LA073","Housing Authority of South Landry"]
["LA074","Housing Authority of Sabine Parish"]
["LA075","Housing Authority of the Town of Pontchatoula"]
["LA076","Housing Authority of Ferriday"]
["LA077","Housing Authority of the Town of Logansport"]
["LA080","Housing Authority of Lafourche Parish"]
["LA082","Housing Authority of the Town of Merryville"]
["LA084","Housing Authority of the Village of Parks"]
["LA086","Housing Authority of the City of Deridder"]
["LA088","Housing Authority of Vivian"]
["LA089","Housing Authority of Homer"]
["LA090","Housing Authority of the City of Houma"]
["LA091","Southwest Acadia Consolidated Housing Authority"]
["LA092","Housing Authority of St. James Parish"]
["LA093","Housing Authority of the Town of White Castle"]
["LA094","Housing Authority of St. Charles Parish"]
["LA095","Housing Authority of St. John the Baptist Parish"]
["LA096","Housing Authority of the Town of Haynesville"]
["LA097","Housing Authority of the Town of Grambling"]
["LA098","Housing Authority of Gibsland"]
["LA099","Town of Independence HA"]
["LA100","Housing Authority of the Town of Youngsville"]
["LA101","Housing Authority of the City of Denham Springs"]
["LA102","Housing Authority of the Town of Lake Providence"]
["LA103","Housing Authority of City of Slidell"]
["LA104","HAMMOND HOUSING AUTHORITY"]
["LA105","Housing Authority of the Town of Rayville"]
["LA106","Housing Authority of the City of Dequincy"]
["LA108","Housing Authority of the Town of Oil City"]
["LA109","Housing Authority of the Town of Winnsboro"]
["LA111","Housing Authority of the City of Leesville"]
["LA112","Housing Authority of the Town of Mansfield"]
["LA113","Housing Authority of the Town of New Roads"]
["LA114","DELHI HOUSING AUTHORITY"]
["LA115","Housing Authority of the City of Natchitoches"]
["LA117","Housing Authority of the Town of Cotton Valley"]
["LA118","Housing Authority of the City of Jennings"]
["LA120","Housing Authority of Grant Parish"]
["LA122","Housing Authority of the Town of Colfax"]
["LA123","Housing Authority of Winnfield"]
["LA124","Housing Authority of the Town of Olla"]
["LA125","Housing Authority of the Parish of Caldwell"]
["LA127","Housing Authority of the Town of East Hodge"]
["LA128","Housing Authority of Vernon Parish"]
["LA129","Housing Authority of Rapides Parish"]
["LA130","Housing Authority of Duson"]
["LA132","AVOYELLES PH.POLICE JURY, SEC.8 HSG.AGENCY"]
["LA136","BROUSSARD HOUSING AUTHORITY"]
["LA142","Housing Authority of Jena"]
["LA159","CONCORDIA PARISH POLICE JURY"]
["LA163","RED RIVER PARISH POLICE JURY"]
["LA165","NEW IBERIA (CITY OF)"]
["LA166","Housing Authority of Natchitoches Parish"]
["LA168","JEANERETTE SECTION 8 HOUSING AGENCY"]
["LA169","NEWELLTON HOUSING AUTHORITY"]
["LA171","OUACHITA PARISH POLICE JURY, SEC.8"]
["LA172","CALCASIEU PARISH POLICE JURY"]
["LA173","ST. MARTINVILLE HOUSING AUTHORITY"]
["LA174","RAYNE (CITY OF) SEC.8 HOUSING AGENCY"]
["LA177","Unknown - No Activity"]
["LA178","ST. MARTIN PARISH GOVERNMENT HOUSING DEPT."]
["LA179","PLAQUEMINE (CITY OF) SEC.8 HOUSING AGENCY"]
["LA180","Unknown - No Activity"]
["LA181","ST JOHN THE BAPTIST PARISH HA"]
["LA182","EVANGELINE PH. POLICE JURY, SEC.8 HSG.AGENCY"]
["LA184","CADDO PARISH COMMISSION"]
["LA186","WEST MONROE HSG AUTH"]
["LA187","ST BERNARD PARISH POLICE JURY"]
["LA188","JEFFERSON DAVIS PH. POLICE JURY"]
["LA189","IBERIA PH. GOVERNMENT,SEC. 8 PROGRAM"]
["LA190","BOSSIER PARISH POLICE JURY"]
["LA192","VILLE PLATTE (TOWN OF)"]
["LA194","THIBODAUX (CITY) COMM. DEVELOPMENT, SEC.8"]
["LA195","EAST CARROLL PH. POLICE JURY,SEC.8"]
["LA196","UNION PARISH POLICE JURY"]
["LA199","PORT ALLEN (CITY OF)"]
["LA202","DONALDSONVILLE (CITY OF) SEC.8 HSG.AGENCY"]
["LA204","WEST BATON ROUGE PARISH COUNCIL, SEC.8"]
["LA205","NEW ROADS (TOWN OF)"]
["LA206","KENTWOOD (TOWN 0F) SEC.8 HOUSING AGENCY"]
["LA207","TANGIPAHOA PARISH POLICE JURY"]
["LA209","DERIDDER (CITY OF) SECTION 8 HOUSING"]
["LA211","TERREBONNE PARISH CONSOLIDATED GOVT"]
["LA212","LINCOLN PARISH POLICE JURY"]
["LA213","WEBSTER PARISH POLICE JURY"]
["LA214","IBERVILLE PARISH COUNCIL"]
["LA215","ASSUMPTION PARISH POLICE JURY"]
["LA217","WASHINGTON PARISH HSG AUTHORITY, SEC.8 PROGRAM"]
["LA218","Unknown - No Activity"]
["LA219","BATON ROUGE (CITY OF) COMMUNITY DEVELOPMENT"]
["LA220","ST. MARY PARISH SECTION 8 HOUSING"]
["LA221","MORGAN CITY HOUSING AUTHORITY"]
["LA222","CATAHOULA PARISH POLICE JURY"]
["LA229","FRANKLIN PARISH POLICE JURY"]
["LA230","DESOTO PARISH POLICE JURY"]
["LA231","Housing Authority of the Town of Iowa"]
["LA232","RUSTON (CITY) SEC.8 HSG.AGENCY"]
["LA233","WEST CARROLL PH. POLICE JURY HSG ASSIST.OFFICE"]
["LA238","Housing Authority of City of Covington"]
["LA241","BIENVILLE PARISH POLICE JURY"]
["LA242","TALLULAH (CITY OF) PHA"]
["LA246","CLAIBORNE PARISH POLICE JURY"]
["LA247","KINDER (TOWN OF) SEC.8 HOUSING AGENCY"]
["LA248","JACKSON PARISH POLICE JURY"]
["LA250","Unknown - No Activity"]
["LA253","LAFOURCHE PH. HOUSING COUNCIL, SEC.8"]
["LA254","PEARL RIVER (TOWN OF) HOUSING AUTHORITY"]
["LA257","WINN PARISH POLICE JURY"]
["LA258","MOREHOUSE PARISH POLICE JURY"]
["LA259","Unknown - No Activity"]
["LA261","Village of Fenton Housing Authority"]
["LA262","East Carroll Parish Housing Authority"]
["LA266","WHITE CASTLE (TOWN OF) HOUSING AUTHORITY"]
["LA268","Unknown - No Activity"]
["LA269","OBERLIN (TOWN OF)"]
["LA888","COMMUNITY SUPPORT PROGRAMS, INC."]
["LA889","PILGRIM REST COMMUNITY DEVELOPMENT"]
["LA903","LOUISIANA HOUSING AUTHORITY"]
["LA904","LOUISIANA RECOVERY AUTHORITY"]
["LA990","DHAP - NEW ORLEANS (HANO - CONTRACTOR)"]
["LA991","DHAP -  SLIDELL (HANO - CONTRACTOR)"]
["LA992","DHAP - ST. BERNARD PARISH (HANO - CONTRACTOR)"]
["LA993","DHAP - JEFFERSON PARISH (HANO - CONTRACTOR)"]
["LA996","DHAP - NEW ORLEANS PHASE 2B AND LATER"]
["LA997","DHAP SLIDELL- HARRIS COUNTY"]
["LA998","DHAP - ST. BERNARD PARISH  - HARRIS COUNTY"]
["LA999","DHAP - JEFFERSON PARISH - (HARRIS COUNTY)"]
["MA001","Lowell Housing Authority"]
["MA002","Boston Housing Authority"]
["MA003","Cambridge Housing Authority"]
["MA005","Holyoke Housing Authority"]
["MA006","Fall River Housing Authority"]
["MA007","New Bedford Housing Authority"]
["MA008","Chicopee Housing Authority"]
["MA010","Lawrence Housing Authority"]
["MA012","Worcester Housing Authority"]
["MA013","Waltham Housing Authority"]
["MA014","Revere Housing Authority"]
["MA015","Medford Housing Authority"]
["MA016","Chelsea Housing Authority"]
["MA017","Taunton Housing Authority"]
["MA018","ATTLEBORO HSG AUTHORITY"]
["MA019","Woburn Housing Authority"]
["MA020","Quincy Housing Authority"]
["MA021","Clinton Housing Authority"]
["MA022","Malden Housing Authority"]
["MA023","Lynn Housing Authority"]
["MA024","Brockton Housing Authority"]
["MA025","Gloucester Housing Authority"]
["MA026","Northampton Housing Authority"]
["MA027","EVERETT HSG AUTHORITY"]
["MA028","Framingham Housing Authority"]
["MA029","Pittsfield Housing Authority"]
["MA031","Somerville Housing Authority"]
["MA032","Newburyport Housing Authority"]
["MA033","Brookline Housing Authority"]
["MA034","North Adams Housing Authority"]
["MA035","Springfield Housing Authority"]
["MA036","Newton Housing Authority"]
["MA037","FITCHBURG HSG AUTHORITY"]
["MA039","Winchendon Housing Authority"]
["MA040","Dedham Housing Authority"]
["MA041","Shrewsbury Housing Authority"]
["MA042","BELMONT HSG AUTHORITY"]
["MA043","Dracut Housing Authority"]
["MA044","Beverly Housing Authority"]
["MA045","Weymouth Housing Authority"]
["MA046","Barnstable Housing Authority"]
["MA047","Falmouth Housing Authority"]
["MA048","ARLINGTON HSG AUTHORITY"]
["MA049","Scituate Housing Authority"]
["MA050","WESTFIELD HSG AUTHORITY"]
["MA051","ADAMS HSG AUTHORITY"]
["MA053","BRAINTREE HSG AUTHORITY"]
["MA054","PEABODY HSG AUTHORITY"]
["MA055","Salem Housing Authority"]
["MA056","IPSWICH HSG AUTHORITY"]
["MA057","ACTON HSG AUTHORITY"]
["MA059","Plymouth Housing Authority"]
["MA060","MIDDLEBOROUGH HSG AUTHORITY"]
["MA061","WILMINGTON HSG AUTHORITY"]
["MA062","AVON HSG AUTHORITY"]
["MA063","MELROSE HSG AUTHORITY"]
["MA065","Needham Housing Authority"]
["MA066","WILLIAMSTOWN HSG AUTHORITY"]
["MA067","Lexington Housing Authority"]
["MA069","Milford Housing Authority"]
["MA070","MARLBOROUGH COMM DEV AUTHORITY"]
["MA071","DUXBURY HSG AUTHORITY"]
["MA072","HOLBROOK HSG AUTHORITY"]
["MA073","ROCKPORT HSG AUTHORITY"]
["MA074","Wakefield Housing Authority"]
["MA075","READING HSG AUTHORITY"]
["MA076","SOUTHBRIDGE HSG AUTHORITY"]
["MA077","BILLERICA HSG AUTHORITY"]
["MA078","WEST SPRINGFIELD HSG AUTHORITY"]
["MA079","ABINGTON HSG AUTHORITY"]
["MA080","STOCKBRIDGE HSG AUTHORITY"]
["MA081","Methuen Housing Authority"]
["MA082","HOLDEN HSG AUTHORITY"]
["MA084","ANDOVER HSG AUTHORITY"]
["MA085","Amherst Housing Authority"]
["MA086","LEOMINSTER HSG AUTHORITY"]
["MA087","HAVERHILL HSG AUTHORITY"]
["MA088","WARE HSG AUTHORITY"]
["MA089","NORTH READING HSG AUTHORITY"]
["MA090","BELLINGHAM HSG AUTHORITY"]
["MA091","Hudson Housing Authority"]
["MA092","NATICK HSG AUTHORITY"]
["MA093","Watertown Housing Authority"]
["MA094","FRANKLIN CTY REG HSG AUTHORITY"]
["MA095","YARMOUTH HSG AUTHORITY"]
["MA096","GREENFIELD HSG AUTHORITY"]
["MA098","Concord Housing Authority"]
["MA099","Saugus Housing Authority"]
["MA100","ATHOL HSG AUTHORITY"]
["MA101","Wayland Housing Authority"]
["MA105","WARREN HSG AUTHORITY"]
["MA106","OXFORD H A"]
["MA107","North Andover Housing Authority"]
["MA108","CHELMSFORD HSG AUTHORITY"]
["MA109","Norwood Housing Authority"]
["MA110","Bourne Housing Authority"]
["MA111","Pembroke Housing Authority"]
["MA112","BURLINGTON HSG AUTHORITY"]
["MA113","MERRIMAC HSG AUTHORITY"]
["MA115","BELCHERTOWN HSG AUTHORITY"]
["MA116","AMESBURY HSG AUTHORITY"]
["MA117","Stoughton Housing Authority"]
["MA118","Danvers Housing Authority"]
["MA119","HINGHAM HOUSING AUTHORITY"]
["MA121","HALIFAX HSG AUTHORITY"]
["MA122","EASTON HOUSING AUTHORITY"]
["MA123","Webster Housing Authority"]
["MA125","WINCHESTER HSG AUTHORITY"]
["MA126","BRIDGEWATER HOUSING AUTHORITY"]
["MA127","GARDNER HSG AUTHORITY"]
["MA132","Groveland Housing Authority"]
["MA133","Rockland Housing Authority"]
["MA134","MANSFIELD HSG AUTHORITY"]
["MA135","WELLESLEY HSG AUTHORITY"]
["MA137","Maynard Housing Authority"]
["MA138","DENNIS HSG AUTHORITY"]
["MA139","Tewksbury Housing Authority"]
["MA140","WALPOLE HSG AUTHORITY"]
["MA147","MILTON HSG AUTHORITY"]
["MA148","HANOVER HSG AUTHORITY"]
["MA154","MILLIS HOUSING AUTHORITY"]
["MA155","Hanson Housing Authority"]
["MA157","Medway Housing Authority"]
["MA159","Auburn Housing Authority"]
["MA165","HOLLISTON HSG AUTHORITY"]
["MA166","COHASSET HSG AUTHORITY"]
["MA169","Swansea Housing Authority"]
["MA170","NORTH ATTLEBOROUGH HSG AUTHORITY"]
["MA172","DARTMOUTH HA"]
["MA174","SALISBURY HSG AUTHORITY"]
["MA175","STOW HSG AUTHORITY"]
["MA180","Unknown - No Activity"]
["MA181","SANDWICH HSG AUTHORITY"]
["MA187","Berkshire County Regional Housing Authority"]
["MA188","THE BRIDGE OF CENTRAL MASSACHUSETTS, INC."]
["MA880","BRIDGEWELL"]
["MA881","MIDDLESEX NORTH RESOURCE CENTER, INC."]
["MA882","COMMUNITY TEAMWORK, INC."]
["MA883","AMERICAN TRAINING INC."]
["MA884","BROCKTON AREA MULTI SERVICES INC."]
["MA901","COMM DEV PROG COMM OF MA.,E.O.C.D."]
["MD001","Housing Authority of the City of Annapolis"]
["MD002","Housing Authority of Baltimore City"]
["MD003","Frederick Housing Authority"]
["MD004","Housing Opprty Com of Montgomery Co"]
["MD005","Housing Authority of the City of Cumberland"]
["MD006","Hagerstown Housing Authority"]
["MD007","Rockville Housing Enterprises"]
["MD008","Housing Authority of the City of Frostburg"]
["MD009","Housing Authority of Crisfield"]
["MD010","Housing Authority of Cambridge"]
["MD011","Glenarden Housing Authority"]
["MD012","Havre De Grace Housing Authority"]
["MD013","St. Michaels Housing Authority"]
["MD014","Wicomico County Housing Authority"]
["MD015","Housing Authority of Prince Georges County"]
["MD016","Elkton Housing Authority"]
["MD017","College Park Housing Authority"]
["MD018","Housing Commisson of Anne Arundel County"]
["MD019","Housing Authority of the Town of Easton"]
["MD021","Housing Authority of St. Mary's County, MD"]
["MD022","Housing Authority of Calvert County"]
["MD023","Howard County Housing Commission"]
["MD024","COUNTY COMMISSIONERS CHARLES COUNTY"]
["MD025","HARFORD COUNTY HOUSING AGENCY"]
["MD027","CITY OF WESTMINSTER"]
["MD028","Housing Authority of Washington County"]
["MD029","CECIL COUNTY HOUSING AGENCY"]
["MD030","Housing Authority of Allegany County"]
["MD032","CARROLL COUNTY HSG & COMMUNITY DEV"]
["MD033","BALTIMORE CO. HOUSING OFFICE"]
["MD034","Queen Anne's County Housing Authority"]
["MD880","Unknown - No Activity"]
["MD901","MARYLAND DEPT OF HSG & COMMUNITY DEVELOPMENT"]
["MD902","Unknown - No Activity"]
["ME001","Van Buren Housing Authority"]
["ME002","Fort Fairfield Housing Authority"]
["ME003","Portland Housing Authority"]
["ME004","Presque Isle Housing Authority"]
["ME005","Lewiston Housing Authority"]
["ME006","Brunswick Housing Authority"]
["ME007","Auburn Housing Authority"]
["ME008","Waterville Housing Authority"]
["ME009","Housing Authority City of Bangor"]
["ME011","Sanford Housing Authority"]
["ME015","The Housing Authority of the City of Westbroo"]
["ME018","Old Town Housing Authority"]
["ME019","Bath Housing Authority"]
["ME020","South Portland Housing Authority"]
["ME021","Brewer Housing Authority"]
["ME022","Southwest Harbor Housing Authority"]
["ME023","Bar Harbor Housing Authority"]
["ME024","Mount Desert Housing Authority"]
["ME025","CARIBOU HSG AUTHORITY"]
["ME026","Tremont Housing Authority"]
["ME027","Ellsworth Housing Authority"]
["ME028","BIDDEFORD HSG AUTHORITY"]
["ME030","AUGUSTA HSG AUTHORITY"]
["ME031","CITY OF SACO HOUSING AUTHORITY"]
["ME032","TOPSHAM HSG AUTHORITY"]
["ME901","MAINE STATE HSG AUTHORITY"]
["MI001","Detroit Housing Commission"]
["MI003","Dearborn Housing Commission"]
["MI004","Hamtramck Housing Commission"]
["MI005","Pontiac Housing Commission"]
["MI006","Saginaw Housing Commission"]
["MI007","Ecorse Housing Commission"]
["MI008","River Rouge Housing Commission"]
["MI009","Flint Housing Commission"]
["MI010","Benton Harbor Housing Commission"]
["MI011","Monroe Housing Commission"]
["MI012","Bessemer Housing Commission"]
["MI013","Iron Mountain Housing Commission"]
["MI014","Albion Housing Commission"]
["MI015","Wakefield Housing Commission"]
["MI016","Bronson Housing Commission"]
["MI018","Ironwood Housing Commission"]
["MI019","Baraga Housing Commission"]
["MI020","Reed City Housing Commission"]
["MI021","South Lyon Housing Commission"]
["MI022","Alpena Housing Commission"]
["MI023","Greenville Housing Commission"]
["MI024","Bay City Housing Commission"]
["MI025","Belding Housing Commission"]
["MI026","Ypsilanti Housing Commission"]
["MI027","Inkster Housing Commission"]
["MI028","Mount Clemens Housing Commission"]
["MI029","Wayne Housing Commission"]
["MI030","Cheboygan Housing Commission"]
["MI031","Muskegon Heights Housing Commission"]
["MI032","Benton Township Housing Commission"]
["MI033","Royal Oak Township Housing Commission"]
["MI035","Battle Creek Housing Commission"]
["MI036","Sault Ste Marie Housing Commission"]
["MI037","Roseville Housing Commission"]
["MI038","Jackson Housing Commission"]
["MI039","Port Huron Housing Commission"]
["MI040","Clinton Township Housing Commission"]
["MI041","Big Rapids Housing Commission"]
["MI042","Ontonagon Housing Commission"]
["MI044","Eastpointe Housing Commission"]
["MI045","Plymouth Housing Commission"]
["MI046","Saint Joseph Housing Commission"]
["MI047","Grayling Housing Commission"]
["MI048","Melvindale Housing Commission"]
["MI049","Manistique Housing Commission"]
["MI050","Baldwin Housing Commission"]
["MI051","Lincoln Park Housing Commission"]
["MI052","Saint Clair Housing Commission"]
["MI053","Allen Park Housing Commission"]
["MI054","Laurium Housing Commission"]
["MI055","Livonia Housing Commission"]
["MI056","Coldwater Housing Commission"]
["MI057","Calumet Housing Commission"]
["MI058","Lansing Housing Commission"]
["MI059","St Clair Shores Housing Commission"]
["MI060","Cadillac Housing Commission"]
["MI061","Saint Louis Housing Commission"]
["MI063","Hancock Housing Commission"]
["MI064","Ann Arbor Housing Commission"]
["MI066","Muskegon Housing Commission"]
["MI068","Negaunee Housing Commission"]
["MI069","Sturgis Housing Commission"]
["MI070","Marquette Housing Commission"]
["MI071","Stambaugh Housing Commission"]
["MI072","Romulus Housing Commission"]
["MI073","Grand Rapids Housing Commission"]
["MI074","Mount Pleasant Housing Commission"]
["MI076","Niles Housing Commission"]
["MI077","Gladstone Housing Commission"]
["MI078","Manistee Housing Commission"]
["MI079","Rogers City Housing Commission"]
["MI080","Traverse City Housing Commission"]
["MI081","Rockwood Housing Commission"]
["MI082","South Haven Housing Commission"]
["MI083","Escanaba Housing Commission"]
["MI084","Boyne City Housing Commission"]
["MI087","Menominee Housing Commission"]
["MI088","Paw Paw Housing Commission"]
["MI089","Taylor Housing Commission"]
["MI090","Iron River Housing Commission"]
["MI091","Kingsford Housing Commission"]
["MI093","Rockford Housing Commission"]
["MI094","Munising Housing Commission"]
["MI095","Gladwin City Housing Commission"]
["MI096","Ferndale Housing Commission"]
["MI097","SOUTHFIELD HOUSING COMMISSION"]
["MI098","Luna Pier Housing Commission"]
["MI100","Lapeer Housing Commission"]
["MI101","Ishpeming Housing Commission"]
["MI102","East Tawas Housing Commission"]
["MI103","Hillsdale Housing Commission"]
["MI104","Lake Linden Housing Commission"]
["MI105","Highland Park Housing Commission"]
["MI107","Houghton Housing Commission"]
["MI108","L'Anse Housing Commission"]
["MI112","Evart Housing Commission"]
["MI114","Algonac Housing Commission"]
["MI115","Wyoming Housing Commission"]
["MI116","Elk Rapids Housing Commission"]
["MI117","Ionia Housing Commission"]
["MI118","East Jordan Housing Commission"]
["MI119","Iron County Housing Commission"]
["MI120","Dowagiac Housing Commission"]
["MI121","Alma Housing Commission"]
["MI124","Saranac Housing Commission"]
["MI132","LUCE COUNTY HSG. COMM."]
["MI139","WESTLAND HOUSING COMMISSION"]
["MI141","REDFORD TOWNSHIP HSG. COMM."]
["MI142","Dundee Housing Commission"]
["MI156","Bedford Township Housing Commission"]
["MI157","Sterling Heights Housing Commission"]
["MI158","Mackinac County Housing Commission"]
["MI160","DEARBORN HEIGHTS HSG. COMM."]
["MI161","Marysville Housing Commission"]
["MI165","ROYAL OAK HOUSING COMMISSION"]
["MI166","Bay County Housing Department"]
["MI167","Potterville Housing Commission"]
["MI168","Ingham County Housing Commission"]
["MI178","Schoolcraft County Housing Commission"]
["MI180","New Haven Housing Commission"]
["MI181","Bangor Housing Commission"]
["MI182","Charlevoix Housing Commission"]
["MI183","Middleville Housing Commission"]
["MI186","Montcalm Housing Commission"]
["MI187","Rapid River Housing Commission"]
["MI188","MADISON HEIGHTS HSG COMMISSION"]
["MI189","Covert Public Housing Commission"]
["MI191","Caseville Housing Commission"]
["MI192","Hermansville Housing Commission"]
["MI194","Bath Charter Township Housing Commission"]
["MI196","GRAND LEDGE HOUSING COMMISSION"]
["MI198","KENT COUNTY HOUSING COMMISSION"]
["MI199","Unknown - No Activity"]
["MI880","HSNG. SERVICES OF EATON COUNTY"]
["MI901","MICHIGAN STATE HSG. DEV. AUTH."]
["MI902","MICHIGAN STATE HSG. DEV. AUTH."]
["MN001","Public Housing Agency of the City of St Paul"]
["MN002","PHA In And for the City of Minneapolis"]
["MN003","HRA of Duluth, Minnesota"]
["MN004","The HRA of Hibbing, Minnesota"]
["MN005","HRA of Chisholm, Minnesota"]
["MN006","HRA of Winona, Minnesota"]
["MN007","HRA of Virginia, Minnesota"]
["MN008","HRA of Fergus Falls, Minnesota"]
["MN009","HRA of Bemidji, Minnesota"]
["MN010","HRA of the City of South St Paul, Minnesota"]
["MN011","HRA of Eveleth, Minnesota"]
["MN014","HRA of Benson, Minnesota"]
["MN017","Moorhead Public Housing Agency"]
["MN018","HRA of Wadena, Minnesota"]
["MN019","North Mankato Housing And Redevelopment Autho"]
["MN020","HRA of Perham, Minnesota"]
["MN021","Crookston Housing And EDA"]
["MN022","HRA of the City of Blue Earth, Minnesota"]
["MN023","HRA of International Falls, Minnesota"]
["MN024","HRA of Two Harbors, Minnesota"]
["MN025","HRA of Walker, Minnesota"]
["MN026","HRA of Montevideo, Minnesota"]
["MN027","Thief River Falls Housing & Redevelopment Aut"]
["MN028","HRA of Sauk Centre, Minnesota"]
["MN029","HRA of Madison, Minnesota"]
["MN030","HRA of Morris, Minnesota"]
["MN031","HRA of St. James, Minnesota"]
["MN032","HRA In And for the City of Brainerd, Minnesota"]
["MN033","HRA of Montgomery, Minnesota"]
["MN034","HRA of Worthington, Minnesota"]
["MN035","HRA of Alexandria, Minnesota"]
["MN036","HRA of Redwood Falls, Minnesota"]
["MN037","HRA of Aitkin County, Minnesota"]
["MN038","HRA of St. Cloud, Minnesota"]
["MN039","HRA of Le Sueur, Minnesota"]
["MN040","HRA of Tracy, Minnesota"]
["MN041","Public Housing Commission of the City of Marshall"]
["MN042","HRA of Little Falls, Minnesota"]
["MN043","HRA of Park Rapids, Minnesota"]
["MN044","HRA of Forest Lake, Minnesota"]
["MN045","EAST GRAND FORKS ECONOMIC DEVELOPMENT HOUSING AUTH"]
["MN046","HRA of St. Peter, Minnesota"]
["MN047","HRA of Bagley, Minnesota"]
["MN048","HRA of Luverne, Minnesota"]
["MN049","HRA of Pipestone, Minnesota"]
["MN051","HRA In And for the City of Willmar, Minnesota"]
["MN052","HRA of Braham, Minnesota"]
["MN053","HRA of Ely, Minnesota"]
["MN054","HRA of Fairmont, Minnesota"]
["MN055","HRA of Carlton, Minnesota"]
["MN056","HRA of Glenwood, Minnesota"]
["MN057","HRA of Grand Rapids, Minnesota"]
["MN058","HRA of Mountain Lake, Minnesota"]
["MN059","HRA of Pine City, Minnesota"]
["MN060","HRA of Sleepy Eye, Minnesota"]
["MN061","HRA of Warroad, Minnesota"]
["MN062","HRA of City of Delano, Minnesota"]
["MN063","Mankato EDA"]
["MN064","HRA of Princeton, Minnesota"]
["MN065","HRA of City of Melrose, Minnesota"]
["MN067","Cambridge Economic Development Authority"]
["MN068","HRA of Barnesville, Minnesota"]
["MN069","HRA of Clarkfield, Minnesota"]
["MN070","HRA of Litchfield, Minnesota"]
["MN071","HRA of Red Lake Falls, Minnesota"]
["MN072","Breckenridge HRA of Breckenridge, Minnesota"]
["MN073","HRA of Cloquet, Minnesota"]
["MN074","HRA of the City of Mound, Minnesota"]
["MN075","HRA of Staples"]
["MN076","HRA of Warren, Minnesota"]
["MN077","HRA In And for the City of Albert Lea, Minnesota"]
["MN078","HRA of Hopkins, Minnesota"]
["MN079","Unknown - No Activity"]
["MN080","HRA of Windom, Minnesota"]
["MN082","HRA of Crosby, Minnesota"]
["MN083","HRA of Henning, Minnesota"]
["MN085","Housing & Redevelopment Authority of Austin"]
["MN086","HRA of Village of Greenbush, Minnesota"]
["MN087","HRA of Waseca, Minnesota"]
["MN088","HRA of Long Prairie, Minnesota"]
["MN089","HRA of Jackson, Minnesota"]
["MN090","HRA of Red Wing, Minnesota"]
["MN091","HRA of Moose Lake, Minnesota"]
["MN092","HRA of Pine River, Minnesota"]
["MN095","HRA of Pequot Lakes, Minnesota"]
["MN096","HRA of Cook, Minnesota"]
["MN097","HRA of New Richland, Minnesota"]
["MN098","HRA of Cottonwood, Minnesota"]
["MN100","HRA of Cass Lake, Minnesota"]
["MN101","HRA of Mora, Minnesota"]
["MN102","HRA of Lindstrom, Minnesota"]
["MN103","HRA of Hutchinson, Minnesota"]
["MN105","HRA of Columbia Heights"]
["MN107","HRA of Detroit Lakes, Minnesota"]
["MN108","HRA of Lake Benton, Minnesota"]
["MN113","HRA of Baudette, Minnesota"]
["MN117","HRA of Gilbert, Minnesota"]
["MN128","New Ulm EDA"]
["MN144","Housing Authority of St Louis Park, Minnesota"]
["MN147","Dakota County CDA"]
["MN151","Olmsted County HRA"]
["MN152","HRA In And for the City of Bloomington"]
["MN153","KOOCHICHING COUNTY HRA"]
["MN154","Itasca County HRA"]
["MN157","Housing & Redevelopment Authority of Faribault"]
["MN158","NW MN Multi-County HRA"]
["MN161","Renville County HRA"]
["MN163","METROPOLITAN COUNCIL HRA"]
["MN164","Clay County HRA"]
["MN166","SWIFT COUNTY HRA"]
["MN167","Blue Earth County EDA"]
["MN168","KANDIYOHI COUNTY HRA"]
["MN169","Grant County HRA"]
["MN170","PLYMOUTH HRA"]
["MN171","LE SUEUR COUNTY HRA"]
["MN172","Stearns County HRA"]
["MN173","CHIPPEWA COUNTY HRA"]
["MN174","YELLOW MEDICINE COUNTY HRA"]
["MN176","Big Stone County HRA"]
["MN177","Otter Tail County HRA"]
["MN178","Meeker County HRA"]
["MN179","MORRISON COUNTY HRA"]
["MN180","Todd County HRA"]
["MN182","STEVENS COUNTY HRA"]
["MN183","Housing & Redevelopment Authority of Lincoln"]
["MN184","Scott County Community Development Agency"]
["MN186","CLEARWATER COUNTY HRA"]
["MN188","Cass County HRA"]
["MN190","Becker County Economic Development Authority"]
["MN191","Mower County HRA"]
["MN192","Douglas County HRA"]
["MN193","RICE COUNTY HRA"]
["MN197","Southeast MN Multi-County HRA"]
["MN200","FARIBAULT COUNTY HRA"]
["MN203","MCLEOD COUNTY HRA"]
["MN206","Housing & Redevelopment Authority of Dodge Center"]
["MN208","Housing & Redevelopment Authority of Janesville"]
["MN211","Carver County HRA"]
["MN212","Washington County HRA"]
["MN216","RICHFIELD HRA"]
["MN219","SOUTH CENTRAL MULTI COUNTY HRA"]
["MN220","OWATONNA HRA"]
["MN801","MENTAL HEALTH RESOURCES, INC."]
["MN802","SOUTH METRO HUMAN SERVICES"]
["MN803","SCOTT CARVER DAKOTA CAP AGENCY, INC."]
["MO001","St. Louis Housing Authority"]
["MO002","Housing Authority of Kansas City, Missouri"]
["MO003","St. Joseph Housing Authority"]
["MO004","Housing Authority of St. Louis County"]
["MO005","Unknown - No Activity"]
["MO006","Housing Authority of the City of St. Charles"]
["MO007","Housing Authority of the City of Columbia, MO"]
["MO008","Housing Authority of the City of Sikeston"]
["MO009","Housing Authority of the City of Jefferson"]
["MO010","Housing Authority of the City of Mexico"]
["MO011","Housing Authority of the City of Moberly"]
["MO012","Housing Authority of the City of Charleston"]
["MO013","Housing Authority of the City of Poplar Bluff"]
["MO014","Housing Authority of the City of Fulton"]
["MO016","Marshall Housing Authority"]
["MO017","Independence Housing Authority"]
["MO018","Housing Authority of the City of Kennett"]
["MO019","Housing Authority of the City of Bloomfield"]
["MO020","Housing Authority of the City of Hayti"]
["MO021","Housing Authority of the City of Potosi"]
["MO022","Housing Authority of the City of Steele"]
["MO023","Housing Authority of the City of Senath"]
["MO024","Housing Authority of the City of Bernie"]
["MO025","Housing Authority of the City of Clarkton"]
["MO026","Housing Authority of the City of Campbell"]
["MO027","Housing Authority of the City of Cardwell"]
["MO028","Housing Authority of the City of Malden"]
["MO029","Housing Authority of the City of Hornersville"]
["MO030","Lee's Summit Housing Authority"]
["MO031","Clinton Housing Authority"]
["MO032","Tarkio Housing Authority"]
["MO033","Mound City Housing Authority"]
["MO034","Housing Authority of the City of Dexter"]
["MO035","Housing Authority of the City of Holcomb"]
["MO036","Housing Authority of the City of Caruthersville"]
["MO037","Housing Authority of the City of West Plains"]
["MO038","Osceola Housing Authority"]
["MO039","Housing Authority of the City of Glasgow"]
["MO040","Housing Authority of the City of Houston"]
["MO041","Smithville Housing Authority"]
["MO042","Housing Authority of the City of Portageville"]
["MO043","Plattsburg Housing Authority"]
["MO044","Housing Authority of the City of Gideon"]
["MO045","Branson Housing Authority"]
["MO046","Marceline Housing Authority"]
["MO047","Anderson Housing Authority"]
["MO048","Lanagan Housing Authority"]
["MO049","Noel Housing Authority"]
["MO050","Pineville Housing Authority"]
["MO051","Housing Authority of Southwest City"]
["MO052","Housing Authority of the City of Salem"]
["MO053","Excelsior Springs Housing Authority"]
["MO054","Housing Authority of the City of Boonville"]
["MO056","Housing Authority of the City of Fayette"]
["MO057","Housing Authority of the City of Illmo"]
["MO058","Springfield Housing Authority"]
["MO059","Brunswick Housing Authority"]
["MO060","Housing Authority of the City of Mountain Grove"]
["MO061","Webb City Housing Authority"]
["MO062","Neosho Housing Authority"]
["MO063","Housing Authority of the City of Wardell"]
["MO064","Housing Authority of the City of New Madrid"]
["MO065","Chillicothe Housing Authority"]
["MO066","Housing Authority of the City of Chaffee"]
["MO067","Bethany Housing Authority"]
["MO068","Richland Housing Authority"]
["MO069","Slater Housing Authority"]
["MO070","Richmond Housing Authority"]
["MO071","Aurora Housing Authority"]
["MO072","Maryville Housing Authority"]
["MO073","Lawson Housing Authority"]
["MO074","Housing Authority of the City of Sedalia, MO"]
["MO075","Brookfield Housing Authority"]
["MO076","Housing Authority of the City of East Prairie"]
["MO077","Republic Housing Authority"]
["MO078","Housing Authority of the City of Cameron"]
["MO079","Lebanon Housing Authority"]
["MO080","ORAN HOUSING AUTHORITY"]
["MO081","Marionville Housing Authority"]
["MO090","Housing Authority of the City of Mansfield"]
["MO092","Housing Authority of the City of Morehouse"]
["MO096","Lexington Housing Authority"]
["MO098","Housing Authority of the City of Thayer"]
["MO103","Princeton Housing Authority"]
["MO107","Carrollton Housing Authority"]
["MO110","Higginsville Housing Authority"]
["MO111","Housing Authority of the City of Macon"]
["MO125","Housing Authority of the City of Bowling Green"]
["MO129","Housing Authority of the City of Hannibal"]
["MO132","Housing Authority of the City of Olivette"]
["MO133","Nevada Housing Authority"]
["MO138","Wellston Housing Authority"]
["MO145","Housing Authority of the City of Kirksville"]
["MO146","Housing Authority of the City of Memphis"]
["MO147","Housing Authority of the City of Lancaster"]
["MO149","Housing Authority of the City of Rolla"]
["MO156","Housing Authority of the City of Alton"]
["MO179","Housing Authority of the City of Vandalia"]
["MO187","Housing Authority of the City of Kirkwood"]
["MO188","Housing Authority of the City of Joplin, MO"]
["MO189","Housing Authority of the City of Norwood"]
["MO190","NODAWAY COUNTY PHA"]
["MO191","Housing Authority of the City of Sainte Genevieve"]
["MO192","Housing Authority of the City of Ava"]
["MO193","WESTON HOUSING AUTHORITY"]
["MO194","WARRENSBURG HOUSING AUTHORITY"]
["MO196","GRUNDY COUNTY HOUSING AUTHORITY"]
["MO197","ST. CLAIR CO. HSG. AUTHORITY"]
["MO198","BOONE COUNTY PHA"]
["MO199","LINCOLN COUNTY PUB HSG AGENCY"]
["MO200","SCOTLAND COUNTY PUBLIC HSG AGENCY"]
["MO203","ST. FRANCOIS COUNTY PH AGENCY"]
["MO204","LAFAYETTE CO. HSG. AUTHORITY"]
["MO205","FRANKLIN COUNTY PUBLIC HSG AGENCY"]
["MO206","PHELPS COUNTY PHA"]
["MO207","PULASKI COUNTY PHA"]
["MO208","NEW MADRID COUNTY HOUSING AUTHORITY"]
["MO209","Housing Authority of the City of Cabool"]
["MO210","LIBERTY HOUSING AUTHORITY"]
["MO211","SCOTT COUNTY PHA"]
["MO212","RIPLEY COUNTY PHA"]
["MO213","PHA OF THE COUNTY OF RAY"]
["MO214","HARTVILLE HOUSING AUTHORITY"]
["MO215","JASPER COUNTY  PUBLIC HOUSING AUTHORITY"]
["MO216","DALLAS COUNTY PHA"]
["MO217","HOWELL COUNTY PHA"]
["MO218","Housing Authority of the City of Pagedale"]
["MO219","ABCD HOUSING AGENCY"]
["MO220","Housing Authority of the City of Hillsdale"]
["MO221","Housing Authority of the City of Festus"]
["MO223","Housing Authority of the City of Hayti Heights"]
["MO224","Unknown - No Activity"]
["MO225","Unknown - No Activity"]
["MO226","AUDRAIN COUNTY  PUBLIC HOUSING AGENCY"]
["MO227","HOUSING ASSISTANT PROGRAM OF ST. CHARLES COUNTY"]
["MO880","COMMUNITY HOUSING NETWORK"]
["MO901","Unknown - No Activity"]
["MO902","Unknown - No Activity"]
["MS001","The Housing Authority of the City of Hattiesburg"]
["MS002","The Housing Authority of the City of Laurel"]
["MS003","The Housing Authority of the City of McComb"]
["MS004","The Housing Authority of the City of Meridian"]
["MS005","The Housing Authority of the City of Biloxi"]
["MS006","Tennessee Valley Regional Housing Authority"]
["MS007","The Housing Authority of the City of Clarksdale"]
["MS016","MISS REG H A II"]
["MS019","Mississippi Regional Housing Authority No. IV"]
["MS030","Mississippi Regional Housing Authority No. V"]
["MS040","Mississippi Regional Housing Authority No. VIII"]
["MS047","The Housing Authority of the City of Starkville"]
["MS057","Mississippi Regional Housing Authority No. VII"]
["MS058","Mississippi Regional Housing Authority No. VI"]
["MS059","The Housing Authority of the City of West Point"]
["MS060","The Housing Authority of the City of Brookhaven"]
["MS061","The Housing Authority of the City of Canton"]
["MS062","The Housing Authority of the City of Holly Springs"]
["MS063","The Housing Authority of the City of Yazoo City"]
["MS064","Bay St. Louis HA"]
["MS065","The Housing Authority of the City of Booneville"]
["MS066","The Housing Authority of the City of Picayune"]
["MS067","The Housing Authority of the City of Richton"]
["MS068","The Housing Authority of the City of Waynesboro"]
["MS070","The Housing Authority of the City of Okolona"]
["MS071","The Housing Authority of the City of Aberdeen"]
["MS072","The Housing Authority of the City of Corinth"]
["MS075","The Housing Authority of the City of Iuka"]
["MS076","The Housing Authority of the City of Columbus"]
["MS077","The Housing Authority of the City of Tupelo"]
["MS078","The Housing Authority of the City of Water Valley"]
["MS079","The Housing Authority of the City of Louisville"]
["MS080","The Housing Authority of the City of Walnut"]
["MS081","The Housing Authority of the City of Sardis"]
["MS082","The Housing Authority of the City of Winona"]
["MS083","The Housing Authority of the City of Amory"]
["MS084","The Housing Authority of the City of Summit"]
["MS085","The Housing Authority of the City of Baldwyn"]
["MS086","Housing Authority of the City of Vicksburg"]
["MS089","Shelby HA"]
["MS090","The Housing Authority of the City of Senatobia"]
["MS093","Oxford Housing Authority"]
["MS094","The Housing Authority of the City of Hazlehurst"]
["MS095","HA SOUTH DELTA"]
["MS096","The Housing Authority of the City of Pontotoc"]
["MS099","Unknown - No Activity"]
["MS101","Waveland HA"]
["MS103","The Housing Authority of the City of Jackson"]
["MS105","The Housing Authority of the City of Natchez"]
["MS107","The Housing Authority of the City of Greenwood"]
["MS109","The Housing Authority of the City of Long Beach"]
["MS110","The Housing Authority of the City of Mound Bayou"]
["MS111","The Housing Authority of the City of Forest"]
["MS117","The Housing Authority of Attala County"]
["MS121","The Housing Authority of the City of Itta Bena"]
["MS128","NORTH DELTA REG HSS AUTH"]
["MS301","Bay Waveland Housing Authority"]
["MT001","Housing Authority of Billings"]
["MT002","Great Falls Housing Authority"]
["MT003","Housing Authority of Butte"]
["MT004","Helena Housing Authority"]
["MT005","Housing Authority of the City of Anaconda"]
["MT006","Richland County Housing Authority"]
["MT007","Housing Authority of Glasgow"]
["MT015","Whitefish Housing Authority"]
["MT029","Dawson County Housing Authority"]
["MT033","Missoula Housing Authority"]
["MT036","CITY OF RONAN HOUSING AUTHORITY"]
["MT901","MT DEPARTMENT OF COMMERCE"]
["NC001","Housing Authority of the City of Wilmington"]
["NC002","Housing Authority of the City of Raleigh"]
["NC003","Housing Authority of the City of Charlotte"]
["NC004","Housing Authority of the City of Kinston"]
["NC005","Housing Authority of the City of New Bern"]
["NC006","Housing Authority of the City of High Point"]
["NC007","Housing Authority of the City of Asheville"]
["NC008","Housing Authority of the City of Concord"]
["NC009","Fayetteville Metropolitan Housing Authority"]
["NC010","Eastern Carolina Regional Housing Authority"]
["NC011","Housing Authority of the City of Greensboro"]
["NC012","Housing Authority of the City of Winston-Salem"]
["NC013","The Housing Authority of the City of Durham"]
["NC014","Housing Authority of the City of Lumberton"]
["NC015","Housing Authority of the City of Goldsboro"]
["NC016","Housing Authority of the City of Salisbury"]
["NC017","Redevelopment Commission of the Town of Tarboro"]
["NC018","Housing Authority of the Town of Laurinburg"]
["NC019","Rocky Mount Housing Authority"]
["NC020","Housing Authority of the City of Wilson"]
["NC021","Housing Authority of the County of Wake"]
["NC022","Housing Authority of the City of Greenville"]
["NC023","Housing Authority of the Town of Mount Airy"]
["NC024","Mooresville Housing Authority"]
["NC025","Rockingham Housing Authority"]
["NC026","Elizabeth City Housing Authority"]
["NC027","Hendersonville Housing Authority"]
["NC028","Benson Housing Authority"]
["NC029","Star Housing Authority"]
["NC030","Housing Programs of the Town of Murphy"]
["NC031","Hertford Housing Authority"]
["NC032","Washington Housing Authority"]
["NC033","Spruce Pine Housing Authority"]
["NC034","City of Shelby, Department of Housing"]
["NC035","Sanford Housing Authority"]
["NC036","Selma Housing Authority"]
["NC037","Whiteville Housing Authority"]
["NC039","Lexington Housing Authority"]
["NC040","Smithfield Housing Authority"]
["NC043","Troy Housing Authority"]
["NC044","Mount Gilead Housing Authority"]
["NC045","Hot Springs Housing Authority"]
["NC046","Town of Chapel Hill Department of Housing"]
["NC047","Fairmont Housing Authority"]
["NC048","Maxton Housing Authority"]
["NC049","Morganton Housing Authority"]
["NC050","Wadesboro Housing Authority"]
["NC051","Andrews Housing Authority"]
["NC052","Southern Pines Housing Authority"]
["NC053","Hamlet Housing Authority"]
["NC054","Madison Housing Authority"]
["NC055","Valdese Housing Authority"]
["NC056","City of Hickory Public Housing Authority"]
["NC057","Gastonia Housing Authority"]
["NC058","Mars Hill Housing Authority"]
["NC059","The Graham Housing Authority"]
["NC060","Roxboro Housing Authority"]
["NC061","Housing Authority of the Town of Beaufort"]
["NC062","Waynesville Housing Authority"]
["NC063","The New Randleman Housing Authority"]
["NC064","Kings Mountain Housing Authority"]
["NC065","Monroe Housing Authority"]
["NC066","Burlington Housing Authority"]
["NC067","Robersonville Housing Authority"]
["NC068","The New Edenton Housing Authority"]
["NC069","North Wilkesboro Housing Authority"]
["NC070","Lincolnton Housing Authority"]
["NC071","Thomasville Housing Authority"]
["NC072","Statesville Housing Authority"]
["NC073","Oxford Housing Authority"]
["NC074","Lenoir Housing Authority"]
["NC075","City of Albemarle Department of Public Housing"]
["NC076","Farmville Housing Authority"]
["NC077","Williamston Housing Authority"]
["NC078","Plymouth Housing Authority"]
["NC079","Dunn Housing Authority"]
["NC080","Marshall Housing Authority"]
["NC081","Asheboro Housing Authority"]
["NC082","Ayden Housing Authority"]
["NC084","Robeson County Housing Authority"]
["NC085","Ahoskie Housing Authority"]
["NC087","Mid-East Regional Housing Authority"]
["NC088","Belmont Housing Authority"]
["NC089","Bladenboro Housing Authority"]
["NC090","Brevard Housing Authority"]
["NC092","Clarkton Housing Authority"]
["NC093","Elizabethtown Housing Authority"]
["NC095","Forest City Housing Authority"]
["NC098","The New Reidsville Housing Authority"]
["NC102","Rowan County Housing Authority"]
["NC104","ORANGE COUNTY"]
["NC105","Mount Olive Housing Authority"]
["NC114","Pembroke Housing Authority"]
["NC117","Roanoke Rapids Housing Authority"]
["NC118","Roanoke-Chowan Regional Housing Authority"]
["NC119","City of Mount Holly, Dept. of Housing"]
["NC120","CHATHAM COUNTY HSG AUT"]
["NC134"," TOWN OF EAST SPENCER HOUSING AUTHORITY"]
["NC137","NASH EDGECOMBE ECON"]
["NC138","COLUMBUS CTY PHA"]
["NC139","CHOANOKE AREA DEV ASSN"]
["NC140","WESTERN CAROLINA COMM ACTION"]
["NC141","COASTAL COMMUNITY ACTION, INC."]
["NC144","EASTERN CAROLINA HUMAN SVC AGCY"]
["NC145","ECONOMIC IMPROVEMENT COUNCIL, INC."]
["NC146","FOUR SQUARE COMM SERVICE, INC"]
["NC147","BRUNSWICK COUNTY PUBLIC HOUSING AGENCY"]
["NC149","SANDHILLS COMM ACTION PROG INC"]
["NC150","FOUR COUNTY COMMUNITY SERVICES INC"]
["NC151","TWIN RIVERS OPPORTUNITIES INC"]
["NC152","MOUNTAIN PROJECTS, INC."]
["NC154","JACKSON COUNTY PUBLIC HSG AGENCY"]
["NC155","FRANKLIN VANCE WARREN OPP'TY INC"]
["NC158","COUNTY OF HARNETT"]
["NC159","WESTERN PIEDMONT COUNCIL OF GOVT"]
["NC160","CASWELL CO. SECT.8 HOUSING"]
["NC161","ISOTHERMAL PLANNING & DEV COMM"]
["NC163","GREENE CTY PUBLIC HSG AGENCY"]
["NC164","JOHNSTON CTY HAP PROGRAM"]
["NC165","MACON PROGRAM FOR PROGRESS"]
["NC166","PIEDMONT TRIAD REGIONAL COUNCIL"]
["NC167","Northwestern Regional Housing Authority"]
["NC169","Princeville Housing Authority"]
["NC173","PENDER COUNTY HOUSING AUTH."]
["NC174","Vance County Housing Authority"]
["NC175","Madison County Housing Authority"]
["NC901","NC COMM OF INDIAN AFRS"]
["NC902","N.C. HOUSING FINANCE AGENCY"]
["ND001","Housing Authority of Cass County"]
["ND002","Housing Authority of the City of Williston"]
["ND003","Rolette County Housing Authority"]
["ND009","Towner County Housing Authority"]
["ND010","MORTON COUNTY HOUSING AUTHORITY"]
["ND011","STUTSMAN COUNTY HOUSING AUTHORITY"]
["ND012","GRAND FORKS HOUSING AUTHORITY"]
["ND013","Ramsey County Housing Authority"]
["ND014","Fargo Housing And Redevelopment Authority"]
["ND015","Mercer County Housing Authority"]
["ND016","EDDY COUNTY HOUSING AUTHORITY"]
["ND017","Minot Housing Authority"]
["ND019","Traill County Housing Authority"]
["ND021","Burleigh County Housing Authority"]
["ND022","Barnes County Housing Authority"]
["ND024","CAVALIER COUNTY HOUSING AUTHORITY"]
["ND025","HOUSING AUTHORITY OF THE COUNTY OF RANSOM"]
["ND026","HOUSING AUTHORITY OF MOUNTRAIL COUNTY"]
["ND028","HOUSING AUTHORITY OF FOSTER COUNTY"]
["ND030","Benson County Housing Authority"]
["ND031","STARK COUNTY HOUSING AUTHORITY"]
["ND035","RICHLAND COUNTY HOUSING AUTHORITY"]
["ND036","MCKENZIE COUNTY HOUSING AUTHORITY"]
["ND037","DUNN COUNTY HOUSING AUTHORITY"]
["ND038","LA MOURE COUNTY HOUSING AUTHORITY"]
["ND039","McIntosh County Housing Authority"]
["ND040","COOPERSTOWN HOUSING AND REDEVELOPMENT COMMISSION"]
["ND044","PEMBINA COUNTY HOUSING AUTHORITY"]
["ND049","WALSH COUNTY HOUSING AUTHORITY"]
["ND052","DICKEY/SARGENT HOUSING AUTHORITY"]
["ND054","Emmons County Housing Authority"]
["ND055","MCHENRY/PIERCE COUNTY HOUSING AUTHORITY"]
["ND057","HOUSING AUTHORITY OF THE COUNTY OF WELLS"]
["ND058","Nelson County Housing Authority"]
["ND070","NORTHWEST REGIONAL HOUSING AUTHORITY"]
["ND901","NORTH DAKOTA HOUSING FINANCE AGENCY"]
["NE001","Omaha Housing Authority"]
["NE002","Lincoln Housing Authority"]
["NE003","Hall County Housing Authority"]
["NE004","Kearney Housing Authority"]
["NE005","Ord Housing Authority"]
["NE006","Red Cloud Housing Authority"]
["NE008","Loup City Housing Authority"]
["NE010","Lexington Housing Authority"]
["NE011","Gresham Housing Authority"]
["NE012","Nebraska City Housing Authority"]
["NE014","Humboldt Housing Authority"]
["NE015","Syracuse Housing Authority"]
["NE016","Benkelman Housing Authority"]
["NE017","Stromsburg Housing Authority"]
["NE018","Wymore Housing Authority"]
["NE019","Clay Center Housing Authority"]
["NE020","Grant Housing Authority"]
["NE021","Imperial Housing Authority"]
["NE022","Neligh Housing Authority"]
["NE023","Schuyler Housing Authority"]
["NE024","Alma Housing Authority"]
["NE025","David City Housing Authority"]
["NE026","Burwell Housing Authority"]
["NE027","Clarkson Housing Authority"]
["NE028","Pawnee City Housing Authority"]
["NE029","Stanton Housing Authority"]
["NE030","Fairbury Housing Authority"]
["NE031","Blue Hill Housing Authority"]
["NE032","Verdigre Housing Authority"]
["NE033","Edgar Housing Authority"]
["NE034","Creighton Housing Authority"]
["NE035","Ainsworth Housing Authority"]
["NE036","Deshler Housing Authority"]
["NE037","Newman Grove Housing Authority"]
["NE038","Henderson Housing Authority"]
["NE039","Coleridge Housing Authority"]
["NE040","Albion Housing Authority"]
["NE041","Crete Housing Authority"]
["NE042","Greeley Housing Authority"]
["NE043","Lynch Housing Authority"]
["NE046","Hay Springs Housing Authority"]
["NE047","Wilber Housing Authority"]
["NE049","Hooper Housing Authority"]
["NE050","St. Paul Housing Authority"]
["NE051","Minden Housing Authority"]
["NE053","Sargent Housing Authority"]
["NE057","Shelton Housing Authority"]
["NE059","St. Edward Housing Authority"]
["NE063","Friend Housing Authority"]
["NE064","Fairmont Housing Authority"]
["NE065","Auburn Housing Authority"]
["NE067","Tilden Housing Authority"]
["NE068","Harvard Housing Authority"]
["NE069","Oxford Housing Authority"]
["NE070","Cambridge Housing Authority"]
["NE071","Bassett Housing Authority"]
["NE072","Tekamah Housing Authority"]
["NE073","Emerson Housing Authority"]
["NE074","Plattsmouth Housing Authority"]
["NE075","Indianola Housing Authority"]
["NE076","Oshkosh Housing Authority"]
["NE077","Niobrara Housing Authority"]
["NE078","Scotts Bluff County Housing Authority"]
["NE082","Nelson Housing Authority"]
["NE083","Cozad Housing Authority"]
["NE085","Weeping Water Housing Authority"]
["NE086","Bayard Housing Authority"]
["NE088","Lyons Housing Authority"]
["NE090","Aurora Housing Authority"]
["NE091","Wood River Housing Authority"]
["NE092","Blair Housing Authority"]
["NE093","Genoa Housing Authority"]
["NE094","York Housing Authority"]
["NE095","Falls City Housing Authority"]
["NE096","Sutherland Housing Authority"]
["NE097","Curtis Housing Authority"]
["NE098","Tecumseh Housing Authority"]
["NE099","Beemer Housing Authority"]
["NE100","Fremont Housing Authority"]
["NE101","Cairo Housing Authority"]
["NE102","Hemingford Housing Authority"]
["NE103","Oakland Housing Authority"]
["NE104","Columbus Housing Authority"]
["NE106","Bridgeport Housing Authority"]
["NE107","Gordon Housing Authority"]
["NE108","Ravenna Housing Authority"]
["NE109","Wayne Housing Authority"]
["NE110","Gibbon Housing Authority"]
["NE111","Ansley Housing Authority"]
["NE114","BEATRICE HOUSING AUTHORITY"]
["NE115","Chappell Housing Authority"]
["NE117","Broken Bow Housing Authority"]
["NE120","Gothenburg Housing Authority"]
["NE123","McCook Housing Authority"]
["NE125","North Platte Housing Authority"]
["NE131","North Loup Housing Authority"]
["NE141","Alliance Housing Authority"]
["NE143","CHADRON HOUSING AUTHORITY"]
["NE150","HASTINGS HOUSING AUTHORITY"]
["NE153","Douglas County Housing Authority"]
["NE157","NORFOLK HOUSING AUTHORITY"]
["NE174","Bellevue Housing Authority"]
["NE175","SOUTH SIOUX CITY HOUSING AUTHORITY"]
["NE179","WEST CENTRAL HOUSING AUTHORITY"]
["NE180","NORTHEAST NEBRASKA JOINT HSG AUTH"]
["NE181","GOLDENROD REGIONAL HSG AUTH"]
["NE182","CENTRAL NEBRASKA JOINT HSG AUTH"]
["NH001","Manchester Housing & Redevelopment Authority"]
["NH002","Nashua Housing Authority"]
["NH003","Dover Housing Authority"]
["NH004","Portsmouth Housing Authority"]
["NH005","Concord Housing Authority"]
["NH006","Somersworth Housing Authority"]
["NH007","Laconia Housing & Redevelopment Authority"]
["NH008","Housing Authority of the City of Rochester NH"]
["NH009","Lebanon Housing Authority"]
["NH010","KEENE HOUSING AUTHORITY"]
["NH011","Berlin Housing Authority"]
["NH012","Claremont Housing Authority"]
["NH013","Newmarket Housing Authority"]
["NH014","Exeter Housing Authority"]
["NH015","LANCASTER HOUSING AUTHORITY"]
["NH016","NORTHUMBERLAND HSG AUTHORITY"]
["NH017","Housing Authority of the Town of Salem"]
["NH018","FRANKLIN H A"]
["NH022","DERRY HOUSING & REDEVELOPMENT AUTHORITY"]
["NH888","HARBOR HOMES, INC."]
["NH901","NEW HAMPSHIRE HOUSING FINANCE AUTH"]
["NJ002","Newark Housing Authority"]
["NJ003","Elizabeth Housing Authority"]
["NJ004","North Bergen Housing Authority"]
["NJ005","Trenton Housing Authority"]
["NJ006","Perth Amboy Housing Authority"]
["NJ007","Asbury Park Housing Authority"]
["NJ008","Long Branch Housing Authority"]
["NJ009","Housing Authority City of Jersey City"]
["NJ010","Housing Authority of the City of Camden"]
["NJ011","Housing Authority of the Borough of Lodi"]
["NJ012","Bayonne Housing Authority"]
["NJ013","Housing Authority of the City of Passaic"]
["NJ014","Housing Authority And Urban Redevelopment Age"]
["NJ015","Hoboken Housing Authority"]
["NJ016","Harrison Housing Authority"]
["NJ017","Summit Housing Authority"]
["NJ018","Beverly Housing Authority"]
["NJ020","Burlington Housing Authority"]
["NJ021","Paterson Housing Authority"]
["NJ022","New Brunswick Housing Authority"]
["NJ023","Morristown Housing Authority"]
["NJ024","Phillipsburg Housing Authority"]
["NJ025","Housing Authority of the City of Orange"]
["NJ026","Union City Housing Authority"]
["NJ027","Princeton Housing Authority"]
["NJ028","Hackensack Housing Authority"]
["NJ030","West New York Housing Authority"]
["NJ032","Rahway Housing Authority"]
["NJ033","Woodbridge Housing Authority"]
["NJ034","Garfield Housing Authority"]
["NJ035","South Amboy Housing Authority"]
["NJ036","Guttenberg Housing Authority"]
["NJ037","Irvington Housing Authority"]
["NJ038","Florence Housing Authority"]
["NJ039","Plainfield Housing Authority"]
["NJ041","Highlands Housing Authority"]
["NJ042","Franklin Housing Authority"]
["NJ043","Edison Housing Authority"]
["NJ044","Highland Park Housing Authority"]
["NJ045","Hightstown Housing Authority"]
["NJ046","Red Bank Housing Authority"]
["NJ047","Carteret Housing Authority"]
["NJ048","Neptune Housing Authority"]
["NJ049","Bridgeton Housing Authority"]
["NJ050","East Orange Housing Authority"]
["NJ051","Glassboro Housing Authority"]
["NJ052","Boonton Housing Authority"]
["NJ053","Ocean City Housing Authority"]
["NJ054","Housing Authority of the Township of Lakewood"]
["NJ055","Englewood Housing Authority"]
["NJ056","Berkeley Housing Authority"]
["NJ057","Belmar Housing Authority"]
["NJ058","Salem Housing Authority"]
["NJ059","Pleasantville Housing Authority"]
["NJ060","Keansburg Housing Authority"]
["NJ061","Millville Housing Authority"]
["NJ062","Cape May Housing Authority"]
["NJ063","Vineland Housing Authority"]
["NJ064","Haddon Housing Authority"]
["NJ065","Brick Housing Authority"]
["NJ066","Housing Authority City of Linden"]
["NJ067","Bergen County Housing Authority"]
["NJ068","Dover Housing Authority"]
["NJ069","Freehold Housing Authority"]
["NJ070","Cliffside Park Housing Authority"]
["NJ071","Fort Lee Housing Authority"]
["NJ073","Borough of Clementon Housing Authority"]
["NJ074","Penns Grove Housing Authority"]
["NJ075","Edgewater Housing Authority"]
["NJ076","Newton Housing Authority"]
["NJ077","Weehawken Housing Authority"]
["NJ079","Collingswood Housing Authority"]
["NJ080","Wildwood Housing Authority"]
["NJ081","Housing Authority of the Township of Middleto"]
["NJ083","Secaucus Housing Authority"]
["NJ084","HUNTERDON  HOUSING AUTHORITY"]
["NJ086","MONTCLAIR HOUSING AUTHORITY"]
["NJ088","PHILLIPSBURG HOUSING AUTHORITY"]
["NJ089","CLIFTON HOUSING AUTHORITY"]
["NJ090","PASSAIC COUNTY HOUSING AUTHORITY"]
["NJ091","PATERSON DCD HOUSING AUTHORITY"]
["NJ092","Morris County Housing Authority"]
["NJ095","MONMOUTH COUNTY HOUSING AUTHORITY"]
["NJ097","SOMERVILLE HOUSING AUTHORITY"]
["NJ099","BLOOMFIELD HOUSING AUTHORITY"]
["NJ102","WARREN COUNTY HOUSING AUTHORITY"]
["NJ104","CITY OF LINDEN"]
["NJ105","Madison Housing Authority"]
["NJ106","SAYREVILLE HOUSING AUTHORITY"]
["NJ108","WEST ORANGE HOUSING AUTHORITY"]
["NJ109","UNION TOWNSHIP HOUSING AUTHORITY"]
["NJ110","OLD BRIDGE HOUSING AUTHORITY"]
["NJ112","MANVILLE HOUSING AUTHORITY"]
["NJ113","UNION COUNTY HOUSING AUTHORITY"]
["NJ114","MIDDLESEX COUNTY HOUSING AUTHORITY"]
["NJ115","CHERRY HILL HOUSING AUTHORITY"]
["NJ116","FRANKLIN TOWNSHIP HOUSING AUTHORITY"]
["NJ118","PENNSAUKEN HOUSING AUTHORITY"]
["NJ202","Buena Housing Authority"]
["NJ204","Gloucester County Housing Authority"]
["NJ205","SEA ISLE CITY HOUSING AUTHORITY"]
["NJ211","CAPE MAY HOUSING AUTHORITY"]
["NJ212","HAMILTON HOUSING AUTHORITY"]
["NJ213","WILDWOOD HOUSING AUTHORITY (NJDCA)"]
["NJ214","LAKEWOOD RAP HOUSING AUTHORITY"]
["NJ215","BURLINGTON COUNTY BOARD OF SOCIAL SERVICES"]
["NJ218","Gloucester City Housing Authority"]
["NJ880","COLLABORATIVE SUPPORT PROGRAMS OF NEW JERSEY, INC"]
["NJ881","COMMUNITY ENTERPRISES CORPORATION"]
["NJ882","JERSEY CITY EPISCOPAL COMMUNITY DEVELOPMENT CORP."]
["NJ902","NEW JERSEY HOUSING & MORTGAGE FINANCE AGENCY"]
["NJ912","NEW JERSEY DEPARTMENT OF COMMUNITY AFFAIRS"]
["NM001","City of Albuquerque Housing Authority"]
["NM002","Clovis Housing And Redevelopment Agency, Inc."]
["NM003","Housing Authority of the City of Las Cruces"]
["NM004","Housing Authority of the City of Alamogordo"]
["NM006","Housing Authority of the City of Gallup"]
["NM007","Housing Authority of the City of Las Vegas"]
["NM008","Housing Authority of the City of Raton"]
["NM009","Santa Fe Civic Housing Authority"]
["NM010","HSG AUTH CITY OF ESPANOLA"]
["NM011","Unknown - No Activity"]
["NM020","Housing Authority of the City of Truth Or Consequences"]
["NM021","Housing Authority of the City of Artesia"]
["NM022","Housing Authority of the Town of Springer"]
["NM023","Housing Authority of the City of Lovington"]
["NM024","Housing Authority of the Town of Bayard"]
["NM025","Housing Authority of the Village of Fort Sumner"]
["NM026","Housing Authority of the Village of Maxwell"]
["NM027","Housing Authority of the City of Eunice"]
["NM029","Santa Clara Housing Authority"]
["NM030","Housing Authority of the City of Grants"]
["NM032","Housing Authority of the Village of Wagon Mound"]
["NM033","Housing Authority of the City of Tucumcari"]
["NM034","Housing Authority of the City of Lordsburg"]
["NM035","Town of Bernalillo Dept of Housing Services"]
["NM038","Housing Authority of the County of Taos"]
["NM039","Housing Authority of the County of Rio Arriba"]
["NM042","MORA COUNTY HSG AUTHORITY"]
["NM045","Housing Authority of the Town of Vaughn"]
["NM047","Housing Authority of the Village of Chama"]
["NM048","Housing Authority of the Village of Cimarron"]
["NM049","San Miguel County HA"]
["NM050","Housing Authority of the County of Santa Fe"]
["NM054","Housing Authority of the Village of Pecos"]
["NM055","Housing Authority of the Town of Clayton"]
["NM057","Bernalillo County Housing Department"]
["NM058","SANTA FE CIVIC HOUSING AUTHORITY"]
["NM061","SAN MIGUEL COUNTY HA"]
["NM062","Housing Authority of the County of Dona Ana"]
["NM063","Eastern Regional Housing Authority"]
["NM064","REGION IV HOUSING AUTHORITY"]
["NM065","CLOVIS HOUSING AUTHORITY"]
["NM066","SAN JUAN COUNTY HSG AUTHORITY"]
["NM067","Western Regional Housing Authority"]
["NM068","Northern Regional HA"]
["NM069","MOUNTAINAIR HOUSING AUTHORITY"]
["NM070","LOS LUNAS (VILLAGE OF) HSG AUTH"]
["NM071","Housing Authority of the Village of Cuba"]
["NM075","Housing Authority of the City of Sunland Park"]
["NM076","REGION II HOUSING AUTHORITY"]
["NM077","SOCORRO COUNTY HOUSING AUTHORITY"]
["NM888","BARRIER FREE FUTURES, INC."]
["NV001","City of Reno Housing Authority"]
["NV002","CITY OF LAS VEGAS HSG AUTH"]
["NV007","NORTH LAS VEGAS HOUSING AUTHORITY"]
["NV013","COUNTY OF CLARK HOUSING AUTHORITY"]
["NV014","SOUTHERN NEVADA REGIONAL HOUSING AUTHORITY"]
["NV018","Southern Nevada Regional Housing Authority"]
["NV905","NEVADA RURAL HSG AUTH"]
["NV906","ACCESSIBLE SPACE INC."]
["NY001","Syracuse Housing Authority"]
["NY002","Buffalo Municipal Housing Authority"]
["NY003","The Municipal Hsng Authority City Yonkers"]
["NY005","New York City Housing Authority"]
["NY006","Utica Housing Authority"]
["NY008","Tuckahoe Housing Authority"]
["NY009","Albany Housing Authority"]
["NY010","Watertown Housing Authority"]
["NY011","Niagara Falls Housing Authority"]
["NY012","Troy Housing Authority"]
["NY013","Tarrytown Municipal Housing Authority"]
["NY014","Port Chester Housing Authority"]
["NY015","Mechanicville Housing Authority"]
["NY016","Binghamton Housing Authority"]
["NY017","Jamestown Housing Authority"]
["NY018","Plattsburgh Housing Authority"]
["NY019","Herkimer Housing Authority"]
["NY020","Saratoga Springs Housing Authority"]
["NY021","Cortland Housing Authority"]
["NY022","Cohoes Housing Authority"]
["NY023","Freeport Housing Authority"]
["NY025","Watervliet Housing Authority"]
["NY026","North Tarrytown Housing Authority"]
["NY027","CITY OF OSWEGO"]
["NY028","Schenectady Municipal Housing Authority"]
["NY029","Lackawanna Municipal Housing Authority"]
["NY030","Elmira Housing Authority"]
["NY031","Massena Housing Authority"]
["NY032","Catskill Housing Authority"]
["NY033","Rensselaer Housing Authority"]
["NY034","Rome Housing Authority"]
["NY035","Town of Huntington Housing Authority"]
["NY038","Mount Kisco Housing Authority"]
["NY039","Ogdensburg Housing Authority"]
["NY041","Rochester Housing Authority"]
["NY042","White Plains Housing Authority"]
["NY044","Geneva Housing Authority"]
["NY045","Kingston Housing Authority"]
["NY046","Town of Hempstead Housing Authority"]
["NY048","Gloversville Housing Authority"]
["NY049","The City of Beacon Housing Authority"]
["NY050","Housing Authority of Long Beach"]
["NY051","Housing Authority of Newburgh"]
["NY052","Batavia Housing Authority"]
["NY054","Ithaca Housing Authority"]
["NY055","Town of Oyster Bay Housing Authority"]
["NY056","Village of Spring Valley Housing Authority"]
["NY057","Greenburgh Housing Authority"]
["NY058","Wilna Housing Authority"]
["NY059","Ilion Housing Authority"]
["NY060","Amsterdam Housing Authority"]
["NY061","Hudson Housing Authority"]
["NY062","Poughkeepsie Housing Authority"]
["NY063","Dunkirk Housing Authority"]
["NY064","Woodridge Housing Authority"]
["NY065","Norwich Housing Authority"]
["NY066","Auburn Housing Authority"]
["NY067","Hornell Housing Authority"]
["NY068","Oneonta Housing Authority"]
["NY069","Glen Cove Public Housing Authority"]
["NY070","Lockport Housing Authority"]
["NY071","Monticello Housing Authority"]
["NY073","WHITEHALL HOUSING AUTHORITY"]
["NY077","Town of Islip Housing Authority"]
["NY079","Glens Falls Housing Authority"]
["NY080","Malone Housing Authority"]
["NY081","Tupper Lake Housing Authority"]
["NY082","Peekskill Housing Authority"]
["NY083","VILLAGE OF LIBERTY"]
["NY084","Town of Ramapo Housing Authority"]
["NY085","Village of Hempstead HA"]
["NY086","North Hempstead Housing Authority"]
["NY087","Harrietstown Housing Authority"]
["NY088","New Rochelle Housing Authority"]
["NY089","Newark Housing Authority"]
["NY091","TOWN OF AMHERST"]
["NY093","Olean Housing Authority"]
["NY094","VILLAGE OF OSSINING"]
["NY095","Unknown - No Activity"]
["NY097","Canton Housing Authority"]
["NY098","St. Johnsville Housing Authority"]
["NY099","Port Jervis Housing Authority"]
["NY100","Rockville Centre HA"]
["NY101","VILLAGE OF MAMARONECK HOUSING AUTHORITY"]
["NY102","Oneida Housing Authority"]
["NY103","Ellenville Housing Authority"]
["NY107","HOUSING AUTHORITY OF NORTH SYRACUSE"]
["NY109","LITTLE FALLS HOUSING AUTHORITY"]
["NY110","THE CITY OF NEW YORK"]
["NY111","TOWN OF EASTCHESTER"]
["NY113","CITY OF NEW ROCHELLE"]
["NY114","VILLAGE OF NYACK HOUSING AUTHORITY"]
["NY115","THE CITY OF WHITE PLAINS"]
["NY116","VILLAGE OF PELHAM HOUSING  AUTHORITY"]
["NY117","TOWN OF MAMARONECK PHA"]
["NY118","VILLAGE OF PORT CHESTER COMMUNITY DEVELOPMENT DEPT"]
["NY120","ISLAND PARK HOUSING AUTHORITY"]
["NY121","GLEN COVE CDA"]
["NY123","CITY OF PEEKSKILL"]
["NY125","VILLAGE OF HIGHLAND FALLS"]
["NY127"," RIVERHEAD HOUSING DEVELOPMENT"]
["NY128","VILLAGE OF PATCHOGUE CDA"]
["NY130","TOWN OF BABYLON HOUSING ASSISTANCE AGENCY"]
["NY132","TOWN OF YORKTOWN"]
["NY134","PORT JERVIS COMMUNITY DEVELOPMENT AGENCY"]
["NY137","CITY OF POUGHKEEPSIE MUNICIPAL BLDG"]
["NY138","VILLAGE OF NEW SQUARE PHA"]
["NY139","KINGSTON COMMUNITY DEVELOPMENT AGENCY"]
["NY141","TOWN OF SOUTHAMPTON"]
["NY144","Village of Great Neck Housing Authority"]
["NY146","VILLAGE OF GREENPORT"]
["NY147","VILLAGE OF SEA CLIFF"]
["NY148","VILLAGE OF SPRING VALLEY CDA"]
["NY149","TOWN OF BROOKHAVEN DEPT OF HSG COMM DEVELOPMENT"]
["NY151","VILLAGE OF FARMINGDALE HOUSING AUTHORITY"]
["NY152","NORTH FORK HSG ALLIANCE INC"]
["NY154","TOWN OF EAST HAMPTON"]
["NY155","TOWN OF SMITHTOWN"]
["NY158","Village of Kiryas Joel HA"]
["NY159","VILLAGE  OF ROCKVILLE CENTRE"]
["NY160","VILLAGE OF KASER"]
["NY165","HOUSING AUTHORITY OF TUCKAHOE"]
["NY175","MT VERNON URBAN RENEWAL AGENCY"]
["NY176","VILLAGE OF MOUNT KISCO SEC. 8"]
["NY400","Kenmore Municipal Housing Authority"]
["NY402","VILLAGE OF ELMIRA HEIGHTS"]
["NY403","CITY OF SALAMANCA"]
["NY404","CITY OF NIAGARA FALLS"]
["NY405","CITY OF NORTH TONAWANDA"]
["NY406","VILLAGE OF FAIRPORT"]
["NY408","TOWN OF COLONIE"]
["NY409","CITY OF BUFFALO"]
["NY410","VILLAGE OF DELHI"]
["NY413","VILLAGE OF CANAJOHARIE"]
["NY414","West Carthage Housing Authority"]
["NY415","Unknown - No Activity"]
["NY416","TOWN OF CLIFTON PARK"]
["NY417","DOLGEVILLE HOUSING AUTHORITY"]
["NY418","VILLAGE OF CLINTON"]
["NY419","VILLAGE OF SYLVAN BEACH"]
["NY421","TOWN OF HADLEY"]
["NY422","TOWN OF GUILDERLAND"]
["NY423","TOWN OF NEW HARTFORD"]
["NY424","TOWN OF WILTON"]
["NY425","TOWN OF FORESTPORT"]
["NY426","VILLAGE OF HANCOCK"]
["NY427","TOWN OF BETHLEHEM"]
["NY428","TOWN OF DUANESBURG"]
["NY429","VILLAGE OF MARGARETVILLE"]
["NY430","TOWN OF NISKAYUNA"]
["NY431","TOWN OF SCHODACK"]
["NY432","VILLAGE OF HORSEHEADS"]
["NY433","CITY OF JOHNSTOWN"]
["NY435","TOWN OF STAMFORD"]
["NY437","CITY OF BINGHAMTON"]
["NY438","CITY OF HUDSON"]
["NY439","Unknown - No Activity"]
["NY440","TOWN OF MIDDLETOWN"]
["NY441","TOWN OF DAVENPORT"]
["NY443","CITY OF UTICA"]
["NY444","Unknown - No Activity"]
["NY446","VILLAGE OF DEPOSIT"]
["NY447","TOWN OF KNOX"]
["NY448","TOWN OF KORTRIGHT"]
["NY449","CITY OF BUFFALO"]
["NY501","Hoosick Housing Authority"]
["NY503","TOWN OF WATERFORD"]
["NY504","CITY OF FULTON"]
["NY505","TOWN OF UNION"]
["NY506","Unknown - No Activity"]
["NY507","Unknown - No Activity"]
["NY508","VILLAGE OF PHOENIX"]
["NY512","VILLAGE OF SCOTIA"]
["NY513","TOWN OF GLENVILLE"]
["NY516","TOWN OF ROTTERDAM"]
["NY517","LAKE PLACID VILLAGE, INC."]
["NY519","TOWN OF CORINTH"]
["NY520","VILLAGE OF SARANAC LAKE"]
["NY521","CANASTOTA HOUSING AUTHORITY"]
["NY522","TOWN OF JAY"]
["NY523","TOWN OF CAMDEN"]
["NY524","VILLAGE OF WATERVILLE"]
["NY525","VILLAGE OF CLAYVILLE"]
["NY527","VILLAGE OF MANLIUS"]
["NY528","VILLAGE OF SIDNEY"]
["NY529","TOWN OF SAUGERTIES"]
["NY530","VILLAGE OF FORT PLAIN"]
["NY532","VILLAGE OF COBLESKILL"]
["NY533","TOWN OF VERNON"]
["NY534","BOONVILLE HOUSING AUTHORITY"]
["NY535","VILLAGE OF GREEN ISLAND"]
["NY537","Unknown - No Activity"]
["NY538","VILLAGE OF CORINTH"]
["NY541","VILLAGE OF WALTON"]
["NY542","TOWN OF WHITESTOWN"]
["NY552","VILLAGE OF NEW HARTFORD"]
["NY557","TOWN OF COEYMANS"]
["NY561","TOWN OF STILLWATER"]
["NY562","VILLAGE OF BALLSTON SPA"]
["NY564","TOWN OF NASSAU"]
["NY568","TOWN OF POUGHKEEPSIE"]
["NY630","VILLAGE OF WATERFORD"]
["NY888","MERCY HAVEN INC"]
["NY889","SOUTHERN TIER ENVIROMENTS FOR LIVING"]
["NY890","NEW YORK SOCIETY FOR THE DEAF"]
["NY891","OPTIONS FOR COMMUNITY LIVING"]
["NY892","TOWN OF HEMPSTEAD DEPARTMENT OF URBAN RENEWAL"]
["NY893","TRANSITIONAL SERVICES OF NEW YORK FOR LONG ISLAND,"]
["NY894","FAMILY AND CHILDREN'S ASSOCIATION"]
["NY902","NEW YORK STATE HOUSING FINANCE AGENCY"]
["NY903","NEW YORK STATE HOUSING FINANCE AGENCY"]
["NY904","NYS HSG TRUST FUND CORPORATION"]
["NY912","NYS HOUSING FINANCE AGENCY"]
["NY913","NEW YORK STATE HOUSING FINANCE AGENCY"]
["OH001","Columbus Metropolitan Housing Authority"]
["OH002","Youngstown Metropolitan Housing Authority"]
["OH003","Cuyahoga Metropolitan Housing Authority"]
["OH004","Cincinnati Metropolitan Housing Authority"]
["OH005","Dayton Metropolitan Housing Authority"]
["OH006","Lucas Metropolitan Housing Authority"]
["OH007","Akron Metropolitan Housing Authority"]
["OH008","Trumbull Metropolitan Housing Authority"]
["OH009","Zanesville Metropolitan Housing Authority"]
["OH010","Portsmouth Metropolitan Housing Authority"]
["OH012","Lorain Metropolitan Housing Authority"]
["OH014","Jefferson Metropolitan Housing Authority"]
["OH015","Butler Metropolitan Housing Authority"]
["OH016","MANSFIELD MHA"]
["OH018","Stark Metropolitan Housing Authority"]
["OH019","Ironton Metropolitan Housing Authority"]
["OH020","Belmont Metropolitan Housing Authority"]
["OH021","Springfield Metropolitan Housing Authority"]
["OH022","Greene Metropolitan Housing Authority"]
["OH023","London Metropolitan Housing Authority"]
["OH024","Chillicothe Metropolitan Housing Authority"]
["OH025","Lake Metropolitan Housing Authority"]
["OH026","Columbiana Metropolitan Housing Authority"]
["OH027","Medina Metropolitan Housing Authority"]
["OH028","Erie Metropolitan Housing Authority"]
["OH029","Ashtabula Metropolitan Housing Authority"]
["OH030","HURON MHA"]
["OH031","Portage Metropolitan Housing Authority"]
["OH032","Hocking Metropolitan Housing Authority"]
["OH033","Cambridge Metropolitan Housing Authority"]
["OH034","Perry County Metropolitan Housing Authority"]
["OH035","THE MEIGS MHA"]
["OH036","Wayne Metropolitan Housing Authority"]
["OH037","Coshocton Metropolitan Housing Authority"]
["OH038","Clermont Metropolitan Housing Authority"]
["OH039","CRAWFORD MHA"]
["OH040","Jackson County Metropolitan Housing Authority"]
["OH041","Athens Metropolitan Housing Authority"]
["OH042","Geauga Metropolitan Housing Authority"]
["OH043","Licking Metropolitan Housing Authority"]
["OH044","Allen Metropolitan Housing Authority"]
["OH045","DARKE COUNTY METROPOLITAN HSG"]
["OH046","Adams Metropolitan Housing Authority"]
["OH047","Gallia Metropolitan Housing Authority"]
["OH048","HAMILTON COUNTY PUBLIC HSG"]
["OH049","Warren Metropolitan Housing Authority"]
["OH050","KNOX METROPOLITAN HOUSING AUTHORITY"]
["OH053","CLINTON METROPOLITAN HOUSING AUTH."]
["OH054","Sandusky Metropolitan Housing Authority"]
["OH056","FAYETTE METRO HSG AUTH"]
["OH057","HARDIN METROPOLITAN HOUSING AUTHORITY"]
["OH058","MONROE METRO HOUSING AUTHORITY"]
["OH059","Pickaway Metropolitan Housing Authority"]
["OH060","Pike Metropolitan Housing Authority"]
["OH061","Shelby Metropolitan Housing Authority"]
["OH062","Miami Metropolitan Housing Authority"]
["OH063","TUSCARAWAS MHA"]
["OH065","MIDDLETOWN PUBLIC HOUSING AGENCY"]
["OH066","Morgan Metropolitan Housing Authority"]
["OH067","Harrison Metropolitan Housing Authority"]
["OH069","Noble Metropolitan Housing Authority"]
["OH070","Fairfield Metropolitan Housing Authority"]
["OH071","HENRY MHA"]
["OH072","Logan County Metropolitan Housing Authority"]
["OH073","Parma Public Housing Agency"]
["OH074","WILLIAMS MHA"]
["OH075","SENECA MHA"]
["OH076","MARION METRO HOUSING AUTHORITY"]
["OH077","CITY OF MARIETTA"]
["OH078","VINTON METROPOLITAN H. A."]
["OH079","DELAWARE METRO HOUSING AUTHORITY"]
["OH080","PREBLE METROPOLITAN HOUSING AUTH"]
["OH081","Brown Metropolitan Housing Authority"]
["OH082","HANCOCK MHA"]
["OH083","MORROW METRO. HSG. AUT"]
["OH084","Fulton MHA"]
["OH085","BOWLING GREEN HA"]
["OH086","HIGHLAND METROPOLITAN HOUSING AUTHORITY"]
["OH880","NEW AVENUES TO INDEPENDENCE"]
["OH882","EMERALD DEVELOPMENT & ECONOMIC NETWORK, INC."]
["OK002","Housing Authority of the City of Oklahoma City"]
["OK003","Housing Authority of the City of Comanche"]
["OK004","Housing Authority of the City of Idabel"]
["OK005","Housing Authority of the City of Lawton"]
["OK006","Housing Authority of the City of Broken Bow"]
["OK007","Housing Authority of the City of Heavener"]
["OK008","Housing Authority of the City of Anadarko"]
["OK010","Housing Authority of the City of Drumright"]
["OK011","Housing Authority of the Town of Prague"]
["OK012","Housing Authority of the City of Picher"]
["OK013","Housing Authority of the City of Stigler"]
["OK015","Housing Authority of the City of Elk City"]
["OK016","Housing Authority of the Town of Temple"]
["OK017","Housing Authority of the City of Walters"]
["OK018","Housing Authority of the City of Snyder"]
["OK020","Housing Authority of the City of Coalgate"]
["OK021","Housing Authority of the City of Grandfield"]
["OK022","Housing Authority of the City of Oilton"]
["OK023","Housing Authority of the City of Watonga"]
["OK024","Housing Authority of the City of Ada"]
["OK025","Housing Authority of the Town of Antlers"]
["OK026","Housing Authority of the Town of Cache"]
["OK027","Housing Authority of the City of Miami,oklaho"]
["OK028","Housing Authority of the Town of Weleetka"]
["OK029","Housing Authority of the City of Wilburton"]
["OK030","Housing Authority of the City of Madill"]
["OK031","Housing Authority of the City of Wetumka"]
["OK032","Housing Authority of the City of Seminole"]
["OK033","Housing Authority of the City of Bristow"]
["OK034","Housing Authority of the Town of Apache"]
["OK035","Housing Authority of the Town of Cement"]
["OK036","Housing Authority of the Town of Cyril"]
["OK037","Housing Authority of the Town of Sterling"]
["OK039","Housing Authority of the Town of Mangum"]
["OK040","Housing Authority of the City of Sayre"]
["OK041","Housing Authority of the Town of Ringling"]
["OK042","Housing Authority of the Town of Roosevelt"]
["OK044","Housing Authority of the City of Hugo"]
["OK045","CHEROKEE NATION HSG AUTH"]
["OK046","Housing Authority of the Town of Hydro"]
["OK048","Housing Authority of the City of Holdenville"]
["OK050","Housing Authority of the City of Stroud"]
["OK052","Housing Authority of the City of Boley"]
["OK053","Housing Authority of the Town of Indiahoma"]
["OK055","Housing Authority of the City of Guthrie"]
["OK056","Housing Authority of the City of Newkirk"]
["OK057","Housing Authority of the City of Geary"]
["OK060","Housing Authority of the City of Pawnee"]
["OK061","Housing Authority of the Town of Valliant"]
["OK062","Housing Authority of the City of McAlester"]
["OK063","Housing Authority of the City of Commerce"]
["OK064","Housing Authority of the Town of Seiling"]
["OK065","Housing Authority of the City of Wynnewood"]
["OK066","Housing Authority of the Town of Tishomingo"]
["OK067","Housing Authority of the City of Stilwell"]
["OK068","Housing Authority of the City of Haileyville"]
["OK069","Housing Authority of the Town of Clayton"]
["OK070","Housing Authority of the Town of Terral"]
["OK071","Housing Authority of the Town of Tuttle"]
["OK072","Housing Authority of the City of Hartshorne"]
["OK073","Housing Authority of the City of Tulsa"]
["OK075","Housing Authority of the City of Beggs"]
["OK076","Housing Authority of the City of Kingston"]
["OK078","Housing Authority of the City of Krebs"]
["OK079","Housing Authority of the City of Waurika"]
["OK083","Housing Authority of the City of Maud"]
["OK084","Housing Authority of the City of Minco"]
["OK085","Housing Authority of the Town of Ryan"]
["OK086","Housing Authority of the Town of Stratford"]
["OK087","Housing Authority of the Town of Wister"]
["OK088","Housing Authority of the Town of Talihina"]
["OK089","Housing Authority of the City of Hobart"]
["OK092","Housing Authority of the Town of Granite"]
["OK095","Housing Authority of the City of Shawnee"]
["OK096","Housing Authority of the City of Wewoka"]
["OK097","Housing Authority of the Town of Cheyenne"]
["OK099","Housing Authority of the City of Muskogee"]
["OK101","Housing Authority of the City of Boswell"]
["OK103","Housing Authority of the City of Waynoka"]
["OK105","Housing Authority of the City of Konawa"]
["OK106","Housing Authority of the City of Langston"]
["OK108","Housing Authority of the Town of Mountain Park"]
["OK111","Housing Authority of the City of Ponca City"]
["OK113","Housing Authority of the Town of Fort Cobb"]
["OK116","Housing Authority of the Town of Tipton"]
["OK118","Housing Authority of the Town of Fort Gibson"]
["OK119","Housing Authority of the City of Afton"]
["OK120","Housing Authority of the City of Yale"]
["OK121","Housing Authority of the City of Keota"]
["OK123","Housing Authority of Osage County"]
["OK124","Housing Authority of the City of Atoka"]
["OK131","Housing Authority of the Kiamichi Electric Coop"]
["OK132","Housing Authority of the Town of Cushing"]
["OK134","Housing Authority of the Caddo Electric Cooperativ"]
["OK136","Housing Authority of the Cookson Hills Electric Co"]
["OK137","Housing Authority of the Choctaw Electric Cooperat"]
["OK139","Housing Authority of the City of Norman"]
["OK142","Housing Authority of the City of Henryetta"]
["OK146","Housing Authority of the City of Stillwater"]
["OK147","Housing Authority of the Town of Lone Wolf"]
["OK148","Housing Authority of the City of Tecumseh"]
["OK149","Housing Authority of the City of Pauls Valley"]
["OK150","Housing Authority of the City of Del City"]
["OK154","Housing Authority of the Town of Mountain View"]
["OK901","OKLAHOMA HOUSING FINANCE AGENCY"]
["OR001","Housing Authority of Clackamas County"]
["OR002","Housing Authority of Portland"]
["OR003","Housing Authority of Douglas County"]
["OR005","Housing Authority of Lincoln County"]
["OR006","Housing Authority & Comm Svcs of Lane Co"]
["OR007","Housing Authority of the County of Umatilla"]
["OR008","Housing And Urban Renewal Agency of Polk County"]
["OR009","North Bend Housing Authority"]
["OR011","Housing Authority of the City of Salem"]
["OR014","Marion County Housing Authority"]
["OR015","HOUSING AUTHORITY OF JACKSON COUNTY"]
["OR016","HOUSING AUTHORITY OF YAMHILL COUNTY"]
["OR017","Klamath Housing Authority"]
["OR019","LINN-BENTON HOUSING AUTHORITY"]
["OR020","Coos-Curry Housing Authority"]
["OR022","Housing Authority of Washington County"]
["OR025","MID COLUMBIA ECONOMIC DEVELOPMENT DISTRICT"]
["OR026","MID COLUMBIA HOUSING AUTHORITY"]
["OR027","Housing Authority of Malheur County"]
["OR028","NORTHWEST OREGON HOUSING AGENCY"]
["OR031","JOSEPHINE HOUSING COMMUNITY DEVELOPMENT COUNCIL"]
["OR032","Northeast Oregon Housing Authority"]
["OR034","CENTRAL OREGON REGIONAL HOUSING AUTHORITY"]
["OR035","SILETZ INDIAN HOUSING AUTHORITY"]
["PA001","Housing Authority of the City of Pittsburgh"]
["PA002","Philadelphia Housing Authority"]
["PA003","Scranton Housing Authority"]
["PA004","Allentown Housing Authority"]
["PA005","Housing Authority of the City of McKeesport"]
["PA006","Allegheny County Housing Authority"]
["PA007","Chester Housing Authority"]
["PA008","Harrisburg Housing Authority"]
["PA009","Reading Housing Authority"]
["PA010","Housing Authority of the County of Butler"]
["PA011","Bethlehem Housing Authority"]
["PA012","Montgomery County Housing Authority"]
["PA013","Housing Authority of the City of Erie"]
["PA014","Housing Authority of the County of Beaver"]
["PA015","Fayette County Housing Authority"]
["PA016","Schuylkill County Housing Authority"]
["PA017","Washington County Housing Authority"]
["PA018","Westmoreland County Hsg Authority"]
["PA019","Johnstown Housing Authority"]
["PA020","Mercer County Housing Authority"]
["PA021","Housing Authority of the County of Lycoming"]
["PA022","Housing Authority of the City of York"]
["PA023","Housing Authority County of Delaware"]
["PA024","Easton Housing Authority"]
["PA025","Connellsville Housing Authority"]
["PA026","Housing Auth Co of Lawrence"]
["PA027","Housing Authority of the County of Huntingdon"]
["PA028","The Housing Authority of Monroe County"]
["PA029","Somerset County Housing Authority"]
["PA030","The Housing Auth of the City of Carbondale"]
["PA031","Altoona Housing Authority"]
["PA032","The Housing Authority of Montour County"]
["PA033","Housing Authority of the City of Meadville"]
["PA034","Housing Authority of the County of Franklin"]
["PA035","Housing Authority of the County of Dauphin"]
["PA036","The Housing Auth of the City of Lancaster"]
["PA037","Housing Authority of the City of Pottsville"]
["PA038","Lackawanna County Housing Authority"]
["PA039","Housing Authority of the County of Armstrong"]
["PA040","The Housing Authority of Clinton County"]
["PA041","The Housing Auth of the County of Mifflin"]
["PA042","Housing Authority of the City of Pittston"]
["PA043","The Housing Auth of the City of Nanticoke"]
["PA044","The Housing Authority of the City of Hazleton"]
["PA045","Housing Authority of the County of Greene"]
["PA046","Housing Authority of the County of Chester"]
["PA047","Wilkes Barre Housing Authority"]
["PA048","Housing Authority of Indiana County"]
["PA049","Bradford City Housing Authority"]
["PA050","Tioga County Housing Authority"]
["PA051","Bucks County Housing Authority"]
["PA052","Housing Authority of the County of Lebanon"]
["PA053","Sunbury Housing Authority"]
["PA054","Housing Authority of the County of Elk"]
["PA055","Shamokin Housing Authority"]
["PA056","Housing Authority of the City of Franklin"]
["PA057","Housing Authority of the County of Luzerne"]
["PA058","Titusville Housing Authority"]
["PA059","Housing Authority of the City of Oil City"]
["PA060","Housing Auth of the County of Northumberland"]
["PA061","Housing Authority of the County of Jefferson"]
["PA062","WILLIAMSPORT HOUSING AUTHORITY"]
["PA063","Housing Authority of the City of Dubois"]
["PA064","Bradford County Housing Authority"]
["PA065","Clearfield County Housing Authority"]
["PA066","Housing Authority of the City of Corry"]
["PA067","Carbon County Housing Authority"]
["PA068","SULLIVAN COUNTY HOUSING AUTHORITY"]
["PA069","Housing Authority of the County of Blair"]
["PA071","Housing Authority of the County of Berks"]
["PA072","FULTON COUNTY HOUSING AUTHORITY"]
["PA073","The Wyoming Co Housing & Redevelopment Auth"]
["PA074","Susquehanna Co Housing/Redevelopment Auth"]
["PA075","Housing Authority of the County of Cumberland"]
["PA076","Northampton County Housing Authority"]
["PA077","COUNTY OF POTTER HOUSING AUTHORITY"]
["PA078","WAYNE COUNTY HOUSING AUTHORITY"]
["PA079","Housing Authority of the County of Warren"]
["PA080","Housing Authority of the County of McKean"]
["PA081","Lehigh County Housing Authority"]
["PA082","HOUSING AUTHORITY OF UNION COUNTY"]
["PA083","Columbia County Housing Authority"]
["PA085","Housing Authority of the County of Bedford"]
["PA086","Housing Authority of the County of Clarion"]
["PA087","Housing Authority of the County of Erie"]
["PA088","Centre County Housing Authority"]
["PA089","Housing Authority of the County of Venango"]
["PA090","REDEVELOPMENT AUTHORITY OF THE COUNTY OF LANCASTER"]
["PA091","ADAMS COUNTY HOUSING AUTHORITY"]
["PA092","Snyder County Housing Authority"]
["PA888","RESOURCES FOR HUMAN DEVELOPMENT"]
["PA889","1260 HOUSING DEVELOPMENT CORP."]
["RI001","Housing Authority Providence"]
["RI002","Housing Authority of the City of Pawtucket"]
["RI003","Woonsocket Housing Authority"]
["RI004","Central Falls Housing Authority"]
["RI005","The Housing Authority of the City of Newport"]
["RI006","Cranston Housing Authority"]
["RI007","East Providence Housing Authority"]
["RI008","Westerly Housing Authority"]
["RI009","Johnston Housing Authority"]
["RI010","Cumberland Housing Authority"]
["RI011","Warwick Housing Authority"]
["RI012","South Kingstown Housing Authority"]
["RI013","Portsmouth Housing Authority"]
["RI014","Burrillville Housing Authority"]
["RI015","West Warwick Housing Authority"]
["RI016","Coventry Housing Authority"]
["RI017","North Providence Housing Authority"]
["RI018","Lincoln Housing Authority"]
["RI019","Bristol Housing Authority"]
["RI020","Smithfield Housing Authority"]
["RI021","Jamestown Housing Authority"]
["RI022","Warren Housing Authority"]
["RI024","East Greenwich Housing Authority"]
["RI026","Narragansett Housing Authority"]
["RI027","Tiverton Housing Authority"]
["RI028","THE KENT CENTER FOR HUMAN ORGANIZATIONAL DEVEL,INC"]
["RI029","GATEWAY HEALTHCARE INC."]
["RI901","RHODE ISLAND HSG MORT FIN CORP"]
["RQ005","Puerto Rico Public Housing Administration"]
["RQ006","MUNICIPALITY OF SAN JUAN"]
["RQ007","MUNICIPALITY OF CAGUAS"]
["RQ008","MUNICIPALITY OF PONCE"]
["RQ009","MUNICIPALITY OF MAYAGUEZ"]
["RQ010","MUNICIPALITY OF MOCA"]
["RQ011","MUNICIPALITY OF BAYAMON"]
["RQ012","MUNICIPALITY OF AGUADILLA"]
["RQ013","MUNICIPALITY OF TRUJILLO ALTO"]
["RQ014","MUNICIPALITY OF CAROLINA"]
["RQ015","MUNICIPALITY OF DORADO"]
["RQ016","MUNICIPALITY OF GUAYNABO"]
["RQ017","MUNICIPALITY OF GUAYAMA"]
["RQ018","MUNICIPALITY OF CAYEY"]
["RQ019","MUNICIPALITY OF PENUELAS"]
["RQ020","MUNICIPALITY OF ARECIBO"]
["RQ021","MUN OF GUAYANILLA"]
["RQ022","MUNICIPALITY OF TOA BAJA"]
["RQ023","MUNICIPALITY OF COROZAL"]
["RQ024","MUNICIPALITY OF MOROVIS"]
["RQ025","MUNICIPALITY HUMACAO"]
["RQ026","MUNICIPALITY OF SAN SEBASTIAN"]
["RQ027","MUNICIPALITY OF LOIZA"]
["RQ028","MUNICIPALITY  OF MANATI"]
["RQ029","MUNICIPALITY OF MARICAO"]
["RQ030","MUNICIPALITY OF SAN GERMAN"]
["RQ031","MUNICIPALITY OF QUEBRADILLAS"]
["RQ032","MUNICIPALITY OF VEGA BAJA"]
["RQ033","MUNICIPALITY OF UTUADO"]
["RQ034","MUNICIPALITY OF COMERIO"]
["RQ035","MUNICIPALITY OF HORMIGUEROS"]
["RQ036","MUNICIPALITY OF FAJARDO"]
["RQ037","MUNICIPALITY OF SAN LORENZO"]
["RQ038","MUNICIPALITY OF JUANA DIAZ"]
["RQ039","MUNICIPALITY OF HATILLO"]
["RQ040","MUNICIPALITY OF CAMUY"]
["RQ041","MUNICIPALITY OF GURABO"]
["RQ042","MUNICIPALITY OF COAMO"]
["RQ043","ANASCO HOUSING AUTHORITY"]
["RQ044","MUNICIPALITY OF GUANICA"]
["RQ045","MUNICIPALITY OF YABUCOA"]
["RQ046","MUNICIPALITY OF LAS MARIAS"]
["RQ047","MUNICIPALITY OF NAGUABO"]
["RQ048","MUNICIPALITY OF SABANA GRANDE"]
["RQ049","MUNICIPALITY OF VILLALBA"]
["RQ050","MUNICIPALITY OF RIO GRANDE"]
["RQ052","MUNICIPALITY OF CIALES"]
["RQ053","MUNICIPALITY OF TOA ALTA"]
["RQ054","MUNICIPALITY  OF  BARCELONETA"]
["RQ055","MUNICIPALITY OF ADJUNTAS"]
["RQ056","MUNICIPALLITY OF VEGA ALTA"]
["RQ057","MUNICIPALITY OF PATILLAS"]
["RQ058","MUNICIPALITY OF SANTA ISABEL"]
["RQ059","MUNICIPALITY OF AIBONITO"]
["RQ060","Municipality of Barranquitas"]
["RQ061","MUNICIPALITY OF CABO ROJO"]
["RQ062","MUNICIPALITY OF CIDRA"]
["RQ063","MUNICIPALITY OF LAS PIEDRAS"]
["RQ064","MUNICIPALITY OF NARANJITO"]
["RQ065","MUNICIPALITY OF LARES"]
["RQ066","MUNICIPALITY OF ISABELA"]
["RQ067","MUNICIPALITY OF RINCON"]
["RQ068","MUNICIPALITY OF ARROYO"]
["RQ069","MUNICIPALITY OF SALINAS"]
["RQ070","MUNICIPALITY OF CEIBA"]
["RQ071","MUNICIPALITY OF LAJAS"]
["RQ072","MUNICIPALITY OF FLORIDA"]
["RQ073","MUNICIPALITY OF AGUADA"]
["RQ074"," MUNICIPALITY OF VIEQUES"]
["RQ075","MUNICIPALITY OF CANOVANAS"]
["RQ076","MUNICIPALITY OF JAYUYA"]
["RQ077","MUNICIPALITY OF JUNCOS"]
["RQ080","MUNICIPALITY OF OROCOVIS"]
["RQ081","MUNICIPALITY LUQUILLO"]
["RQ082","MUNICIPALITY OF AGUAS BUENAS"]
["RQ083","MUNICIPALITY OF YAUCO"]
["RQ901","PUERTO RICO DEPT OF HOUSING"]
["RQ911","PUERTO RICO HOUSING FINANCE CORP"]
["SC001","Housing Authority of the City of Charleston"]
["SC002","Housing Authority of the City of Columbia"]
["SC003","Housing Authority of Spartanburg"]
["SC004","Housing Authority of Greenville"]
["SC005","Housing Authority of Darlington"]
["SC007","Housing Authority of Aiken"]
["SC008","SC Regional Housing Authority No 1"]
["SC011","Housing Authority of Laurens"]
["SC012","Housing Authority of Abbeville"]
["SC015","Housing Authority of Bennettsville"]
["SC016","Housing Authority of Greer"]
["SC017","Housing Authority of Gaffney"]
["SC018","Housing Authority of Lake City"]
["SC019","Housing Authority of Union"]
["SC020","Housing Authority of Chester"]
["SC021","Housing Authority of Marion"]
["SC022","Housing Authority of Rock Hill"]
["SC023","Housing Authority of Sumter"]
["SC024","SC Regional Housing Authority No 3"]
["SC025","Housing Authority of Conway"]
["SC026","Housing Authority of Beaufort"]
["SC027","Housing Authority of Florence"]
["SC028","Housing Authority of Georgetown"]
["SC029","Housing Authority of Hartsville"]
["SC030","Housing Authority of Greenwood"]
["SC031","Housing Authority of Cheraw"]
["SC032","Housing Authority of Lancaster"]
["SC033","Housing Authority of Mullins"]
["SC034","HOUSING AUTHORITY OF MYRTLE BEACH"]
["SC035","Housing Authority of Newberry"]
["SC036","Housing Authority of Fort Mill"]
["SC037","Housing Authority of Anderson"]
["SC039","Housing Authority of Kingstree"]
["SC040","Housing Authority of Woodruff"]
["SC046","Housing Authority of York"]
["SC048","Housing Authority of McColl"]
["SC053","Housing Authority of Easley"]
["SC056","Charleston Co Hsg & Redev Auth"]
["SC057","Housing Authority of N Charleston"]
["SC059","Marlboro Co Hsg & Redev Authority"]
["SC060","Housing Authority of Atlantic Beach"]
["SC061","Housing Authority of the City of Cayce"]
["SC911","S C STATE HOUSING FINANCE & DEV"]
["SD007","Burke Housing And Redevelopment Commission"]
["SD008","Kennebec Housing & Redevelopment Commission"]
["SD009","De Smet Housing & Redevelopment Commission"]
["SD010","City of Lennox Housing And Redevelopment Commission"]
["SD011","Madison Housing And Redevelopment Commission"]
["SD013","Howard Housing And Redevelopment Commission"]
["SD014","City of Mitchell Housing And Redevolpment Commission"]
["SD016","Sioux Falls Housing And Redevelopment Commission"]
["SD017","Parker Housing & Redevelopment Commission"]
["SD018","Lake Andes Housing And Redevelopment Commission"]
["SD019","Hot Springs Housing And Redevelopment Commission"]
["SD020","Sisseton Housing & Redevelopment Commission"]
["SD021","Wessington Springs Housing And Redevelopment Commission"]
["SD022","Martin Housing & Redevelopment Commission"]
["SD023","Murdo Housing And Redevelopment Commission"]
["SD024","Lake Norden Housing And Redevelopment Commission"]
["SD025","Lemmon Housing & Redevelopment Commission"]
["SD026","REDFIELD HOUSING AND REDEVELOPMENT COMMISSION"]
["SD028","CLARK HOUSING & REDEVELOPMENT COMMISSION"]
["SD031","Volga Housing And Redevelopment Commission"]
["SD034","Aberdeen Housing & Redevelopment Commission"]
["SD035","Pierre Housing & Redevelopment Commision"]
["SD036","HURON HOUSING AUTHORITY"]
["SD037","MILBANK HOUSING & REDEVELOPMENT COMMISSION"]
["SD038","Miller Housing & Redevelopment Commision"]
["SD039","Canton Housing & Redevopment Commission"]
["SD040","Webster Housing And Redevelopment Commision"]
["SD043","Watertown Housing And Redevelopment Commission"]
["SD045","Pennington County Housing And Redevelopment Commission"]
["SD047","Meade County Housing And Redevelopment Commission"]
["SD048","LAWRENCE COUNTY HOUSING  AUTHORITY"]
["SD055","VERMILLION HOUSING & REDEVELOPMENT COMMISSION"]
["SD056","BROOKINGS HOUSING & REDEVELOPMENT COMMISSION"]
["SD057","MOBRIDGE HOUSING & REDEVELOPMENT COMMISSION"]
["SD058","YANKTON HSG & REDEV COMMISSION"]
["SD059","BUTTE COUNTY HOUSING & REDEVELOPMENT COMMISSION"]
["SD901","Unknown - No Activity"]
["TN001","Memphis Housing Authority"]
["TN002","Johnson City Housing Authority"]
["TN003","Knoxville's Community Development Corp."]
["TN004","Chattanooga Housing Authority"]
["TN005","Metropolitan Development & Housing Agency"]
["TN006","Kingsport Housing And Redevelopment Authority"]
["TN007","Jackson Housing Authority"]
["TN008","Paris Housing Authority"]
["TN009","Union City Housing Authority"]
["TN010","The Clarksville Housing Authority"]
["TN011","Pulaski Housing Authority"]
["TN012","Lafollette Housing Authority"]
["TN013","Brownsville Housing Authority"]
["TN014","Fayetteville Housing Authority"]
["TN015","Athens Housing Authority"]
["TN016","Sweetwater Housing Authority"]
["TN017","Lebanon Housing Authority"]
["TN018","Rockwood Housing Authority"]
["TN019","Jefferson City Housing Authority"]
["TN020","Murfreesboro Housing Authority"]
["TN021","Dyersburg Housing Authority"]
["TN022","Clinton Housing Authority"]
["TN024","Tullahoma Housing Authority"]
["TN025","Trenton Housing Authority"]
["TN026","Etowah Housing Authority"]
["TN027","Humboldt Housing Authority"]
["TN028","Manchester Housing Authority"]
["TN029","Gallatin Housing Authority"]
["TN030","Waverly Housing Authority"]
["TN031","Milan Housing Authority"]
["TN032","Lewisburg Housing Authority"]
["TN033","Cookeville Housing Authority"]
["TN034","Jellico Housing Authority"]
["TN035","Franklin Housing Authority"]
["TN036","Springfield Housing Authority"]
["TN037","South Pittsburg Housing Authority"]
["TN038","Morristown Housing Authority"]
["TN039","Shelbyville Housing Authority"]
["TN040","Lexington Housing Authority"]
["TN041","Covington Housing Authority"]
["TN042","Crossville Housing Authority"]
["TN043","Rogersville Housing Authority"]
["TN044","Sparta Housing Authority"]
["TN045","Millington Housing Authority"]
["TN046","Columbia Housing And Redevelopment Corporatio"]
["TN047","Mt. Pleasant Housing Authority"]
["TN048","Lawrenceburg Housing Authority"]
["TN049","Savannah Housing Authority"]
["TN050","Bolivar Housing Authority"]
["TN051","Parsons-Decaturville Housing Authority"]
["TN052","Huntingdon Housing Authority"]
["TN053","McMinnville Housing Authority"]
["TN054","Cleveland Housing Authority"]
["TN055","Harriman Housing Authority"]
["TN056","Livingston Housing Authority"]
["TN057","Ripley Housing Authority"]
["TN058","Greeneville Housing Authority"]
["TN059","Hohenwald Housing Authority"]
["TN060","Newport Housing Authority"]
["TN061","Lenoir City Housing Authority"]
["TN062","Dayton Housing Authority"]
["TN063","Sevierville Housing Authority"]
["TN064","Loudon Housing Authority"]
["TN065","Maryville Housing Authority"]
["TN066","Bristol Housing"]
["TN068","Smithville Housing Authority"]
["TN069","Martin Housing Authority"]
["TN071","Hartsville Housing Authority"]
["TN072","South Carthage Housing Authority"]
["TN073","Portland Housing Authority"]
["TN074","Erin Housing Authority"]
["TN075","Newbern Housing Authority"]
["TN076","Elizabethton Housing And Development Agency"]
["TN077","Woodbury Housing Authority"]
["TN078","Oliver Springs Housing Authority"]
["TN079","Dickson Housing Authority"]
["TN081","Erwin Housing Authority"]
["TN082","McKenzie Housing Authority"]
["TN084","Gallaway Housing Authority"]
["TN088","Oak Ridge Housing Authority"]
["TN090","Lafayette Housing Authority"]
["TN092","Grundy Housing Authority"]
["TN095","Shelby County Housing Authority"]
["TN111","HA KNOX COUNTY"]
["TN113","EAST TN HUMAN RESOURCE AGENCY"]
["TN117","SE TN HUMAN RESOURCE AGENCY"]
["TN125","Franklin County Housing Authority"]
["TN901","TENNESSEE HOUSING DEV AGENCY"]
["TN903","TENNESSEE HOUSING DEV AGENCY"]
["TQ901","MARIANA ISLANDS HOUSING CORP."]
["TX001","Austin Housing Authority"]
["TX003","Housing Authority of the City of El Paso, Tx"]
["TX004","Housing Authority of Fort Worth"]
["TX005","Houston Housing Authority"]
["TX006","San Antonio Housing Authority"]
["TX007","Brownsville Housing Authority"]
["TX008","Corpus Christi Housing Authority"]
["TX009","Housing Authority of the City of Dallas, Texa"]
["TX010","Housing Authority of the City of Waco"]
["TX011","Housing Authority of the City of Laredo"]
["TX012","Housing Authority of the City of Baytown"]
["TX014","Housing Authority of Texarkana"]
["TX015","Housing Authority of Waxahachie"]
["TX016","Del Rio Housing Authority"]
["TX017","Housing Authority of the City of Galveston"]
["TX018","Housing Authority of Lubbock"]
["TX019","Eagle Pass Housing Authority"]
["TX020","Housing Authority of the City of Bryan"]
["TX021","Housing Authority of the City of Brownwood"]
["TX022","Housing Authority of Wichita Falls"]
["TX023","Housing Authority of the City of Beaumont"]
["TX024","Housing Authority of Commerce"]
["TX025","San Benito Housing Authority"]
["TX026","Housing Authority of Denison"]
["TX027","Housing Authority of McKinney"]
["TX028","McAllen Housing Authority"]
["TX029","Mercedes Housing Authority"]
["TX030","Housing Authority of Temple"]
["TX031","Taylor Housing Authority"]
["TX032","Housing Authority of the City of Texas City"]
["TX033","Housing Authority of Corsicana"]
["TX034","Housing Authority of Port Arthur"]
["TX035","Housing Authority of the City of Bay City"]
["TX036","Housing Authority of Borger"]
["TX037","Housing Authority City of Orange"]
["TX038","Housing Authority of Bonham"]
["TX039","Housing Authority of Breckenridge"]
["TX041","Housing Authority of Olney"]
["TX042","Housing Authority of Cisco"]
["TX043","Housing Authority of Ranger"]
["TX044","Housing Authority of Jefferson"]
["TX045","Housing Authority of Canyon"]
["TX046","Mission Housing Authority"]
["TX047","Housing Authority of Dublin"]
["TX048","Housing Authority of Paris"]
["TX049","Housing Authority of Pittsburg"]
["TX050","Housing Authority of Henderson"]
["TX051","Weslaco Housing Authority"]
["TX052","Housing Authority of Seymour"]
["TX053","Housing Authority of Haskell"]
["TX054","New Boston Property Management"]
["TX056","Housing Authority of Colorado City"]
["TX058","Housing Authority of the City of Gladewater"]
["TX059","Housing Authority of Center"]
["TX060","Housing Authority of the City of Mineola"]
["TX061","Housing Authority of Sweetwater"]
["TX062","Edinburg Housing Authority"]
["TX063","Housing Authority of the City of Hearne"]
["TX064","Alamo Housing Authority"]
["TX065","Harlingen Housing Authority"]
["TX066","Electra Housing Authority"]
["TX067","Housing Authority of Bridgeport"]
["TX068","Housing Authority of Overton"]
["TX069","Housing Authority of Deleon"]
["TX070","Housing Authority of Ennis"]
["TX071","Housing Authority of Gilmer"]
["TX072","GAINESVILLE HOUSING AUTHORITY"]
["TX073","Pharr Housing Authority"]
["TX074","Luling Housing Authority"]
["TX075","Housing Authority of Quanah"]
["TX076","Housing Authority of Cooper"]
["TX077","Housing Authority of Ballinger"]
["TX078","Housing Authority of Sherman"]
["TX079","Housing Authority of the City of Killeen"]
["TX080","Housing Authority of Anson"]
["TX081","Gonzales Housing Authority"]
["TX082","Housing Authority of Henrietta"]
["TX083","Housing Authority of Hamilton"]
["TX084","Housing Authority of Paducah"]
["TX085","Victoria Housing Authority"]
["TX086","Housing Authority of Wortham"]
["TX087","San Marcos Housing Authority"]
["TX088","Housing Authority of Ector"]
["TX089","Housing Authority of Bells"]
["TX090","Housing Authority of Hico"]
["TX091","Housing Authority of Pottsboro"]
["TX092","Housing Authority of Ladonia"]
["TX093","Housing Authority of Honey Grove"]
["TX094","Housing Authority of Archer City"]
["TX095","Housing Authority of Rockwall"]
["TX096","Edna Housing Authority"]
["TX097","Housing Authority of Savoy"]
["TX099","Housing Authority of Bryson"]
["TX100","Housing Authority of City of Leonard"]
["TX101","Housing Authority of Avinger"]
["TX102","Housing Authority of McGregor"]
["TX103","Smiley Housing Authority"]
["TX104","Housing Authority of Wolfe City"]
["TX105","Crystal City Housing Authority"]
["TX106","Housing Authority of Daingerfield"]
["TX107","Housing Authority of Whitewright"]
["TX108","Housing Authority of Howe"]
["TX109","Waelder Housing Authority"]
["TX111","Housing Authority of Burkburnett"]
["TX112","Hughes Springs"]
["TX113","HOUSING AUTHORITY OF ORANGE COUNTY"]
["TX114","Kingsville Housing Authority"]
["TX115","Housing Authority of Tom Bean"]
["TX116","Housing Authority of City of Moody"]
["TX117","Housing Authority of Deport"]
["TX118","Housing Authority of the City of Caldwell"]
["TX120","Housing Authority of the City of Munday"]
["TX121","Housing Authority of Naples"]
["TX122","Housing Authority of Omaha"]
["TX124","Housing Authority of the City of Knox City"]
["TX126","Housing Authority of Celeste"]
["TX127","Housing Authority of Trenton"]
["TX128","Housing Authority of Plano"]
["TX132","Housing Authority of Van Alstyne"]
["TX133","Housing Authority of Princeton"]
["TX134","Housing Authority of Cameron"]
["TX135","Housing Authority of Linden"]
["TX137","Housing Authority of De Kalb"]
["TX138","Housing Authority of Bogata"]
["TX139","Housing Authority of Gunter"]
["TX144","Housing Authority of the City of Frisco"]
["TX145","Housing Authority of Talco"]
["TX147","Kenedy Housing Authority"]
["TX150","Housing Authority of the City of Calvert"]
["TX151","Housing Authority of Wellington"]
["TX152","Beeville Housing Authority"]
["TX153","Housing Authority of Haltom City"]
["TX155","Housing Authority of Decatur"]
["TX156","Housing Authority of Spearman"]
["TX157","Housing Authority of McLean"]
["TX158","Housing Authority of Merkel"]
["TX160","Housing Authority of Wink"]
["TX162","Housing Authority of Clarendon"]
["TX163","Robstown Housing Authority"]
["TX164","Mathis Housing Authority"]
["TX165","Runge Housing Authority"]
["TX166","Tahoka Housing Authority"]
["TX167","Housing Authority of Stamford"]
["TX168","Housing Authority of the City of Dayton"]
["TX169","Housing Authority of Comanche"]
["TX170","Housing Authority of Rising Star"]
["TX171","Housing Authority of Levelland"]
["TX172","Housing Authority of Cross Plains"]
["TX173","Port Isabel Housing Authority"]
["TX174","Sinton Housing Authority"]
["TX175","Nixon Housing Authority"]
["TX176","Three Rivers Housing Authority"]
["TX177","Donna Housing Authority"]
["TX178","Alice Housing Authority"]
["TX179","Housing Authority of Post"]
["TX180","Housing Authority of Roby"]
["TX182","Housing Authority of Rotan"]
["TX183","Housing Authority of Tulia"]
["TX184","Housing Authority of Crosbyton"]
["TX186","Housing Authority of the City of Nocona"]
["TX187","Housing Authority of Pineland"]
["TX188","Housing Authority of Maud"]
["TX189","Housing Authority of Floydada"]
["TX190","Housing Authority of Stanton"]
["TX191","Taft Housing Authority"]
["TX192","Housing Authority of Gorman"]
["TX193","Floresville Housing Authority"]
["TX194","Housing Authority of Childress"]
["TX195","Housing Authority of Hamlin"]
["TX196","Housing Authority of Olton"]
["TX197","Housing Authority of Baird"]
["TX198","Housing Authority of Cleveland"]
["TX199","Housing Authority of Tioga"]
["TX200","Housing Authority of Aspermont"]
["TX201","Falfurrias Housing Authority"]
["TX202","Edcouch Housing Authority"]
["TX204","Housing Authority of Santa Anna"]
["TX206","Los Fresnos Housing Authority"]
["TX207","Housing Authority of the City of Clarksville"]
["TX208","Pleasanton Housing Authority"]
["TX209","Housing Authority of Malakoff"]
["TX210","Devine Housing Authority"]
["TX211","Lockhart Housing Authority"]
["TX212","Housing Authority of Mabank"]
["TX213","Housing Authority of Belton"]
["TX214","Housing Authority of Granbury"]
["TX215","Housing Authority of Spur"]
["TX216","Housing Authority of Newcastle"]
["TX217","Housing Authority of Wills Point"]
["TX218","Housing Authority of Whitney"]
["TX219","Housing Authority of Groesbeck"]
["TX220","Housing Authority of Windom"]
["TX221","Housing Authority of Farmersville"]
["TX222","Housing Authority of Crockett"]
["TX223","Housing Authority of Newton"]
["TX224","Elsa Housing Authority"]
["TX225","Housing Authority of the City of Woodville"]
["TX226","Housing Authority of Timpson"]
["TX227","Housing Authority of Hemphill"]
["TX228","Housing Authority of Coolidge"]
["TX229","Housing Authority of Diboll"]
["TX230","Housing Authority of Corrigan"]
["TX231","Housing Authority of the City of Groveton"]
["TX232","Housing Authority of Beckville"]
["TX233","Housing Authority of Garrison"]
["TX235","Housing Authority of Bangs"]
["TX236","Poteet Housing Authority"]
["TX237","Housing Authority of Trinidad"]
["TX238","Housing Authority of Blooming Grove"]
["TX239","Brackettville Housing Authority"]
["TX240","Housing Authority of Vernon"]
["TX241","Housing Authority of Alba"]
["TX242","Housing Authority of Edgewood"]
["TX243","Stockdale Housing Authority"]
["TX244","Housing Authority of Mount Pleasant"]
["TX245","Housing Authority of the City of Madisonville"]
["TX246","Housing Authority of Marlin"]
["TX247","Housing Authority of Royse City"]
["TX248","POTH HOUSING AUTHORITY"]
["TX249","Housing Authority of Dawson"]
["TX250","Housing Authority of Detroit"]
["TX251","Housing Authority of Brady"]
["TX252","Housing Authority of Lott"]
["TX253","Housing Authority of the City of Centerville"]
["TX255","Housing Authority of Rosebud"]
["TX256","Johnson City Housing Authority"]
["TX257","Housing Authority of Slaton"]
["TX258","Housing Authority of Loraine"]
["TX259","Bastrop Housing Authority"]
["TX260","Housing Authority of Eden"]
["TX261","Housing Authority of Mason"]
["TX262","Housing Authority of Tenaha"]
["TX263","Marble Falls Housing Authority"]
["TX264","Georgetown Housing Authority"]
["TX265","Housing Authority of Rogers"]
["TX266","Smithville Housing Authority"]
["TX267","Housing Authority of Grandfalls"]
["TX269","Housing Authority of Goldthwaite"]
["TX270","Housing Authority of Robert Lee"]
["TX271","Housing Authority of City of Oglesby"]
["TX272","Housing Authority of Alto"]
["TX273","Housing Authority of Teague"]
["TX274","Housing Authority of Bartlett"]
["TX275","Housing Authority of Seagraves"]
["TX276","Housing Authority of Meridian"]
["TX277","Housing Authority of Hale Center"]
["TX278","Housing Authority of Bronte"]
["TX279","Housing Authority of Eldorado"]
["TX280","Karnes City Housing Authority"]
["TX281","Granger Housing Authority"]
["TX282","Housing Authority of Kirbyville"]
["TX283","Housing Authority of Gatesville"]
["TX284","Housing Authority City of Alpine"]
["TX286","Housing Authority of Memphis"]
["TX287","Housing Authority of Como"]
["TX288","Housing Authority of Winnsboro"]
["TX289","Housing Authority of Cumby"]
["TX290","Housing Authority of Strawn"]
["TX291","Housing Authority of Grapevine"]
["TX293","Housing Authority of Rankin"]
["TX294","LA FERIA"]
["TX295","Housing Authority of Grapeland"]
["TX296","Schulenburg Housing Authority"]
["TX297","Flatonia Housing Authority"]
["TX298","Housing Authority the City of Mineral Wells"]
["TX300","Carrizo Springs Housing Authority"]
["TX301","Housing Authority of Thorndale"]
["TX302","Gregory Housing Authority"]
["TX303","Seguin Housing Authority"]
["TX304","Housing Authority of the City of Bellville"]
["TX305","Housing Authority of Kerens"]
["TX306","Housing Authority of Junction"]
["TX307","Housing Authority of Caddo Mills"]
["TX308","Housing Authority of the City of Crowell"]
["TX309","Cuero Housing Authority"]
["TX310","Housing Authority of Avery"]
["TX311","Housing Authority of Whitesboro"]
["TX312","Yorktown Housing Authority"]
["TX313","Aransas Pass Housing Authority"]
["TX315","Housing Authority of Andrews"]
["TX316","Housing Authority of Balmorhea"]
["TX317","Ingleside Housing Authority"]
["TX318","Housing Authority of Marfa"]
["TX320","Housing Authority of Pecos"]
["TX321","Housing Authority of Coleman"]
["TX322","Round Rock Housing Authority"]
["TX323","Falls City Housing Authority"]
["TX325","Housing Authority of Throckmorton"]
["TX326","Yoakum Housing Authority"]
["TX327","Housing Authority of the City of Abilene"]
["TX328","Llano Housing Authority"]
["TX329","Housing Authority of the City of Winters"]
["TX330","Housing Authority of the City of Brenham"]
["TX332","Housing Authority of the City of Pearsall"]
["TX333","Housing Authority of Mart"]
["TX334","Housing Authority of the City of San Saba"]
["TX335","Cotulla Housing Authority"]
["TX336","Housing Authority of Grand Saline"]
["TX337","Housing Authority of Mount Vernon"]
["TX339","Housing Authority of Clifton"]
["TX340","Housing Authority of the City of Franklin"]
["TX341","Housing Authority of Tatum"]
["TX342","Housing Authority of Ferris"]
["TX343","New Braunfels Housing Authority"]
["TX344","Housing Authority of Van"]
["TX345","Housing Authority of Lometa"]
["TX347","Housing Authority of Grandview"]
["TX348","Housing Authority of Huntington"]
["TX349","WEATHERFORD HOUSING AUTHORITY"]
["TX350","Schertz Housing Authority"]
["TX351","Housing Authority of the City of Bremond"]
["TX352","Housing Authority of Livingston"]
["TX353","Housing Authority of Copperas Cove"]
["TX354","Mexia Housing Authority"]
["TX355","Housing Authority of the City of El Campo"]
["TX356","Housing Authority of Big Sandy"]
["TX357","Housing Authority of the City of Buffalo"]
["TX358","Burnet Housing Authority"]
["TX367","Kyle Housing Authority"]
["TX370","Housing Authority of Point"]
["TX372","RUSK HOUSING AUTHORITY"]
["TX376","Duval County Housing Authority"]
["TX377","Elgin Housing Authority"]
["TX378","Housing Authority of the City of Palacios"]
["TX379","Housing Authority of Midland"]
["TX380","Housing Authority of Rockdale"]
["TX381","La Grange Housing Authority"]
["TX383","Housing Authority of San Augustine"]
["TX387","Housing Authority of Kemp"]
["TX391","KERMIT HOUSING AUTHORITY"]
["TX392","DENTON HOUSING AUTHORITY"]
["TX395","Port Lavaca Housing Authority"]
["TX396","Starr County Housing Authority"]
["TX397","DILLEY HOUSING AUTHORITY"]
["TX405","Housing Authority of Hubbard"]
["TX406","Housing Authority of the City of Huntsville"]
["TX408","Housing Authority of the City of Monahans"]
["TX421","Uvalde Housing Authority"]
["TX424","Unknown - No Activity"]
["TX428","HALLETTSVILLE HOUSING AUTHORITY"]
["TX431","TARRANT COUNTY HOUSING ASSISTANCE PROGRAM"]
["TX432","HOUSING AUTHORITY OF EL PASO COUNTY"]
["TX433","ARLINGTON HOUSING AUTHORITY"]
["TX434","GRAND PRAIRIE HSNG & COMM DEV."]
["TX435","GARLAND HOUSING AUTHORITY"]
["TX436","MESQUITE HOUSING AUTHORITY"]
["TX437","LANCASTER HOUSING AUTHORITY"]
["TX438","Unknown - No Activity"]
["TX439","Housing Authority of Anthony"]
["TX440","PASADENA (CITY OF)"]
["TX441","HARRIS COUNTY HSG AUTHORITY"]
["TX444","BOERNE HOUSING AUTHORITY"]
["TX445","HIDALGO HOUSING AUTHORITY"]
["TX446","LA VILLA HOUSING AUTHORITY"]
["TX447","SAN JUAN HOUSING AUTHORITY"]
["TX448","La Joya Housing Authority"]
["TX449","Roma Housing Authority"]
["TX451","ASHERTON HOUSING AUTHORITY"]
["TX452","Bexar County Housing Authority"]
["TX454","WILLACY COUNTY HSG AUTHORITY"]
["TX455","Housing Authority of Odessa"]
["TX456","TYLER HOUSING AUTHORITY"]
["TX457","Housing Authority of Marshall"]
["TX458","GRAYSON COUNTY HOUSING AUTHORITY"]
["TX459","LONGVIEW HSG. & COMM. DEVELOPMENT"]
["TX461","WALKER COUNTY HOUSING AUTHORITY"]
["TX469","Housing Authority of City of Navasota"]
["TX470","San Angelo Housing Authority"]
["TX472","AMARILLO  HOUSING  AUTHORITY"]
["TX476","HILL COUNTY HOUSING AUTHORITY"]
["TX479","CORSICANA HOUSING AUTHORITY"]
["TX480","Housing Authority of Travis County"]
["TX481","PANHANDLE COMMUNITY SERVICES"]
["TX482","CENTRAL TEXAS COUNCIL OF GOVTS"]
["TX483","ROSENBERG HOUSING AUTHORITY"]
["TX484","BRAZORIA COUNTY HOUSING AUTHORITY"]
["TX485","BIG SPRING HOUSING AGENCY"]
["TX486","Housing Authority of the City of Nacogdoches"]
["TX487","Unknown - No Activity"]
["TX488","ANDERSON COUNTY HOUSING AUTHORITY"]
["TX489","MC KINNEY HOUSING AUTHORITY"]
["TX492","Housing Authority of Jasper"]
["TX493","TERRELL HOUSISNG AUTHORITY"]
["TX494","SOMERVELL COUNTY HOUSING AUTHORITY"]
["TX495","CLEBURNE HOUSING AUTHORITY"]
["TX497","Hidalgo County Housing Authority"]
["TX498","WICHITA FALLS HOUSING ASSISTANCE PROGRAM"]
["TX499","ARK-TEX COUNCIL OF GOVTS"]
["TX500","FORT STOCKTON HOUSING AUTHORITY"]
["TX501","Unknown - No Activity"]
["TX502","BURKBURNETT HOUSING ASSISTANCE PROGRAM"]
["TX505","LIBERTY COUNTY HOUSING AUTHORITY"]
["TX507","ZAPATA COUNTY HA"]
["TX509","Cameron County Housing Authority"]
["TX510","Goliad Housing Authority"]
["TX511","JIM HOGG COUNTY HA"]
["TX512","DEEP EAST TX COUNCIL OF GOVTS"]
["TX514","SOUTH PLAINS REGIONAL HSG AUTH"]
["TX516","JACKSONVILLE HOUSING AUTHORITY"]
["TX517","COMMERCE HOUSING AUTHORITY"]
["TX519","ATHENS HOUSING AUTHORITY"]
["TX522","GREENVILLE HOUSING AUTHORITY"]
["TX523","ELECTRA HOUSING AUTHORITY"]
["TX525","Housing Authority of Fruitvale"]
["TX526","BRAZOS VALLEY DEVELOPMENT COUNCIL"]
["TX528","Unknown - No Activity"]
["TX529","Unknown - No Activity"]
["TX530","LA MARQUE, CITY OF"]
["TX531","Housing Authority of Atlanta"]
["TX533","BALCH SPRINGS HOUSING AUTHORITY"]
["TX534","MIDLAND COUNTY HOUSING AUTHORITY"]
["TX535","LAMESA HOUSING AUTHORITY"]
["TX537","HALE COUNTY HOUSING AUTHORITY"]
["TX538","El Paso County Housing Authority"]
["TX539","Housing Authority of Blossom"]
["TX540","BRENHAM (CITY OF)"]
["TX542","TEXOMA COUNCIL OF GOVERNMENTS"]
["TX543","Housing Authority of Van Horn"]
["TX546","Housing Authority of Ralls"]
["TX549","Housing Authority of O'Donnell"]
["TX550","Bowie County Housing Authority"]
["TX552","Housing Authority of Lockney"]
["TX556","ODEM HOUSING AUTHORITY"]
["TX559","DALLAS COUNTY HOUSING ASSISTANCE PROGRAM"]
["TX560","MONTGOMERY COUNTY HA"]
["TX561","Unknown - No Activity"]
["TX563","Unknown - No Activity"]
["TX564","ALAMO AREA COUNCIL OF GOVERNME"]
["TX578","Unknown - No Activity"]
["TX901","TEXAS DEPT HOUSING & COMMUNITY AFFAIRS"]
["TX902","TEXAS DEPT HSG & COMMUNITY AFFAIRS"]
["TX903","TRANSFERRED TO TX'901"]
["TX999","HARRIS COUNTY HSG AND COMMUNITY DEV. AGENCY"]
["UT002","Housing Authority of the City of Ogden"]
["UT003","Housing Authority of the County of Salt Lake"]
["UT004","Housing Authority of Salt Lake City"]
["UT006","Beaver City Housing Authority"]
["UT007","Housing Authority of the City of Provo"]
["UT009","Davis Community Housing Authority"]
["UT011","HOUSING AUTHORITY OF UTAH COUNTY"]
["UT014","HOUSING AUTHORITY OF SOUTHEASTERN UTAH"]
["UT015","Emery County Housing Authority"]
["UT016","Housing Authority of Carbon County"]
["UT020","Tooele County Housing Authority"]
["UT021","St. George Housing Authority"]
["UT022","WEBER COUNTY HOUSING AUTHORITY"]
["UT025","West Valley City Housing Authority"]
["UT026","LOGAN CITY HOUSING AUTHORITY"]
["UT028","ROOSEVELT CITY HOUSING AUTHORITY"]
["UT029","MYTON CITY HOUSING AUTHORITY"]
["UT030","BEAR RIVER REGIONAL HOUSING AUTHORITY"]
["UT031","CEDAR CITY HOUSING AUTHORITY"]
["VA001","Portsmouth Redevelopment & Housing Authority"]
["VA002","Bristol Redevelopment & Housing Authority"]
["VA003","Newport News Redevelopment & Housng Authority"]
["VA004","Alexandria Redevelopment & Housing Authority"]
["VA005","Hopewell Redevelopment & Housing Authority"]
["VA006","Norfolk Redevelopment & Housing Authority"]
["VA007","Richmond Redevelopment & Housing Authority"]
["VA010","Danville Redevelopment & Housing Authority"]
["VA011","Roanoke Redevelopment & Housing Authority"]
["VA012","Chesapeake Redevelopment & Housing Authority"]
["VA013","Lynchburg Redevelopment & Housing Authority"]
["VA014","HARRISONBURG REDEVELOPMENT & H/A"]
["VA015","Norton Redevelopment & Housing Authority"]
["VA016","Charlottesville Redev & Housing Authority"]
["VA017","Hampton Redevelopment & Housing Authority"]
["VA018","Franklin Redevelopment And Housing Authority"]
["VA019","Fairfax County Redevelopment & Hsg Authority"]
["VA020","Petersburg Redevelopment & Housing Authority"]
["VA021","Wytheville Redev. & Housing Authority"]
["VA022","Waynesboro Redevelopment & Housing Authority"]
["VA023","Staunton Redevelopment & Housing Authority"]
["VA024","Wise County Redevelopment & Housing Authority"]
["VA025","Suffolk Redevelopment And Housing Authority"]
["VA026","Williamsburg Redevelopment & Housing Auth."]
["VA028","ARLINGTON CO DEPT OF  HUMAN SERVICES"]
["VA029","Cumberland Plateau Regional Housing Authority"]
["VA030","Marion Redevelopment & Housing Authority"]
["VA031","Scott County Redev. & Housing Authority"]
["VA032","Abingdon Redevelopment And Housing Authority"]
["VA034","Lee County Redevelopment & Housing Authority"]
["VA035","LOUDOUN COUNTY HOUSING SERVICES"]
["VA036","COUNTY OF ALBEMARLE/DEPT.OF FINANCE"]
["VA037","COVINGTON REDEV & HSG AUTHORITY"]
["VA038","BIG STONE GAP REDEVELOPMENT AND"]
["VA039","CITY OF VIRGINIA BEACH"]
["VA040","ACCOMACK-NORTHHAMPTON REGIONAL HOUSING AUTHORITY"]
["VA041","JAMES CITY COUNTY HSG & COMMUNITY DEVELOPEMENT"]
["VA042","PEOPLE INCORPORATED OF SOUTHWEST VIRGINIA"]
["VA043","TOTAL ACTION AGAINST POVERTY IN ROANOKE"]
["VA044","BUCKINGHAM  HOUSING DEVELOPMENT CORPRATION"]
["VA045","MARTINSVILLE REDEVELOPMENT & HOUSING AUTHORITY"]
["VA046","PRINCE WILLIAM COUNTY"]
["VA880","PIEDMONT HOUSING ALLIANCE"]
["VA901","VIRGINIA HOUSING DEVELOPMENT AUTHORITY"]
["VA902","VIRGINIA HOUSING DEVELOPMENT AUTH"]
["VQ001","Virgin Islands Housing Authority"]
["VQ901","VIRGIN ISLANDS HOUSING AUTHORITY"]
["VT001","Burlington Housing Authority"]
["VT002","Brattleboro Housing Authority"]
["VT003","Rutland Housing Authority"]
["VT004","Springfield Housing Authority"]
["VT005","Barre Housing Authority"]
["VT006","Winooski Housing Authority"]
["VT008","Montpelier Housing Authority"]
["VT009","Bennington Housing Authority"]
["VT010","HARTFORD HOUSING AUTHORITY"]
["VT011","ST ALBANS HSG AUTHORITY"]
["VT012","CITY OF BARRE HOUSING AUTHORITY"]
["VT901","VERMONT STATE HOUSING AUTHORITY"]
["WA001","Seattle Housing Authority"]
["WA002","HA of King County"]
["WA003","Housing Authority of the City of Bremerton"]
["WA004","Peninsula Housing Authority"]
["WA005","HA City of Tacoma"]
["WA006","HA City of Everett"]
["WA007","HOUSING AUTHORITY CITY OF LONGVIEW"]
["WA008","Housing Authority of the City of Vancouver"]
["WA009","Housing Authority of Kittitas County"]
["WA010","HA City of Anacortes"]
["WA011","HA City of Renton"]
["WA012","HA City of Kennewick"]
["WA013","COLUMBIA GORGE HOUSING AUTHORITY"]
["WA014","HA of Grant County"]
["WA017","HA of Asotin County"]
["WA018","HA of Grays Harbor County"]
["WA019","HA City of Kalama"]
["WA020","HA City of Kelso"]
["WA021","HA City of Pasco And Franklin County"]
["WA024","HA of Island County"]
["WA025","Housing Authority City of Bellingham"]
["WA026","Housing Authority City of Othello"]
["WA030","HA City of Sedro Woolley"]
["WA035","HA City of Sunnyside"]
["WA036","Kitsap County Consolidated Housing Auth"]
["WA039","Housing Authority of Snohomish County"]
["WA041","HA of Whatcom County"]
["WA042","HA City of Yakima"]
["WA049","HOUSING AUTHORITY OF THURSTON COUNTY"]
["WA053","PUYALLUP HOUSING AUTHORITY"]
["WA054","HA of Pierce County"]
["WA055","HA City of Spokane"]
["WA057","HA City of Walla Walla"]
["WA059","MASON COUNTY HOUSING AUTHORITY"]
["WA061","HOUSING AUTHORITY OF SKAGIT COUNTY"]
["WA064","HA OF CHELAN COUNTY/CITY OF WENATCHEE"]
["WA065","HOUSING AUTHORITY OF THE CITY OF RICHLAND"]
["WA068","HOUSING AUTHORITY OF JEFFERSON COUNTY"]
["WA069","FERRY COUNTY JOINT HOUSING AUTHORITY"]
["WA071","OKANOGAN COUNTY HOUSING AUTHORITY"]
["WI001","Housing Authority of the City of Superior"]
["WI002","Housing Authority of the City of Milwaukee"]
["WI003","Madison Community Development Authority"]
["WI004","Menomonie Housing Authority"]
["WI006","La Crosse Housing Authority"]
["WI008","South Milwaukee Community Development Auth."]
["WI011","Marshfield Community Development Authority"]
["WI015","Stanley Housing Authority"]
["WI016","Spooner Housing Authority"]
["WI017","Merrill Housing Authority"]
["WI018","Plymouth Housing Authority"]
["WI019","Amery Housing Authority"]
["WI020","Housing Authority of the City of New Richmond"]
["WI021","Brillion Housing Authority"]
["WI023","Housing Authority of the City of Barron"]
["WI024","Manitowoc Housing Authority"]
["WI025","City of Edgerton Housing Authority"]
["WI026","Abbotsford Housing Authority"]
["WI028","Monroe Housing Authority"]
["WI029","Bruce Housing Authority"]
["WI030","Reedsville Housing Authority"]
["WI031","Wausau Community Development Authority"]
["WI032","Greenwood Housing Authority"]
["WI033","Altoona Housing Authority"]
["WI034","Algoma Housing Authority"]
["WI037","Stevens Point Housing Authority"]
["WI038","Fond Du Lac Housing Authority"]
["WI039","WITTENBERG HOUSING AUTHORITY"]
["WI040","Hurley Housing Authority"]
["WI041","Lake Mills Housing Authority"]
["WI042","Hudson Housing Authority"]
["WI043","Kaukauna Housing Authority"]
["WI044","Oconto Housing Authority"]
["WI045","Shawano Housing Authority"]
["WI046","Richland Center Housing Authority"]
["WI047","Sheboygan Housing Authority"]
["WI048","New London Housing Authority"]
["WI049","Marinette Housing Authority"]
["WI050","Rice Lake Housing Authority"]
["WI051","Chetek Housing Authority"]
["WI052","Housing Authority of the City of Cumberland"]
["WI055","Albany Housing Authority"]
["WI056","Frederic Housing Authority"]
["WI057","Luck Housing Authority"]
["WI058","Sparta Housing Authority"]
["WI059","Woodville Housing Authority"]
["WI060","River Falls Housing Authority"]
["WI061","Housing Authority of the City of Shell Lake"]
["WI063","Wausaukee Housing Authority"]
["WI064","Beloit Housing Authority"]
["WI065","City of Appleton Housing Authority"]
["WI066","Mondovi Housing Authority"]
["WI067","Prairie Du Chien Housing Authority"]
["WI068","Wisconsin Rapids Housing Authority"]
["WI069","Mauston Housing Authority"]
["WI070","Rhinelander Housing Authority"]
["WI071","Grantsburg Housing Authority"]
["WI072","Clintonville Housing Authority"]
["WI073","Osceola Housing Authority"]
["WI074","Green Bay Housing Authority"]
["WI075","Pulaski Housing Authority"]
["WI076","Watertown Housing Authority"]
["WI077","Thorp Housing Authority"]
["WI083","West Bend Housing Authority"]
["WI085","Antigo Housing Authority"]
["WI086","Jefferson Housing Authority"]
["WI090","Baraboo Community Development Authority"]
["WI091","DODGEVILLE HA"]
["WI093","Sauk City Housing Authority"]
["WI096","Tomah Public Housing Authority"]
["WI098","Park Falls Housing Authority"]
["WI102","Depere Housing Authority"]
["WI111","Ladysmith Housing Authority"]
["WI113","Housing Authority of the City of Oshkosh, Wi"]
["WI117","Westby Housing Authority"]
["WI118","Viroqua Housing Authority"]
["WI127","Washburn Housing Authority"]
["WI129","Peshtigo Housing Authority"]
["WI131","Ashland Housing Authority"]
["WI139","Shawano County Housing Authority"]
["WI142","Waukesha Housing Authority"]
["WI146","HARTFORD CDA"]
["WI156","MIDDLETON HOUSING AUTHORITY"]
["WI158","Boscobel Housing Authority"]
["WI160","DUNN COUNTY HA"]
["WI166","Trempealeau County Housing Authority"]
["WI183","Racine County Housing Authority"]
["WI186","BROWN COUNTY HA"]
["WI193","Eau Claire County Housing Authority"]
["WI195","KENOSHA HOUSING AUTHORITY"]
["WI201","WEST ALLIS CDA"]
["WI203","EVANSVILLE HA"]
["WI204","Sauk County Housing Authority"]
["WI205","MONROE COUNTY HA"]
["WI206","DOOR COUNTY HOUSING AUTHORITY"]
["WI207","Eau Claire Housing Authority"]
["WI208","PLATTEVILLE HOUSING AUTHORITY"]
["WI213","Housing Authority of Winnebago County, Wi"]
["WI214","Dane County Housing Authority"]
["WI217","APPLETON HA"]
["WI218","MILWAUKEE CO HA"]
["WI219","JANESVILLE CDA"]
["WI221","Lafayette County Housing Authority"]
["WI222","SAWYER COUNTY HA"]
["WI226","Lincoln County Housing Authority"]
["WI230","CRAWFORD COUNTY HSG AUTH"]
["WI231","Ashland County Housing Authority"]
["WI233","DODGE COUNTY HA"]
["WI237","PORTAGE COUNTY HA"]
["WI241","MARINETTE CO HA"]
["WI242","Burnett County Housing Authority"]
["WI244","WALWORTH COUNTY HA"]
["WI245","BARRON COUNTY HA"]
["WI246","Fond Du Lac County Housing Authority"]
["WI247","Slinger Housing Authority"]
["WI248","CHIPPEWA CO. HOUSING AUTHORITY"]
["WI249","Deforest Housing Authority"]
["WI251","Chilton Housing Authority"]
["WI253","Lacrosse County Housing Authority"]
["WI256","RICHLAND COUNTY HA"]
["WI259","CITY OF NEW BERLIN HA"]
["WI261","WAUKESHA COUNTY HA"]
["WI262","OCONTO COUNTY HA  /  NEWCAP, INC."]
["WI263","TAYLOR COUNTY HA"]
["WI901","WISCONSIN HOUSING & ECONOMIC"]
["WV001","Charleston/Kanawha Housing Authority"]
["WV002","HA OF THE CITY OF MORGANTOWN"]
["WV003","Housing Authority of the City of Wheeling"]
["WV004","Housing Authority of the City of Huntington"]
["WV005","Housing Authority of the City of Parkersburg"]
["WV006","Housing Authority of the City of Martinsburg"]
["WV007","Housing Authority of the City of Mount Hope"]
["WV008","Housing Authority of the City of Williamson"]
["WV009","Housing Authority of the City of Fairmont"]
["WV010","Housing Authority of the City of Keyser"]
["WV011","Housing Authority of the City of Moundsville"]
["WV012","Housing Authority of the City of Grafton"]
["WV013","Housing Authority of the City of Buckhannon"]
["WV014","Housing Authority of Benwood And McMechen"]
["WV015","Housing Authority of the City of Beckley"]
["WV016","Housing Authority of the City of Weirton"]
["WV017","Housing Authority of the City of Pt. Pleasant"]
["WV018","Housing Authority of the City of Bluefield"]
["WV019","Unknown - No Activity"]
["WV020","Housing Authority of the City of Elkins"]
["WV021","Housing Authority of the City of St. Albans"]
["WV022","Housing Authority of the City of South Charleston"]
["WV024","Housing Authority of the City of Dunbar"]
["WV026","Housing Authority of the City of Spencer"]
["WV027","Clarksburg/Harrison Housing Authority"]
["WV028","Housing Authority of the City of Weston"]
["WV029","Housing Authority of the City of Piedmont"]
["WV033","Unknown - No Activity"]
["WV034","GRANT COUNTY HOUSING AUTHORITY"]
["WV035","Housing Authority of the County of Jackson"]
["WV036","KANAWHA COUNTY HA"]
["WV037","Housing Authority of Mingo County"]
["WV039","Housing Authority of Raleigh County"]
["WV042","Housing Authority of Boone County"]
["WV043","HARRISON COUNTY HOUSING AUTHORITY"]
["WV044","Housing Authority of the City of Romney"]
["WV045","RANDOLPH COUNTY HOUSING AUTHORITY"]
["WV046","GREENBRIER CO HOUSING AUTHORITY"]
["WY002","Housing Authority of the City of Cheyenne"]
["WY003","Rock Springs Housing Authority"]
["WY004","Housing Authority of the City of Casper"]
["WY005","Housing Authority of the Town of Douglas"]
["WY008","Lusk Housing Authority"]
["WY010","Hanna Housing Authority"]
["WY013","Evanston Housing Authority"]
["WY015","Housing Authority of the City of Buffalo"]
["WY017","Unknown - No Activity"]
["WY901","WYOMING COMMUNITY DEVELOPMENT AUTHORITY"]